{"text_format":"1","workbook":"xlsx","n_sheets":18,"sheets":["Prvi_list","Podatki","Merilna_mesta","Metode","Meritve","Metode-sediment","Meritve-sediment","Metode-živi org.","Meritve-živi org.","Vrednotenje","Pooblastilo","Meje_vode","Sifrant","Parametri","param.kem.stanja","param.ekol.stanja","param.ekol.stanja fiz.-kem.","naravna_ozadja"],"not_rendered":{"charts":0,"images":6,"macros":1,"external_links":2,"defined_names":69,"comments":9,"pivot_tables":0},"unopened":[],"bounds":{"document_bytes":16777216,"sheet_cells":100000,"rows_first":2000,"rows_last":500,"rows_between":2000,"halvings":0,"cell_chars":16384,"cell_head_chars":4096},"cells_cut":0,"cells_raw":0,"read":"whole","date_system":"1900"}

{"sheet":"Prvi_list","index":0,"n_rows":21,"n_cols":1,"rows_kept":21,"cut":false,"hidden":false,"merged":[]}
["VERZIJA: 22.1.2026"]
[]
[]
[]
[]
[]
[]
[]
[]
[]
[]
[]
[]
[]
[]
["POROČILO O OBRATOVALNEM MONITORINGU \nSTANJA POVRŠINSKIH VODA ZA NAPRAVO"]
[{"$f":"IF(Podatki!C24=\"\",\"\",Podatki!C24)","v":""}]
[]
[]
[]
[{"$f":"IF(Podatki!C3<>\"\",\"Za leto \"& Podatki!C3,\"\")","v":"Za leto 2025"}]

{"sheet":"Podatki","index":1,"n_rows":79,"n_cols":3,"rows_kept":79,"cut":false,"hidden":false,"merged":[[0,1,0,2]]}
[null,"POROČILO O OBRATOVALNEM MONITORINGU \nSTANJA POVRŠINSKIH VODA"]
[]
[null,"MERITVE ZA LETO",2025]
[]
[null,"PODATKI O ZAVEZANCU"]
[null,"Naziv zavezanca iz sodnega registra: "]
[null,"Naslov zavezanca"]
[null,"Naselje:"]
[null,"Ulica:"]
[null,"Hišna številka:"]
[null,"Poštna številka:"]
[null,"Ime pošte:"]
[null,"Občina:",""]
[null,"Matična številka zavezanca:"]
[null,"Identifikacijska številka za DDV:"]
[null,"Šifra glavne dejavnosti zavezanca (SKD):"]
[null,"Kontaktna oseba:"]
[null,"Stacionarna številka:"]
[null,"Mobilna številka:"]
[null,"Elektronski naslov:"]
[]
[]
[null,"PODATKI O NAPRAVI"]
[null,"Naziv naprave: "]
[null,"Naslov naprave (le če je različen od naslova zavezanca)"]
[null,"Naselje:"]
[null,"Ulica:"]
[null,"Hišna številka:"]
[null,"Poštna številka:"]
[null,"Ime pošte:"]
[null,"Občina:"]
[null,"Kontaktna oseba:"]
[null,"Stacionarna številka:"]
[null,"Mobilna številka:"]
[null,"elektronski naslov:"]
[null,"Ali je naprava odlagališče:"]
[null,"Vrsta odlagališča:"]
[null,"Status odlagališča:"]
[]
[]
[null,"UPRAVNI AKT, NA PODLAGI KATEREGA SE IZDELUJE MONITORING"]
[null,"Vrsta upravnega akta:"]
[null,"Številka:"]
[null,"Datum izdaje:"]
[]
[null,"PREDLOG OBRATOVALNEGA MONITORINGA STANJA POVRŠINSKIH VODA"]
[null,"Številka:"]
[null,"Datum izdaje:"]
[]
[]
[null,"PODATKI O IZVAJALCU MONITORINGA"]
[null,"Naziv izvajalca monitoringa: ",""]
[null,"Naslov izvajalca monitoringa"]
[null,"Naselje:"]
[null,"Ulica:"]
[null,"Hišna številka:"]
[null,"Poštna številka:"]
[null,"Ime pošte:"]
[null,"Identifikacijska številka za DDV:"]
[null,"Šifra glavne dejavnosti izvajalca monitoringa (SKD):"]
[null,"Kontaktna oseba:"]
[null,"Stacionarna številka:"]
[null,"Mobilna številka:"]
[null,"Elektronski naslov:"]
[]
[]
[null,"PODATKI O POROČILU"]
[null,"Evidenčna št. dokumenta:"]
[null,"Datum izdelave:"]
[null,"Obrazec digitalno podpisal (ime in priimek):"]
[null,"Serijska št. digitalnega potrdila podpisnika:"]
[null,"Vodja kakovosti:"]
[null,"Operativno vodenje in odgovorna oseba  \nza izdelavo poročila:"]
[null,"Vzorčenje, meritve in izdelava poročila:"]
[null,"Sodelavci:"]
[]
[]
[null,"Ime in priimek zakonitega zastopnika","Ime in priimek zakonitega zastopnika"]
[null,"izvajalca monitoringa","zavezanca za monitoring"]

{"sheet":"Merilna_mesta","index":2,"n_rows":6,"n_cols":3,"rows_kept":6,"cut":false,"hidden":false,"merged":[]}
[null,"MERILNA MESTA"]
[null,"Opis merilnega mesta Gorvodno (A):","Fotografija struge na mestu vzorčenja:"]
[]
[]
[]
[null,"Opis merilnega mesta Dolvodno (B):","Fotografija struge na mestu vzorčenja:"]

{"sheet":"Metode","index":3,"n_rows":9,"n_cols":9,"rows_kept":9,"cut":false,"hidden":false,"merged":[[0,0,0,2],[1,0,1,7]]}
[]
["UPORABLJENE MERILNE METODE za površinske vode"]
["Zap. št.","Parameter (enota)","Meja zaznavnosti (LOD)","Meja določljivosti (LOQ)","Merilna metoda","Merilna negotovost","Merilna negotovost \n(v območju LOQ)","Akreditirana metoda","Ime podizvajalca"]
[1180,"Pretok (m3/s)"]
[1020,"Temperatura vode (°C)"]
[1060,"pH"]
[1071,"Električna prevodnost (25oC) (µS/cm)"]
[1090,"Nasičenost s kisikom (% O2)"]
[1080,"Kisik (mgO2/L)"]

{"sheet":"Meritve","index":4,"n_rows":23,"n_cols":31,"rows_kept":23,"cut":false,"hidden":false,"merged":[[8,21,8,30],[11,19,11,20],[11,21,11,22],[11,29,11,30],[10,7,10,30],[11,23,11,24],[11,25,11,26],[11,27,11,28],[11,17,11,18],[9,21,9,29],[6,21,6,30],[4,15,5,17],[4,9,4,14],[4,18,5,19],[5,9,5,10],[5,11,5,14],[6,9,6,10],[6,11,6,14],[6,15,6,17],[6,18,6,19],[5,21,5,30],[7,18,7,19],[11,7,11,8],[11,13,11,14],[10,4,11,6],[7,6,7,7],[7,9,7,10],[7,11,7,14],[11,9,11,10],[11,11,11,12],[7,4,7,5],[11,15,11,16],[7,15,7,17],[10,2,11,3],[0,4,0,7],[1,4,1,7],[4,4,4,7],[5,4,5,5],[5,6,5,7],[4,2,5,3],[6,2,6,3],[7,2,7,3],[6,4,6,5],[6,6,6,7],[3,0,3,7],[10,0,10,1],[11,0,12,0],[11,1,12,1],[4,0,5,0],[4,1,5,1],[1,21,1,31],[4,21,4,31],[3,21,3,31],[3,9,3,19],[2,21,2,31],[2,2,2,3]]}
["PODATKI O MERITVAH NA VODOTOKU (STANJE POVRŠINSKIH VODA)",null,null,null,"Naziv izvajalca monitoringa",null,null,null,null,null,null,null,null,null,null,null,null,null,null,null,null,"LEGENDA:"]
[null,null,null,null,{"$f":"IF(Podatki!C52=\"\",\"\",Podatki!C52)","v":""},null,null,null,null,null,null,null,null,null,null,null,null,null,null,null,null,"rumeno obarvani parametri: obremenitev spremeni razvrstitev ekološkega/kemijskega stanja (zaradi LP-OSK)"]
["TIP REKE:",null,"Poglej v GIS portalu",null,null,null,null,null,null,null,null,null,null,null,null,null,null,null,null,null,null,"rdeče obarvane celice: razlika letnih povprečnih vrednosti je enaka ali večja od LP-OSK = ZNATNO POVEČANJE"]
["MESTO VZORČENJA:",null,null,null,null,null,null,null,null,"STABILNE HIDROLOŠKE RAZMERE (predpisano merilo):",null,null,null,null,null,null,null,null,null,null,null,"oranžno obarvane celice: vrednost presega NDK-OSK"]
[null,"Oznaka","Vodotok",null,"Transverzalna (prečna) Marcatorjeva koordinata",null,null,null,null,"Merilna postaja",null,null,null,null,null,"Vodotok",null,null,"Srednji pretok",null,null,"rjavo obarvani parametri: obremenitev spremeni razvrstitev ekološkega/kemijskega stanja (zaradi NDK-OSK) = ZNATNO POVEČANJE"]
[null,null,null,null,"n",null,"e",null,null,"Šifra",null,"Ime",null,null,null,null,null,null,null,null,null,"-rezultat meritve pod LOD se zapiše kot npr. \"<0,1\" (če je LOD=0,1) "]
["Gorvodno (A)",null,null,null,null,null,null,null,null,null,null,{"$f":"IF(J7<>\"\",VLOOKUP(J7,Sifrant!$D$2:$F$742,3,FALSE),\"\")","v":""},null,null,null,{"$f":"IF(J7<>\"\",VLOOKUP(J7,Sifrant!$D$2:$E$741,2,FALSE),\"\")","v":""},null,null,null,null,null,"-rezultat meritve med LOD in LOQ se zapiše kot (LOQ)/2 in vrednost se podčrta (0,15 če je LOQ=0,3)"]
["Dolvodno (B)",null,null,null,null,null,null,null,null,null,null,{"$f":"IF(J8<>\"\",VLOOKUP(J8,Sifrant!$D$2:$F$742,3,FALSE),\"\")","v":""},null,null,null,{"$f":"IF(J8<>\"\",VLOOKUP(J8,Sifrant!$D$2:$E$741,2,FALSE),\"\")","v":""},null,null,null,null,null,"OPOMBA"]
[null,null,null,null,null,null,null,null,null,null,null,null,null,null,null,null,null,null,null,null,null,"Če se vrednost v tabeli obarva v rdečo pomeni, da gre za nepravilno vrednost, ki jo morate odpraviti."]
[null,null,null,null,null,null,null,null,null,null,null,null,null,null,null,null,null,null,null,null,null,"Če se vrednost v tabeli obarva v modro pomeni, da gre za vrednost 0 (nič)."]
["Parameter",null,"Mejna vrednost za \ndobro stanje vodotoka",null,"Povprečna letna vrednost",null,null,"Št. vzorčenja"]
["Zap. št. Parametra","Naziv parametra (enota)",null,null,null,null,null,1,null,2,null,3,null,4,null,5,null,6,null,7,null,8,null,9,null,10,null,11,null,12]
[null,null,"LP-OSK","NDK-OSK","Razlika \n(B) - (A)","Gorovodno (A)","Dolvodno (B)","A","B","A","B","A","B","A","B","A","B","A","B","A","B","A","B","A","B","A","B","A","B","A","B"]
["ID vzorca",null,"/","/","/","/","/"]
["datum vz. (dd.mm.ll)",null,"/","/","/","/","/"]
["ura vzročenja (hh:mm)",null,"/","/","/","/","/"]
["vodostaj (cm)",null,"/","/","/",{"$f":"IF(SUM(H17,J17,L17,N17,P17,R17,T17,V17,X17,Z17,AB17,AD17)>0,AVERAGE(H17,J17,L17,N17,P17,R17,T17,V17,X17,Z17,AB17,AD17),0)","v":0},{"$f":"IF(SUM(I17,K17,M17,O17,Q17,S17,U17,W17,Y17,AA17,AC17,AE17)>0,AVERAGE(I17,K17,M17,O17,Q17,S17,U17,W17,Y17,AA17,AC17,AE17),0)","v":0}]
[1180,"Pretok (m3/s)","/","/","/",{"$f":"IF(SUM(H18,J18,L18,N18,P18,R18,T18,V18,X18,Z18,AB18,AD18)>0,AVERAGE(H18,J18,L18,N18,P18,R18,T18,V18,X18,Z18,AB18,AD18),0)","v":0},{"$f":"IF(SUM(I18,K18,M18,O18,Q18,S18,U18,W18,Y18,AA18,AC18,AE18)>0,AVERAGE(I18,K18,M18,O18,Q18,S18,U18,W18,Y18,AA18,AC18,AE18),0)","v":0}]
[1020,"Temperatura vode (°C)","/","/","/"]
[1060,"pH","/","/","/"]
[1071,"Električna prevodnost (25oC) (µS/cm)","/","/","/"]
[1090,"Nasičenost s kisikom (% O2)","/","/","/"]
[1080,"Kisik (mgO2/L)","/","/","/"]

{"sheet":"Metode-sediment","index":5,"n_rows":3,"n_cols":9,"rows_kept":3,"cut":false,"hidden":false,"merged":[[0,0,0,2],[1,0,1,7]]}
[]
["UPORABLJENE MERILNE METODE za sedimente"]
["Zap. št.","Parameter (enota)","Meja zaznavnosti (LOD)","Meja določljivosti (LOQ)","Merilna metoda","Merilna negotovost","Merilna negotovost \n(v območju LOQ)","Akreditirana metoda","Ime podizvajalca"]

{"sheet":"Meritve-sediment","index":6,"n_rows":16,"n_cols":22,"rows_kept":16,"cut":false,"hidden":false,"merged":[[7,2,7,3],[0,4,0,7],[1,4,1,7],[3,0,3,7],[3,9,3,19],[4,0,5,0],[4,1,5,1],[4,2,5,3],[4,4,4,7],[4,9,4,14],[9,21,9,30],[1,21,1,30],[10,2,10,3],[6,11,6,14],[6,15,6,17],[4,18,5,19],[4,21,4,30],[5,4,5,5],[5,6,5,7],[5,9,5,10],[5,11,5,14],[5,21,5,30],[4,15,5,17],[8,21,8,30],[6,18,6,19],[6,21,6,30],[10,0,10,1],[11,0,12,0],[11,1,12,1],[3,21,3,30],[2,21,2,30],[11,2,11,3],[7,4,7,5],[7,6,7,7],[7,9,7,10],[7,11,7,14],[7,15,7,17],[7,18,7,19],[6,2,6,3],[6,4,6,5],[6,6,6,7],[6,9,6,10]]}
["PODATKI O MERITVAH NA VODOTOKU (STANJE POVRŠINSKIH VODA)",null,null,null,"Naziv izvajalca monitoringa"]
[null,null,null,null,{"$f":"IF(Podatki!C52=\"\",\"\",Podatki!C52)","v":""}]
[]
["MESTO VZORČENJA:",null,null,null,null,null,null,null,null,"STABILNE HIDROLOŠKE RAZMERE (predpisano merilo):"]
[null,"Oznaka","Vodotok",null,"Transverzalna (prečna) Marcatorjeva koordinata",null,null,null,null,"Merilna postaja",null,null,null,null,null,"Vodotok",null,null,"Srednji pretok",null,null,"ZAPIS REZULTATOV MERITEV:"]
[null,null,null,null,"n",null,"e",null,null,"Šifra",null,"Ime",null,null,null,null,null,null,null,null,null,"-rezultat meritve pod LOD se zapiše kot npr. \"<0,1\" (če je LOD=0,1) "]
["Gorvodno (A)",null,null,null,null,null,null,null,null,null,null,{"$f":"IF(J7<>\"\",VLOOKUP(J7,Sifrant!$D$2:$F$742,3,FALSE),\"\")","v":""},null,null,null,{"$f":"IF(J7<>\"\",VLOOKUP(J7,Sifrant!$D$2:$E$741,2,FALSE),\"\")","v":""},null,null,null,null,null,"-rezultat meritve med LOD in LOQ se zapiše kot (LOQ)/2 in vrednost se podčrta (0,15 če je LOQ=0,3)"]
["Dolvodno (B)",null,null,null,null,null,null,null,null,null,null,{"$f":"IF(J8<>\"\",VLOOKUP(J8,Sifrant!$D$2:$F$742,3,FALSE),\"\")","v":""},null,null,null,{"$f":"IF(J8<>\"\",VLOOKUP(J8,Sifrant!$D$2:$E$741,2,FALSE),\"\")","v":""},null,null,null,null,null,"OPOMBA"]
[null,null,null,null,null,null,null,null,null,null,null,null,null,null,null,null,null,null,null,null,null,"Če se vrednost v tabeli obarva v rdečo pomeni, da gre za nepravilno vrednost, ki jo morate odpraviti."]
[null,null,null,null,null,null,null,null,null,null,null,null,null,null,null,null,null,null,null,null,null,"Če se vrednost v tabeli obarva v modro pomeni, da gre za vrednost 0 (nič)."]
["Parameter",null,"Št. vzorčenja"]
["Zap. št. Parametra","Naziv parametra (enota)",1]
[null,null,"Gorvodno (A)","Dolvodno (B)"]
[null,"ID vzorca"]
[null,"datum vz. (dd.mm.ll)"]
[null,"ura vzročenja (hh:mm)"]

{"sheet":"Metode-živi org.","index":7,"n_rows":3,"n_cols":9,"rows_kept":3,"cut":false,"hidden":false,"merged":[[0,0,0,2],[1,0,1,7]]}
[]
["UPORABLJENE MERILNE METODE za žive organizme"]
["Zap. št.","Parameter (enota)","Meja zaznavnosti (LOD)","Meja določljivosti (LOQ)","Merilna metoda","Merilna negotovost","Merilna negotovost \n(v območju LOQ)","Akreditirana metoda","Ime podizvajalca"]

{"sheet":"Meritve-živi org.","index":8,"n_rows":51,"n_cols":34,"rows_kept":51,"cut":false,"hidden":false,"merged":[[45,6,45,8],[45,9,45,11],[46,3,47,3],[46,4,46,5],[46,6,47,6],[46,7,46,8],[46,9,47,9],[46,10,46,11],[45,3,45,5],[41,0,41,1],[42,0,42,1],[45,2,46,2],[45,0,45,1],[46,0,47,0],[46,1,47,1],[39,0,39,1],[40,0,40,1],[30,0,30,1],[31,0,31,1],[34,0,35,0],[36,0,38,1],[36,2,37,3],[25,4,25,18],[25,19,25,33],[26,4,26,18],[26,19,26,33],[36,4,36,18],[36,19,36,33],[37,4,37,18],[37,19,37,33],[34,2,34,3],[35,2,35,3],[28,0,28,1],[29,0,29,1],[20,0,20,1],[23,0,24,0],[23,2,23,3],[24,2,24,3],[25,0,27,1],[25,2,26,3],[6,21,6,31],[19,0,19,1],[12,0,13,0],[12,2,12,3],[13,2,13,3],[14,0,16,1],[14,2,15,3],[14,19,14,33],[15,4,15,18],[15,19,15,33],[17,0,17,1],[18,0,18,1],[14,4,14,18],[8,21,8,30],[6,18,6,19],[7,2,7,3],[7,4,7,5],[7,6,7,7],[7,9,7,10],[7,11,7,14],[7,15,7,17],[6,4,6,5],[6,6,6,7],[6,9,6,10],[6,11,6,14],[6,15,6,17],[0,4,0,7],[1,4,1,7],[3,0,3,7],[3,9,3,19],[1,21,1,31],[2,21,2,31],[9,21,9,30],[4,0,5,0],[4,1,5,1],[4,2,5,3],[4,4,4,7],[4,9,4,14],[4,15,5,17],[4,18,5,19],[4,21,4,30],[5,4,5,5],[5,6,5,7],[5,9,5,10],[5,11,5,14],[5,21,5,31],[7,18,7,19],[6,2,6,3]]}
["PODATKI O MERITVAH ŽIVIH ORGANIZMOV",null,null,null,"Naziv izvajalca monitoringa",null,null,null,null,null,null,null,null,null,null,null,null,null,null,null,null,"LEGENDA:"]
[null,null,null,null,{"$f":"IF(Podatki!C52=\"\",\"\",Podatki!C52)","v":""},null,null,null,null,null,null,null,null,null,null,null,null,null,null,null,null,"rumeno obarvani parametri: obremenitev spremeni razvrstitev ekološkega/kemijskega stanja (zaradi OSK)"]
[null,null,null,null,null,null,null,null,null,null,null,null,null,null,null,null,null,null,null,null,null,"rdeče obarvane celice: razlika vrednosti je enaka ali večja od OSK = ZNATNO POVEČANJE"]
["MESTO VZORČENJA:",null,null,null,null,null,null,null,null,"STABILNE HIDROLOŠKE RAZMERE (predpisano merilo):"]
[null,"Oznaka","Vodotok",null,"Transverzalna (prečna) Marcatorjeva koordinata",null,null,null,null,"Merilna postaja",null,null,null,null,null,"Vodotok",null,null,"Srednji pretok",null,null,"ZAPIS REZULTATOV MERITEV:"]
[null,null,null,null,"n",null,"e",null,null,"Šifra",null,"Ime",null,null,null,null,null,null,null,null,null,"-rezultat meritve pod LOD se zapiše kot npr. \"<0,1\" (če je LOD=0,1) "]
["Gorvodno (A)",null,null,null,null,null,null,null,null,null,null,{"$f":"IF(J7<>\"\",VLOOKUP(J7,Sifrant!$D$2:$F$742,3,FALSE),\"\")","v":""},null,null,null,{"$f":"IF(J7<>\"\",VLOOKUP(J7,Sifrant!$D$2:$E$741,2,FALSE),\"\")","v":""},null,null,null,null,null,"-rezultat meritve med LOD in LOQ se zapiše kot (LOQ)/2 in vrednost se podčrta (0,15 če je LOQ=0,3)"]
["Dolvodno (B)",null,null,null,null,null,null,null,null,null,null,{"$f":"IF(J8<>\"\",VLOOKUP(J8,Sifrant!$D$2:$F$742,3,FALSE),\"\")","v":""},null,null,null,{"$f":"IF(J8<>\"\",VLOOKUP(J8,Sifrant!$D$2:$E$741,2,FALSE),\"\")","v":""},null,null,null,null,null,"OPOMBA"]
[null,null,null,null,null,null,null,null,null,null,null,null,null,null,null,null,null,null,null,null,null,"Če se vrednost v tabeli obarva v rdečo pomeni, da gre za nepravilno vrednost, ki jo morate odpraviti."]
[null,null,null,null,null,null,null,null,null,null,null,null,null,null,null,null,null,null,null,null,null,"Če se vrednost v tabeli obarva v modro pomeni, da gre za vrednost 0 (nič)."]
[]
[]
["1. vzorec","Vrsta organizma"]
[null,"Uporabljeno tkivo"]
["Parameter",null,"Povprečna vrednost",null,"Gorovodno (A)",null,null,null,null,null,null,null,null,null,null,null,null,null,null,"Dolvodno (B)"]
[null,null,null,null,"Št. organizma",null,null,null,null,null,null,null,null,null,null,null,null,null,null,"Št. organizma"]
[null,null,"Gorovodno (A)","Dolvodno (B)",1,2,3,4,5,6,7,8,9,10,11,12,13,14,15,1,2,3,4,5,6,7,8,9,10,11,12,13,14,15]
["teža (g)",null,{"$f":"IF(SUM(E18:S18)>0,AVERAGE(E18:S18),0)","v":0},{"$f":"IF(SUM(T18:AH18)>0,AVERAGE(T18:AH18),0)","v":0}]
["dolžina (mm)",null,{"$f":"IF(SUM(E19:S19)>0,AVERAGE(E19:S19),0)","v":0},{"$f":"IF(SUM(T19:AH19)>0,AVERAGE(T19:AH19),0)","v":0}]
["starost (leta)",null,{"$f":"IF(SUM(E20:S20)>0,AVERAGE(E20:S20),0)","v":0},{"$f":"IF(SUM(T20:AH20)>0,AVERAGE(T20:AH20),0)","v":0}]
["vlaga (%)"]
[]
[]
["2. vzorec","Vrsta organizma"]
[null,"Uporabljeno tkivo"]
["Parameter",null,"Povprečna vrednost",null,"Gorovodno (A)",null,null,null,null,null,null,null,null,null,null,null,null,null,null,"Dolvodno (B)"]
[null,null,null,null,"Št. organizma",null,null,null,null,null,null,null,null,null,null,null,null,null,null,"Št. organizma"]
[null,null,"Gorovodno (A)","Dolvodno (B)",1,2,3,4,5,6,7,8,9,10,11,12,13,14,15,1,2,3,4,5,6,7,8,9,10,11,12,13,14,15]
["teža (g)",null,{"$f":"IF(SUM(E29:S29)>0,AVERAGE(E29:S29),0)","v":0},{"$f":"IF(SUM(T29:AH29)>0,AVERAGE(T29:AH29),0)","v":0}]
["dolžina (mm)",null,{"$f":"IF(SUM(E30:S30)>0,AVERAGE(E30:S30),0)","v":0},{"$f":"IF(SUM(T30:AH30)>0,AVERAGE(T30:AH30),0)","v":0}]
["starost (leta)",null,{"$f":"IF(SUM(E31:S31)>0,AVERAGE(E31:S31),0)","v":0},{"$f":"IF(SUM(T31:AH31)>0,AVERAGE(T31:AH31),0)","v":0}]
["vlaga (%)"]
[]
[]
["3. vzorec","Vrsta organizma"]
[null,"Uporabljeno tkivo"]
["Parameter",null,"Povprečna vrednost",null,"Gorovodno (A)",null,null,null,null,null,null,null,null,null,null,null,null,null,null,"Dolvodno (B)"]
[null,null,null,null,"Št. organizma",null,null,null,null,null,null,null,null,null,null,null,null,null,null,"Št. organizma"]
[null,null,"Gorovodno (A)","Dolvodno (B)",1,2,3,4,5,6,7,8,9,10,11,12,13,14,15,1,2,3,4,5,6,7,8,9,10,11,12,13,14,15]
["teža (g)",null,{"$f":"IF(SUM(E40:S40)>0,AVERAGE(E40:S40),0)","v":0},{"$f":"IF(SUM(T40:AH40)>0,AVERAGE(T40:AH40),0)","v":0}]
["dolžina (mm)",null,{"$f":"IF(SUM(E41:S41)>0,AVERAGE(E41:S41),0)","v":0},{"$f":"IF(SUM(T41:AH41)>0,AVERAGE(T41:AH41),0)","v":0}]
["starost (leta)",null,{"$f":"IF(SUM(E42:S42)>0,AVERAGE(E42:S42),0)","v":0},{"$f":"IF(SUM(T42:AH42)>0,AVERAGE(T42:AH42),0)","v":0}]
["vlaga (%)"]
[]
[]
["Parameter",null,"Mejna vrednost","Št. vzorca",null,null,"Št. vzorca",null,null,"Št. vzorca"]
["Zap. št. Parametra","Naziv parametra (enota)",null,"Razlika \n(B) - (A)",1,null,"Razlika \n(B) - (A)",2,null,"Razlika \n(B) - (A)",3]
[null,null,"OSK",null,"Gorovodno (A)","Dolvodno (B)",null,"Gorovodno (A)","Dolvodno (B)",null,"Gorovodno (A)","Dolvodno (B)"]
[null,"ID vzorca","/","/",null,null,"/",null,null,"/"]
[null,"datum vz. (dd.mm.ll)","/","/",null,null,"/",null,null,"/"]
[null,"ura vzročenja (hh:mm)","/","/",null,null,"/",null,null,"/"]

{"sheet":"Vrednotenje","index":9,"n_rows":17,"n_cols":1,"rows_kept":17,"cut":false,"hidden":false,"merged":[]}
["VREDNOTENJE"]
["Avtomatska kontrola podatkov je na podlagi 11. in 12. člena Pravilnika o obratovalnem monitoringu stanja površinskih voda ugotovila, da naprava čezmerno obremenjuje okolje ker:"]
["-na podlagi vrednotenja LP-OSK za površinsko vodo povzroča znatno povečanje vsebnosti sledečih parametrov:"]
[]
[]
["-na podlagi vrednotenja NDK-OSK za površinsko vodo povzroča znatno povečanje vsebnosti sledečih parametrov:"]
[]
[]
["-na podlagi vrednotenja OSK za žive organizme povzroča znatno povečanje vsebnosti sledečih parametrov:"]
[]
[""]
[]
[]
["POGOSTOST VZORČENJA"]
[]
["Avtomatska kontrola pogostosti vzorčenja je ugotovila, da je število vzorčenj premalo za sledeče parametre:"]
["/"]

{"sheet":"Pooblastilo","index":10,"n_rows":1,"n_cols":1,"rows_kept":1,"cut":false,"hidden":false,"merged":[[1,0,2,0]]}
["POOBLASTILO"]

{"sheet":"Meje_vode","index":11,"n_rows":94,"n_cols":13,"rows_kept":94,"cut":false,"hidden":false,"merged":[]}
["ID parametra","Parameter","Enota","LP-OSK (dobro)","NDK-OSK","LP-OSK (zelo dobro)",null,null,null,"ID parametra","Parameter","Enota","OSK organizmi"]
[8435,"1,2,4 Trimetilbenzen","µg/L",2,20,0.2,null,null,null,7136,"Benzo(a)piren-org. (mokra teža)","µg/kg",5]
[8090,"1,2-Dikloroetan","µg/L",10,"ni relevantno",null,null,null,null,91248,"Bromirani difenileter-org. (mokra teža)","µg/kg",8.5000000000000006E-2]
[8440,"1,3,5-Trimetilbenzen","µg/L",2,20,0.2,null,null,null,6038,"Dikofol-org. (mokra teža)","µg/kg",33]
[8250,"Adsorbljivi organski halogeni (AOX)","µg/L",20,"ni relevantno",2,null,null,null,90112,"Dioksini in dioksinom podobne spojine-org. (mokra teža)","µg/kg",6.4999999999999997E-3]
[6945,"Aklonifen","µg/L",0.12,0.12,null,null,null,null,7076,"Fluoranten-org. (mokra teža)","µg/kg",30]
[6010,"Alaklor","µg/L",0.3,0.7,null,null,null,null,8912,"HBCDD-org. (mokra teža)","µg/kg",167]
[3022,"Anionaktivni detergenti","µg/L",250,2500,25,null,null,null,6161,"Heksaklorobenzen-org. (mokra teža)","µg/kg",10]
[4020,"Antimon-filt.","µg/L",3.8,30.6,0.6,null,null,null,6171,"Heksaklorobutadien-org. (mokra teža)","µg/kg",55]
[7060,"Antracen","µg/L",0.1,0.1,null,null,null,null,94407,"Heptaklor in heptaklor epoksid-org. (mokra teža)","µg/kg",6.7000000000000002E-3]
[4030,"Arzen-filt.","µg/L",7,21,0.7,null,null,null,8902,"PFOS-org. (mokra teža)","µg/kg",9.1]
[6210,"Atrazin","µg/L",0.6,2,null,null,null,null,4365,"Živo srebro-org. (mokra teža)","µg/kg",20]
[4040,"Baker-filt.","µg/L",9.1999999999999993,74,1]
[8190,"Benzen","µg/L",10,50]
[7130,"Benzo(a)piren","µg/L",1.7000000000000001E-4,0.27]
[7110,"Benzo(b)fluoranten","µg/L","ni relevantno",1.7000000000000001E-2]
[7140,"Benzo(ghi)perilen","µg/L","ni relevantno",8.2000000000000007E-3]
[7120,"Benzo(k)fluoranten","µg/L","ni relevantno",1.7000000000000001E-2]
[6930,"Bifenoks","µg/L",1.2E-2,0.04]
[2090,"Biokemijska potreba po kisiku (BPK5)","mg/l",null,"ni relevantno"]
[3340,"Bisfenol A","µg/L",1.6,16,0.16]
[3011,"Bor-filt.","µg/L",210,1830,30]
[3399,"Bromirani difenileter - vsota","µg/L","ni relevantno",0.14000000000000001]
[3300,"C10-13 kloroalkani","µg/L",0.4,1.4]
[3059,"Cianid (prosti)","µg/L",1.2,17,1]
[6935,"Cibutrin","µg/L",2.5000000000000001E-3,1.6E-2]
[92901,"Ciklodienski pesticidi (vsota)","µg/L",0.01,"ni relevantno"]
[4090,"Cink-filt.","µg/L",null,{"$f":"IF((D28)=\"\",\"\",IF(D28=12,82.2,IF(D28=39.3,355.2,IF(D28=56.2,524.2,0))))","v":""},4.2]
[6039,"Cipermetrin","µg/L",8.0000000000000007E-5,5.9999999999999995E-4]
[6040,"DDT (p,p)","µg/L",0.01,"ni relevantno"]
[90497,"DDT (vsota)","µg/L",2.5000000000000001E-2,"ni relevantno"]
[3240,"Di-(2-etilheksil)-ftalat (DEHP)","µg/L",1.3,"ni relevantno"]
[3140,"Dibutilftalat","µg/L",10,100,1]
[3320,"Dibutilkositrove spojine","µg/L",0.02,0.21,2E-3]
[6860,"Diklorfos","µg/L",5.9999999999999995E-4,6.9999999999999999E-4]
[8070,"Diklorometan","µg/L",20,"ni relevantno"]
[6036,"Dikofol","µg/L",1.2999999999999999E-3,"ni relevantno"]
[90106,"Dioksini in dioksinom podobne spojine","µg/L","ni relevantno","ni relevantno"]
[6340,"Diuron","µg/L",0.2,1.8]
[6180,"Endosulfan(alfa+beta)","µg/L",5.0000000000000001E-3,0.01]
[8820,"Epiklorohidrin","µg/L",12,120,1.2]
[5050,"Fenol","µg/L",7.7,77,0.8]
[7070,"Fluoranten","µg/L",6.3E-3,0.12]
[2211,"Fluorid","µg/L",680,6800,68]
[2731,"Formaldehid","µg/L",130,1300,13]
[6205,"Glifosat","µg/L",20,200,2]
[96050,"Heksabromociklododekani (HBCDD)","µg/L",1.6000000000000001E-3,0.5]
[6160,"Heksaklorobenzen (HCB)","µg/L","ni relevantno",0.05]
[6170,"Heksaklorobutadien (HCBD)","µg/L","ni relevantno",0.6]
[93000,"Heksaklorocikloheksan","µg/L",0.02,0.04]
[8400,"Heksakloroetan","µg/L",24,240,2.4]
[94405,"Heptaklor in heptaklor epoksid","µg/L",1.9999999999999999E-7,2.9999999999999997E-4]
[7160,"Indeno(1,2,3-cd)piren","µg/L","ni relevantno","ni relevantno"]
[6343,"Izoproturon","µg/L",0.3,1]
[4120,"Kadmij-filt.","µg/L",null,{"$f":"IF((D55)=\"\",\"\",IF(D55=0.04,0.04,IF(D55=0.12,0.49,IF(D55=0.13,0.64,IF(D55=0.19,0.94,IF(D55=0.29,1.54,0))))))","v":""}]
[2080,"Kemijska potreba po kisiku - KPK s K2Cr2O7","mg/L O2",null,"ni relevantno"]
[6840,"Klorfenvinfos","µg/L",0.1,0.3]
[6341,"Klorotoluron","µg/L",0.8,8,0.08]
[6844,"Klorpirifos-etil","µg/L",0.03,0.1]
[4150,"Kobalt-filt.","µg/L",0.4,2.9,0.1]
[4190,"Krom-filt.","µg/L",12,160,1.2]
[8210,"Ksilen","µg/L",185,1850,19]
[6940,"Kvinoksifen","µg/L",0.15,2.7]
[6020,"Metolaklor","µg/L",0.3,2.7,0.03]
[3070,"Mineralna olja","mg/L",0.05,"ni relevantno",5.0000000000000001E-3]
[4220,"Molibden-filt.","µg/L",24,200,2.4]
[7010,"Naftalen","µg/L",2,130]
[8420,"n-Heksan","µg/L",0.2,1.2,0.02]
[4230,"Nikelj-filt.","µg/L",4,34]
[2160,"Nitrat","mg/l",null,"ni relevantno"]
[2150,"Nitrit","mg/L NO2","ni relevantno","ni relevantno","ni relevantno"]
[3260,"Nonilfenoli","µg/L",0.3,2]
[3270,"Oktilfenoli","µg/L",0.1,"ni relevantno"]
[6484,"Pendimetalin","µg/L",0.3,3,0.03]
[6155,"Pentaklorobenzen","µg/L",7.0000000000000001E-3,"ni relevantno"]
[5170,"Pentaklorofenol","µg/L",0.4,1]
[8900,"PFOS","µg/L",6.4999999999999997E-4,36]
[7180,"policiklični aromatski ogljikovodiki PAO (vsota)","µg/L","ni relevantno","ni relevantno"]
[3080,"Poliklorirani bifenili (PCB) (vsota-6 Ballschm.)","µg/L",0.01,"ni relevantno",3.0000000000000001E-3]
[4260,"Selen-filt.","µg/L",6,72,0.6]
[6240,"Simazin","µg/L",1,4]
[2170,"Sulfat","mg/L SO4",150,"ni relevantno",15]
[4290,"Svinec-filt.","µg/L",1.2,14]
[6280,"Terbutilazin","µg/L",0.5,5.3,0.05]
[6290,"Terbutrin","µg/L",6.5000000000000002E-2,0.34]
[8120,"Tetrakloroeten (tetrakloroetilen)","µg/L",10,"ni relevantno"]
[8060,"Tetraklorometan","µg/L",12,"ni relevantno"]
[8200,"Toluen","µg/L",74,740,7.4]
[3310,"Tributilkositrove spojine","µg/L",2.0000000000000001E-4,1.5E-3]
[6485,"Trifluralin","µg/L",0.03,"ni relevantno"]
[6169,"Triklorobenzeni","µg/L",0.4,"ni relevantno"]
[8130,"Trikloroeten (trikloroetilen)","µg/L",10,"ni relevantno"]
[8010,"Triklorometan (kloroform)","µg/L",2.5,"ni relevantno"]
[4340,"Živo srebro-filt.","µg/L","ni relevantno",7.2499999999999995E-2]

{"sheet":"Sifrant","index":12,"n_rows":1646,"n_cols":18,"rows_kept":1646,"cut":false,"hidden":true,"merged":[]}
["ID občine","Ime občine",null,"ID postaje","Vodotok","Ime postaje",null,"Šifra","Opis",null,null,null,"Naziv izvajalca OM","Ulica","Hišna številka","Poštna številka ","Ime pošte","Davčna številka"]
[null,null,null,null,null,null,null,null,null,null,"DA"]
[1,"Ajdovščina",null,1020,"Mura","Cmurek",null,"01","Kmetijska proizvodnja in lov ter z njima povezane storitve",null,"NE",null,"Bioinstitut","Rudolfa Steinerja",7,4000,"Čakovec",68643934]
[213,"Ankaran",null,1030,"Mura - kanal Vizjak","Vizjakov kanal",null,"011","Pridelovanje netrajnih rastlin",null,null,null,"Euroinspekt Croatiakontrola","Karlovačka cesta","4L",10000,"Zagreb"]
[195,"Apače",null,1040,"Mlinski potok","11 Mlinski kanal",null,"0111","Pridelovanje žit (razen riža), stročnic in oljnic",null,null,null,"Eurofins ERICo Slovenija","Koroška cesta",58,3320,"Velenje",63543877]
[2,"Beltinci",null,1050,"Mura","Črnci",null,"01110","Pridelovanje žit (razen riža), stročnic in oljnic",null,null,null,"Institut Jožef Štefan","Jamova cesta",39,1000,"Ljubljana",55560822]
[148,"Benedikt",null,1058,"Mura","Gornja Radgona",null,"0112","Pridelovanje riža",null,null,null,"Nacionalni inštitut za biologijo","Večna pot",111,1000,"Ljubljana",83534784]
[149,"Bistrica ob Sotli",null,1060,"Mura","Gornja Radgona I",null,"01120","Pridelovanje riža",null,null,null,"NLZOH","Prvomajska ulica",1,2000,"Maribor",19651295]
[3,"Bled",null,1070,"Mura","Petanjci",null,"0113","Pridelovanje zelenjadnic in melon, korenovk in gomoljnic",null,null,null,"Univerza v Ljubljani, Biotehniška fakulteta","Jamnikarjeva ",101,1000,"Ljubljana",94761795]
[150,"Bloke",null,1080,"Mura","Veržej",null,"01130","Pridelovanje zelenjadnic in melon, korenovk in gomoljnic",null,null,null,"Zavod za ribištvo Slovenije","Spodnje Gameljne","61A",1211,"Ljubljana-Šmartno",83921419]
[4,"Bohinj",null,1089,"Mura","Mursko Središče",null,"0114","Pridelovanje sladkornega trsa"]
[5,"Borovnica",null,1090,"Mura","Petišovci",null,"01140","Pridelovanje sladkornega trsa"]
[6,"Bovec",null,1100,"Kučnica","Cankova",null,"0115","Pridelovanje tobaka"]
[151,"Braslovče",null,1110,"Ščavnica","Zgornja Ščavnica",null,"01150","Pridelovanje tobaka"]
[7,"Brda",null,1120,"Ščavnica","Ivanjševci",null,"0116","Pridelovanje rastlin za vlakna"]
[8,"Brezovica",null,1130,"Ščavnica","Žihlava",null,"01160","Pridelovanje rastlin za vlakna"]
[9,"Brežice",null,1138,"Ščavnica","Pristava",null,"0119","Pridelovanje cvetja in drugih enoletnih rastlin"]
[152,"Cankova",null,1140,"Ščavnica","Pristava I",null,"01190","Pridelovanje cvetja in drugih enoletnih rastlin"]
[11,"Celje",null,1150,"Turja","Branoslavci",null,"012","Gojenje trajnih nasadov"]
[12,"Cerklje na Gorenjskem",null,1160,"Ledava","Sotina",null,"0121","Vinogradništvo"]
[13,"Cerknica",null,1165,"Ledava","Nuskova",null,"01210","Vinogradništvo"]
[14,"Cerkno",null,1170,"Ledava","Pertoča",null,"0122","Gojenje tropskega in subtropskega sadja"]
[153,"Cerkvenjak",null,1180,"Ledava","Pertoča I",null,"01220","Gojenje tropskega in subtropskega sadja"]
[196,"Cirkulane",null,1190,"Ledava","Domajinci",null,"0123","Gojenje citrusov"]
[15,"Črenšovci",null,1200,"Ledava","Domajinci I",null,"01230","Gojenje citrusov"]
[16,"Črna na Koroškem",null,1210,"Ledava","Polana",null,"0124","Gojenje pečkatega in koščičastega sadja"]
[17,"Črnomelj",null,1220,"Ledava","Polana I",null,"01240","Gojenje pečkatega in koščičastega sadja"]
[18,"Destrnik",null,1240,"Ledava","Murska Sobota",null,"0125","Gojenje drugih sadnih dreves in grmovnic"]
[19,"Divača",null,1250,"Ledava","Dolnja Lendava",null,"01250","Gojenje drugih sadnih dreves in grmovnic"]
[154,"Dobje pri Planini",null,1260,"Ledava","Čentiba",null,"0126","Pridelovanje oljnih sadežev"]
[20,"Dobrepolje",null,1270,"Lukaj potok","Dolnji Slaveči",null,"01260","Pridelovanje oljnih sadežev"]
[155,"Dobrna",null,1280,"Črnec","Krašči",null,"0127","Gojenje rastlin za izdelavo napitkov"]
[21,"Dobrova - Polhov Gradec",null,1290,"Mačkovski potok","Mačkovci",null,"01270","Gojenje rastlin za izdelavo napitkov"]
[156,"Dobrovnik",null,1300,"Martjanski potok","Martjanci",null,"0128","Gojenje začimbnih, aromatskih in zdravilnih rastlin"]
[22,"Dol pri Ljubljani",null,1310,"Kobiljski potok","Kobilje",null,"01280","Gojenje začimbnih, aromatskih in zdravilnih rastlin"]
[157,"Dolenjske Toplice",null,1312,"Kobiljski potok","Kobilje I",null,"0129","Gojenje drugih trajnih nasadov"]
[23,"Domžale",null,1320,"Kobiljski potok","Mostje",null,"01290","Gojenje drugih trajnih nasadov"]
[24,"Dornava",null,1330,"Kobiljski potok","Dolnja Lendava",null,"013","Razmnoževanje rastlin"]
[25,"Dravograd",null,1335,"Ivanjševski potok","Središče",null,"0130","Razmnoževanje rastlin"]
[26,"Duplek",null,1340,"Črnec","Dolnja Lendava",null,"01300","Razmnoževanje rastlin"]
[27,"Gorenja vas - Poljane",null,1350,"Velika Krka","Hodoš",null,"014","Živinoreja"]
[28,"Gorišnica",null,1355,"Velika Krka","Hodoš I",null,"0141","Prireja mleka"]
[207,"Gorje",null,2005,"Drava","Črneče",null,"01410","Prireja mleka"]
[29,"Gornja Radgona",null,2010,"Drava","HE Dravograd",null,"0142","Druga govedoreja"]
[30,"Gornji Grad",null,2030,"Drava","Vuhred",null,"01420","Druga govedoreja"]
[31,"Gornji Petrovci",null,2032,"Drava","Vuhred I",null,"0143","Konjereja"]
[158,"Grad",null,2080,"Drava","Maribor",null,"01430","Konjereja"]
[32,"Grosuplje",null,2100,"Drava","Zgornji Breg",null,"0144","Reja kamel"]
[159,"Hajdina",null,2110,"Drava","Ptuj",null,"01440","Reja kamel"]
[160,"Hoče-Slivnica",null,2120,"Drava","Spodnji Breg",null,"0145","Reja drobnice"]
[161,"Hodoš",null,2130,"Drava","Zabovci",null,"01450","Reja drobnice"]
[162,"Horjul",null,2138,"Drava","Jez Markovci",null,"0146","Prašičereja"]
[34,"Hrastnik",null,2140,"Drava kanal HE Formin","HE Formin",null,"01460","Prašičereja"]
[35,"Hrpelje-Kozina",null,2149,"Drava","Borl",null,"0147","Reja perutnine"]
[36,"Idrija",null,2150,"Drava","Borl I",null,"01470","Reja perutnine"]
[37,"Ig",null,2160,"Drava","Zavrč",null,"0149","Reja drugih živali"]
[38,"Ilirska Bistrica",null,2190,"Drava","Ormož kopališče",null,"01490","Reja drugih živali"]
[39,"Ivančna Gorica",null,2200,"Drava","Ormož",null,"015","Mešano kmetijstvo"]
[40,"Izola",null,2210,"Meža","Topla",null,"0150","Mešano kmetijstvo"]
[41,"Jesenice",null,2220,"Meža","Črna",null,"01500","Mešano kmetijstvo"]
[163,"Jezersko",null,2230,"Meža","Podklanc",null,"016","Storitve za kmetijsko proizvodnjo, priprava pridelkov"]
[42,"Juršinci",null,2240,"Meža","Podklanc I",null,"0161","Storitve za rastlinsko pridelavo"]
[43,"Kamnik",null,2250,"Meža","Otiški Vrh I",null,"01610","Storitve za rastlinsko pridelavo"]
[44,"Kanal ob Soči",null,2260,"Meža","Otiški Vrh",null,"0162","Storitve za živinorejo, razen veterinarskih"]
[45,"Kidričevo",null,2270,"Topla","Topla",null,"01620","Storitve za živinorejo, razen veterinarskih"]
[46,"Kobarid",null,2280,"Bistra","Pristava",null,"0163","Priprava pridelkov"]
[47,"Kobilje",null,2290,"Javorski potok","Javorje",null,"01630","Priprava pridelkov"]
[48,"Kočevje",null,2300,"Javorski potok","Črna",null,"0164","Obdelava semen"]
[49,"Komen",null,2310,"Jazbina","Žerjav",null,"01640","Obdelava semen"]
[164,"Komenda",null,2311,"Jazbina","Žerjav I",null,"017","Lovstvo"]
[50,"Koper",null,2320,"Šumec","Mežica",null,"0170","Lovstvo"]
[197,"Kostanjevica na Krki",null,2330,"Jamniški potok","Poljana",null,"01700","Lovstvo"]
[165,"Kostel",null,2340,"Mislinja","Mislinja",null,"02","Gozdarstvo"]
[51,"Kozje",null,2350,"Mislinja","Šentilj",null,"021","Gojenje gozdov in druge gozdarske dejavnosti"]
[52,"Kranj",null,2360,"Mislinja","Dovže",null,"0210","Gojenje gozdov in druge gozdarske dejavnosti"]
[53,"Kranjska Gora",null,2370,"Mislinja","Dovže I",null,"02100","Gojenje gozdov in druge gozdarske dejavnosti"]
[166,"Križevci pri Ljutomeru",null,2372,"Mislinja","Dovže II",null,"022","Sečnja"]
[54,"Krško",null,2380,"Mislinja","Slovenj Gradec",null,"0220","Sečnja"]
[55,"Kungota",null,2390,"Mislinja","Otiški Vrh I",null,"02200","Sečnja"]
[56,"Kuzma",null,2400,"Mislinja","Otiški Vrh",null,"023","Nabiranje gozdnih dobrin, razen lesa"]
[57,"Laško",null,2410,"Suhodolnica","Podgorje",null,"0230","Nabiranje gozdnih dobrin, razen lesa"]
[58,"Lenart",null,2418,"Suhodolnica","Stari Trg",null,"02300","Nabiranje gozdnih dobrin, razen lesa"]
[59,"Lendava",null,2420,"Suhodolnica","Stari Trg I",null,"024","Storitve za gozdarstvo"]
[60,"Litija",null,2430,"Bistrica","Muta",null,"0240","Storitve za gozdarstvo"]
[61,"Ljubljana",null,2432,"Bistrica","Muta I",null,"02400","Storitve za gozdarstvo"]
[62,"Ljubno",null,2440,"Vuhredščica","Hudi Kot",null,"03","Ribištvo in gojenje vodnih organizmov"]
[63,"Ljutomer",null,2450,"Vuhredščica","Orlica",null,"031","Ribištvo"]
[64,"Logatec",null,2460,"Brezniški potok","Remšnik",null,"0311","Morsko ribištvo"]
[208,"Log-Dragomer",null,2470,"Velka","Lehen",null,"03110","Morsko ribištvo"]
[65,"Loška dolina",null,2480,"Potočnikov potok","Brezni Vrh",null,"0312","Sladkovodno ribištvo"]
[66,"Loški Potok",null,2490,"Črmenica","Gradišče",null,"03120","Sladkovodno ribištvo"]
[167,"Lovrenc na Pohorju",null,2500,"Črmenica","Ožbalt",null,"032","Gojenje vodnih organizmov"]
[67,"Luče",null,2510,"Radoljna","Pesek",null,"0321","Gojenje morskih organizmov"]
[68,"Lukovica",null,2520,"Radoljna","Lovrenc na Pohorju",null,"03210","Gojenje morskih organizmov"]
[69,"Majšperk",null,2525,"Radoljna","Puščava",null,"0322","Gojenje sladkovodnih organizmov"]
[198,"Makole",null,2530,"Radoljna","Ruta",null,"03220","Gojenje sladkovodnih organizmov"]
[70,"Maribor",null,2540,"Lobnica","Šumik",null,"05","Pridobivanje premoga"]
[168,"Markovci",null,2550,"Lobnica","Smolnik",null,"051","Pridobivanje črnega premoga"]
[71,"Medvode",null,2560,"Lobnica","Ruše",null,"0510","Pridobivanje črnega premoga"]
[72,"Mengeš",null,2570,"Grajena","Ptuj",null,"05100","Pridobivanje črnega premoga"]
[73,"Metlika",null,2580,"Rogoznica","Rogoznica",null,"052","Pridobivanje rjavega premoga in lignita"]
[74,"Mežica",null,2600,"Dravinja","Zreče",null,"0520","Pridobivanje rjavega premoga in lignita"]
[169,"Miklavž na Dravskem polju",null,2610,"Dravinja","Draža vas",null,"05200","Pridobivanje rjavega premoga in lignita"]
[75,"Miren-Kostanjevica",null,2620,"Dravinja","Loče",null,"06","Pridobivanje surove nafte in zemeljskega plina"]
[212,"Mirna",null,2630,"Dravinja","Poljčane",null,"061","Pridobivanje surove nafte"]
[170,"Mirna Peč",null,2640,"Dravinja","Makole",null,"0610","Pridobivanje surove nafte"]
[76,"Mislinja",null,2650,"Dravinja","Videm I",null,"06100","Pridobivanje surove nafte"]
[199,"Mokronog-Trebelno",null,2652,"Dravinja","Videm",null,"062","Pridobivanje zemeljskega plina"]
[77,"Moravče",null,2660,"Oplotnica","Hudi Vrh",null,"0620","Pridobivanje zemeljskega plina"]
[78,"Moravske Toplice",null,2667,"Oplotnica","Perovec",null,"06200","Pridobivanje zemeljskega plina"]
[79,"Mozirje",null,2670,"Oplotnica","Draža vas",null,"07","Pridobivanje rud"]
[80,"Murska Sobota",null,2680,"Ličenca","Laže",null,"071","Pridobivanje železove rude"]
[81,"Muta",null,2690,"Ložnica","V Zidu",null,"0710","Pridobivanje železove rude"]
[82,"Naklo",null,2693,"Ložnica","Spodnja Ložnica I",null,"07100","Pridobivanje železove rude"]
[83,"Nazarje",null,2700,"Bistrica","Močnik",null,"072","Pridobivanje rud neželeznih kovin"]
[84,"Nova Gorica",null,2710,"Bistrica","Slovenska Bistrica",null,"0721","Pridobivanje uranove in torijeve rude"]
[85,"Novo mesto",null,2715,"Bistrica","Slovenska Bistrica I",null,"07210","Pridobivanje uranove in torijeve rude"]
[86,"Odranci",null,2719,"Rogatnica","Podlehnik I",null,"0729","Pridobivanje rud drugih neželeznih kovin"]
[171,"Oplotnica",null,2720,"Rogatnica","Podlehnik",null,"07290","Pridobivanje rud drugih neželeznih kovin"]
[87,"Ormož",null,2730,"Polskava","Zgornja Polskava",null,"08","Pridobivanje rudnin in kamnin"]
[88,"Osilnica",null,2740,"Polskava","Medvedce",null,"081","Pridobivanje kamna, peska in gline"]
[89,"Pesnica",null,2750,"Polskava","Tržec I",null,"0811","Pridobivanje kamna"]
[90,"Piran",null,2754,"Polskava","Tržec",null,"08110","Pridobivanje kamna"]
[91,"Pivka",null,2760,"Devina","Brinje",null,"0812","Pridobivanje gramoza, peska, gline"]
[92,"Podčetrtek",null,2770,"Hočki potok","Hoče",null,"08120","Pridobivanje gramoza, peska, gline"]
[172,"Podlehnik",null,2780,"Polanski potok","Slivnica",null,"089","Pridobivanje drugih rudnin in kamnin"]
[93,"Podvelka",null,2790,"Framski potok","Fram",null,"0891","Pridobivanje mineralov za kemikalije in gnojila"]
[200,"Poljčane",null,2800,"Studenčnica","Spodnji Breg",null,"08910","Pridobivanje mineralov za kemikalije in gnojila"]
[173,"Polzela",null,2810,"Zvirenčina","Formin",null,"0892","Pridobivanje šote"]
[94,"Postojna",null,2820,"Pesnica","Jedlovnik",null,"08920","Pridobivanje šote"]
[174,"Prebold",null,2830,"Pesnica","Ranca",null,"0893","Pridobivanje soli"]
[95,"Preddvor",null,2840,"Pesnica","Šmarjeta",null,"08930","Pridobivanje soli"]
[175,"Prevalje",null,2850,"Pesnica","Pernica",null,"0899","Drugo pridobivanje rudnin in kamnin"]
[96,"Ptuj",null,2860,"Pristavsko jezero","Mučno",null,"08990","Drugo pridobivanje rudnin in kamnin"]
[97,"Puconci",null,2870,"Pesnica","Pristava",null,"09","Storitve za rudarstvo"]
[98,"Rače-Fram",null,2880,"Pesnica","Gočova",null,"091","Storitve za pridobivanje nafte in zemeljskega plina"]
[99,"Radeče",null,2900,"Pesnica","Zamušani I",null,"0910","Storitve za pridobivanje nafte in zemeljskega plina"]
[100,"Radenci",null,2902,"Pesnica","Zamušani",null,"09100","Storitve za pridobivanje nafte in zemeljskega plina"]
[101,"Radlje ob Dravi",null,2910,"Globovnica","Lenart",null,"099","Storitve za drugo rudarjenje"]
[102,"Radovljica",null,2920,"Velka","Lenart",null,"0990","Storitve za drugo rudarjenje"]
[103,"Ravne na Koroškem",null,2930,"Drvanja","Brengova",null,"09900","Storitve za drugo rudarjenje"]
[176,"Razkrižje",null,2940,"Cvetkovski potok","Podgorci",null,"10","Proizvodnja živil"]
[209,"Rečica ob Savinji",null,2950,"Sejanski potok","Senešci",null,"101","Proizvodnja mesa in mesnih izdelkov"]
[201,"Renče-Vogrsko",null,2960,"Trnava","Središče ob Dravi",null,"1011","Proizvodnja mesa, razen perutninskega"]
[104,"Ribnica",null,3010,"Sava Dolinka","Podkoren",null,"10110","Proizvodnja mesa, razen perutninskega"]
[177,"Ribnica na Pohorju",null,3014,"Sava Dolinka","Kranjska Gora I",null,"1012","Proizvodnja perutninskega mesa"]
[106,"Rogaška Slatina",null,3015,"Sava Dolinka","Kranjska Gora",null,"10120","Proizvodnja perutninskega mesa"]
[105,"Rogašovci",null,3020,"Sava Dolinka","Gozd Martuljek",null,"1013","Proizvodnja mesnih izdelkov"]
[107,"Rogatec",null,3025,"Sava Dolinka","Mojstrana",null,"10130","Proizvodnja mesnih izdelkov"]
[108,"Ruše",null,3030,"Sava Dolinka","Mojstrana I",null,"102","Predelava in konzerviranje rib, rakov in mehkužcev"]
[178,"Selnica ob Dravi",null,3040,"Sava Dolinka","Dovje",null,"1020","Predelava in konzerviranje rib, rakov in mehkužcev"]
[109,"Semič",null,3060,"Sava Dolinka","Jesenice",null,"10200","Predelava in konzerviranje rib, rakov in mehkužcev"]
[110,"Sevnica",null,3080,"Sava Dolinka","Blejski most",null,"103","Predelava in konzerviranje sadja in zelenjave"]
[111,"Sežana",null,3090,"Bistrica","Mojstrana",null,"1031","Predelava in konzerviranje krompirja"]
[112,"Slovenj Gradec",null,3100,"Bistrica","Mojstrana I",null,"10310","Predelava in konzerviranje krompirja"]
[113,"Slovenska Bistrica",null,3105,"Karavanke iztok","Hrušica",null,"1032","Proizvodnja sadnih in zelenjavnih sokov"]
[114,"Slovenske Konjice",null,3108,"Javornik","Slovenski Javornik",null,"10320","Proizvodnja sadnih in zelenjavnih sokov"]
[179,"Sodražica",null,3110,"Javornik","Javornik",null,"1039","Druga predelava in konzerviranje sadja in zelenjave"]
[180,"Solčava",null,3115,"Završnica","Pri Žagi",null,"10390","Druga predelava in konzerviranje sadja in zelenjave"]
[202,"Središče ob Dravi",null,3130,"Radovna","Srednja Radovna",null,"104","Proizvodnja rastlinskih in živalskih olj in maščob"]
[115,"Starše",null,3140,"Radovna","Fužine",null,"1041","Proizvodnja olja in maščob"]
[203,"Straža",null,3150,"Radovna","Spodnja Radovna",null,"10410","Proizvodnja olja in maščob"]
[181,"Sveta Ana",null,3170,"Radovna","Grabče",null,"1042","Proizvodnja margarine in podobnih jedilnih maščob"]
[204,"Sveta Trojica v Slovenskih goricah",null,3180,"Radovna","Podhom",null,"10420","Proizvodnja margarine in podobnih jedilnih maščob"]
[182,"Sveti Andraž v Slovenskih goricah",null,3190,"Radovna","Vintgar",null,"105","Predelava mleka"]
[116,"Sveti Jurij ob Ščavnici",null,3200,"Sava Bohinjka","Sveti Janez",null,"1051","Mlekarstvo in sirarstvo"]
[210,"Sveti Jurij v Slovenskih goricah",null,3220,"Sava Bohinjka","Soteska",null,"10510","Mlekarstvo in sirarstvo"]
[205,"Sveti Tomaž",null,3250,"Sava Bohinjka","Bodešče",null,"1052","Proizvodnja sladoleda"]
[33,"Šalovci",null,3258,"Savica","Ukanc I",null,"10520","Proizvodnja sladoleda"]
[183,"Šempeter-Vrtojba",null,3260,"Savica","Ukanc",null,"106","Mlinarstvo, proizvodnja škroba in škrobnih izdelkov"]
[117,"Šenčur",null,3280,"Bohinjsko Jezero","Sveti Duh",null,"1061","Mlinarstvo"]
[118,"Šentilj",null,3285,"Mostnica","Stara Fužina I",null,"10610","Mlinarstvo"]
[119,"Šentjernej",null,3290,"Mostnica","Stara Fužina",null,"1062","Proizvodnja škroba in škrobnih izdelkov"]
[120,"Šentjur",null,3300,"Mostnica","Stara Fužina II",null,"10620","Proizvodnja škroba in škrobnih izdelkov"]
[211,"Šentrupert",null,3320,"Bistrica","Bohinjska Bistrica",null,"107","Proizvodnja pekarskih izdelkov in testenin"]
[121,"Škocjan",null,3330,"Predorski potok","Bohinjska Bistrica",null,"1071","Proizvodnja kruha, svežega peciva in slaščic"]
[122,"Škofja Loka",null,3340,"Blejsko jezero","Bled",null,"10710","Proizvodnja kruha, svežega peciva in slaščic"]
[123,"Škofljica",null,3342,"Mišca","Mala Zaka",null,"1072","Proizvodnja prepečenca in piškotov; proizvodnja trajnega peciva in slaščic"]
[124,"Šmarje pri Jelšah",null,3343,"Krivica","Mala Zaka",null,"10720","Proizvodnja prepečenca in piškotov; proizvodnja trajnega peciva in slaščic"]
[206,"Šmarješke Toplice",null,3344,"Solznik","Zaka",null,"1073","Proizvodnja testenin"]
[125,"Šmartno ob Paki",null,3350,"Blejsko Jezero","Mlino",null,"10730","Proizvodnja testenin"]
[194,"Šmartno pri Litiji",null,3360,"Blejsko jezero","Zaka",null,"108","Proizvodnja drugih prehrambenih izdelkov"]
[126,"Šoštanj",null,3370,"Natega","Mlino",null,"1081","Proizvodnja sladkorja"]
[127,"Štore",null,3375,"Ušivc","Bled",null,"10810","Proizvodnja sladkorja"]
[184,"Tabor",null,3380,"Mišca","Rečica",null,"1082","Proizvodnja kakava, čokolade in sladkornih izdelkov"]
[10,"Tišina",null,3390,"Jezernica","Mlino",null,"10820","Proizvodnja kakava, čokolade in sladkornih izdelkov"]
[128,"Tolmin",null,3400,"Jezernica","Mlino I",null,"1083","Predelava čaja in kave"]
[129,"Trbovlje",null,3410,"Sava","Radovljica",null,"10830","Predelava čaja in kave"]
[130,"Trebnje",null,3420,"Sava","Radovljica I",null,"1084","Proizvodnja začimb, dišav in drugih dodatkov"]
[185,"Trnovska vas",null,3430,"Sava","Mlaka",null,"10840","Proizvodnja začimb, dišav in drugih dodatkov"]
[186,"Trzin",null,3440,"Sava","Globoko",null,"1085","Proizvodnja pripravljenih jedi in obrokov"]
[131,"Tržič",null,3460,"Sava","Podnart",null,"10850","Proizvodnja pripravljenih jedi in obrokov"]
[132,"Turnišče",null,3465,"Sava","Okroglo",null,"1086","Proizvodnja homogeniziranih in dietetičnih živil"]
[133,"Velenje",null,3480,"Sava","Kranj",null,"10860","Proizvodnja homogeniziranih in dietetičnih živil"]
[187,"Velika Polana",null,3490,"Sava","Kranj I",null,"1089","Proizvodnja drugih prehrambenih izdelkov, drugje nerazvrščenih"]
[134,"Velike Lašče",null,3500,"Sava","Prebačevo",null,"10890","Proizvodnja drugih prehrambenih izdelkov, drugje nerazvrščenih"]
[188,"Veržej",null,3510,"Sava","Mavčiče",null,"109","Proizvodnja krmil in hrane za hišne živali"]
[135,"Videm",null,3530,"Sava","Medno",null,"1091","Proizvodnja krmil"]
[136,"Vipava",null,3540,"Sava","Tacen",null,"10910","Proizvodnja krmil"]
[137,"Vitanje",null,3550,"Sava","Črnuče",null,"1092","Proizvodnja hrane za hišne živali"]
[138,"Vodice",null,3560,"Sava","Tomačevo",null,"10920","Proizvodnja hrane za hišne živali"]
[139,"Vojnik",null,3568,"Sava","Šentjakob I",null,"11","Proizvodnja pijač"]
[189,"Vransko",null,3570,"Sava","Šentjakob",null,"110","Proizvodnja pijač"]
[140,"Vrhnika",null,3580,"Sava","Podgrad",null,"1101","Proizvodnja žganih pijač"]
[141,"Vuzenica",null,3590,"Sava","Dolsko",null,"11010","Proizvodnja žganih pijač"]
[142,"Zagorje ob Savi",null,3600,"Sava","Laze",null,"1102","Proizvodnja vina iz grozdja"]
[143,"Zavrč",null,3610,"Sava","Jevnica",null,"11020","Proizvodnja vina iz grozdja"]
[144,"Zreče",null,3620,"Sava","Kresnice",null,"1103","Proizvodnja sadnih vin in podobnih fermentiranih pijač"]
[190,"Žalec",null,3630,"Sava","Pogonik",null,"11030","Proizvodnja sadnih vin in podobnih fermentiranih pijač"]
[146,"Železniki",null,3650,"Sava","Litija I",null,"1104","Proizvodnja aromatiziranih vin iz grozdja"]
[191,"Žetale",null,3660,"Sava","Litija",null,"11040","Proizvodnja aromatiziranih vin iz grozdja"]
[147,"Žiri",null,3670,"Sava","Ponoviče",null,"1105","Proizvodnja piva"]
[192,"Žirovnica",null,3672,"Sava","Ponoviče I",null,"11050","Proizvodnja piva"]
[193,"Žužemberk",null,3680,"Sava","Mošenik",null,"1106","Proizvodnja slada"]
[null,null,null,3690,"Sava","Renke",null,"11060","Proizvodnja slada"]
[null,null,null,3700,"Sava","Zagorje",null,"1107","Proizvodnja brezalkoholnih pijač, mineralnih in drugih stekleničenih vod"]
[null,null,null,3710,"Sava","Trbovlje",null,"11070","Proizvodnja brezalkoholnih pijač, mineralnih in drugih stekleničenih vod"]
[null,null,null,3725,"Sava","Hrastnik",null,"12","Proizvodnja tobačnih izdelkov"]
[null,null,null,3730,"Sava","Suhadol",null,"120","Proizvodnja tobačnih izdelkov"]
[null,null,null,3740,"Sava","Radeče",null,"1200","Proizvodnja tobačnih izdelkov"]
[null,null,null,3770,"Sava","Sevnica",null,"12000","Proizvodnja tobačnih izdelkov"]
[null,null,null,3790,"Sava","Krško I",null,"13","Proizvodnja tekstilij"]
[null,null,null,3810,"Sava","Mrtvice",null,"131","Priprava in predenje tekstilnih vlaken"]
[null,null,null,3820,"Sava","Skopice",null,"1310","Priprava in predenje tekstilnih vlaken"]
[null,null,null,3830,"Sava","Brežice",null,"13100","Priprava in predenje tekstilnih vlaken"]
[null,null,null,3840,"Sava","Čatež",null,"132","Tkanje tekstilij"]
[null,null,null,3850,"Sava","Čatež I",null,"1320","Tkanje tekstilij"]
[null,null,null,3900,"Sava","Jesenice na Dolenjskem",null,"13200","Tkanje tekstilij"]
[null,null,null,4010,"Lipnica","Ovsiše",null,"133","Dodelava tekstilij"]
[null,null,null,4020,"Lipnica","Ovsiše I",null,"1330","Dodelava tekstilij"]
[null,null,null,4025,"Lipnica","Ovsiše II",null,"13300","Dodelava tekstilij"]
[null,null,null,4030,"Tržiška Bistrica","Jelendol",null,"139","Proizvodnja drugih tekstilij"]
[null,null,null,4040,"Tržiška Bistrica","Tržič",null,"1391","Proizvodnja pletenih in kvačkanih materialov"]
[null,null,null,4050,"Tržiška Bistrica","Preska",null,"13910","Proizvodnja pletenih in kvačkanih materialov"]
[null,null,null,4060,"Tržiška Bistrica","Zgornje Duplje I",null,"1392","Proizvodnja končnih tekstilnih izdelkov, razen oblačil"]
[null,null,null,4070,"Tržiška Bistrica","Zgornje Duplje",null,"13920","Proizvodnja končnih tekstilnih izdelkov, razen oblačil"]
[null,null,null,4080,"Tržiška Bistrica","Podbrezje",null,"1393","Proizvodnja preprog"]
[null,null,null,4090,"Kanal Tržiške Bistrice","Bistrica",null,"13930","Proizvodnja preprog"]
[null,null,null,4095,"Mošenik","Lajb",null,"1394","Proizvodnja vrvi, vrvic in mrež"]
[null,null,null,4100,"Mošenik","Tržič",null,"13940","Proizvodnja vrvi, vrvic in mrež"]
[null,null,null,4110,"Mošenik","Tržič I",null,"1395","Proizvodnja netkanih tekstilij in izdelkov iz njih, razen oblačil"]
[null,null,null,4120,"Kokra","Kokra I",null,"13950","Proizvodnja netkanih tekstilij in izdelkov iz njih, razen oblačil"]
[null,null,null,4130,"Kokra","Kokra",null,"1396","Proizvodnja tehničnega in industrijskega tekstila"]
[null,null,null,4140,"Kokra","Britof",null,"13960","Proizvodnja tehničnega in industrijskega tekstila"]
[null,null,null,4150,"Kokra","Britof I",null,"1399","Proizvodnja drugje nerazvrščenih tekstilij"]
[null,null,null,4155,"Kokra","Kranj II",null,"13990","Proizvodnja drugje nerazvrščenih tekstilij"]
[null,null,null,4160,"Kokra","Kranj",null,"14","Proizvodnja oblačil"]
[null,null,null,4170,"Kokra","Kranj I",null,"141","Proizvodnja oblačil, razen krznenih"]
[null,null,null,4180,"Jezernica","Jezersko",null,"1411","Proizvodnja usnjenih oblačil"]
[null,null,null,4190,"Sora","Suha",null,"14110","Proizvodnja usnjenih oblačil"]
[null,null,null,4200,"Sora","Suha I",null,"1412","Proizvodnja delovnih oblačil"]
[null,null,null,4206,"Sora","Medvode I",null,"14120","Proizvodnja delovnih oblačil"]
[null,null,null,4208,"Sora","Medvode",null,"1413","Proizvodnja drugih vrhnjih oblačil"]
[null,null,null,4209,"Sora","Medvode II",null,"14130","Proizvodnja drugih vrhnjih oblačil"]
[null,null,null,4210,"Poljanska Sora","Žiri",null,"1414","Proizvodnja spodnjega perila"]
[null,null,null,4215,"Poljanska Sora","Žiri II",null,"14140","Proizvodnja spodnjega perila"]
[null,null,null,4220,"Poljanska Sora","Žiri I",null,"1419","Proizvodnja drugih oblačil, pokrival ter dodatkov"]
[null,null,null,4222,"Poljanska Sora","Žiri III",null,"14190","Proizvodnja drugih oblačil, pokrival ter dodatkov"]
[null,null,null,4225,"Poljanska Sora","Hotavlje",null,"142","Proizvodnja krznenih izdelkov"]
[null,null,null,4230,"Poljanska Sora","Zminec",null,"1420","Proizvodnja krznenih izdelkov"]
[null,null,null,4240,"Poljanska Sora","Zminec I",null,"14200","Proizvodnja krznenih izdelkov"]
[null,null,null,4250,"Brebovščica","Gornja Dobrava",null,"143","Proizvodnja pletenih in kvačkanih oblačil"]
[null,null,null,4260,"Ločivnica","Volča",null,"1431","Proizvodnja nogavic"]
[null,null,null,4270,"Selška Sora","Železniki",null,"14310","Proizvodnja nogavic"]
[null,null,null,4280,"Selška Sora","Dolenja vas",null,"1439","Proizvodnja drugih pletenih in kvačkanih oblačil"]
[null,null,null,4290,"Selška Sora","Dolenja vas I",null,"14390","Proizvodnja drugih pletenih in kvačkanih oblačil"]
[null,null,null,4292,"Selška Sora","Dolenja vas II",null,"15","Proizvodnja usnja, usnjenih in sorodnih izdelkov"]
[null,null,null,4298,"Selška Sora","Vešter",null,"151","Strojenje in dodelava usnja in krzna; proizvodnja potovalne galanterije in sedlarskih izdelkov"]
[null,null,null,4300,"Selška Sora","Škofja Loka",null,"1511","Strojenje in dodelava usnja in krzna"]
[null,null,null,4310,"Selška Sora","Škofja Loka I",null,"15110","Strojenje in dodelava usnja in krzna"]
[null,null,null,4312,"Struga","Reteče",null,"1512","Proizvodnja potovalne galanterije, sedlarskih in jermenarskih izdelkov"]
[null,null,null,4313,"Neimenovani (Drenaža)","Reteče",null,"15120","Proizvodnja potovalne galanterije, sedlarskih in jermenarskih izdelkov"]
[null,null,null,4315,"Neimenovani K2","Spodnja Senica",null,"152","Proizvodnja obutve"]
[null,null,null,4317,"Neimenovani Pri Mlinu","Ladja",null,"1520","Proizvodnja obutve"]
[null,null,null,4318,"Neimenovani 8","Ladja",null,"15200","Proizvodnja obutve"]
[null,null,null,4320,"Gameljščica","Povodje",null,"16","Obdelava in predelava lesa; proizvodnja izdelkov iz lesa, plute, slame in protja, razen pohištva"]
[null,null,null,4330,"Gameljščica","Zgornje Gameljne",null,"161","Žaganje, skobljanje in impregniranje lesa"]
[null,null,null,4340,"Poljšak","Skaručna",null,"1610","Žaganje, skobljanje in impregniranje lesa"]
[null,null,null,4350,"Vojšnica-Dobrava","Vojsko",null,"16100","Žaganje, skobljanje in impregniranje lesa"]
[null,null,null,4360,"Kamniška Bistrica","Kamniška Bistrica",null,"162","Proizvodnja lesenih, plutovinastih, pletarskih izdelkov"]
[null,null,null,4370,"Kamniška Bistrica","Iverje",null,"1621","Proizvodnja furnirja in plošč na osnovi lesa"]
[null,null,null,4380,"Kamniška Bistrica","Stahovica",null,"16210","Proizvodnja furnirja in plošč na osnovi lesa"]
[null,null,null,4390,"Kamniška Bistrica","Stranje",null,"1622","Proizvodnja sestavljenega parketa"]
[null,null,null,4400,"Kamniška Bistrica","Kamnik I",null,"16220","Proizvodnja sestavljenega parketa"]
[null,null,null,4410,"Kamniška Bistrica","Kamnik",null,"1623","Stavbno mizarstvo in tesarstvo"]
[null,null,null,4420,"Industrijski Kanal","Kamnik",null,"16230","Stavbno mizarstvo in tesarstvo"]
[null,null,null,4430,"Kamniška Bistrica","Vir",null,"1624","Proizvodnja lesene embalaže"]
[null,null,null,4440,"Kamniška Bistrica","Domžale",null,"16240","Proizvodnja lesene embalaže"]
[null,null,null,4445,"Kamniška Bistrica","Bišče",null,"1629","Proizvodnja drugih izdelkov iz lesa, plute, slame in protja"]
[null,null,null,4450,"Mlinščica","Domžale",null,"16290","Proizvodnja drugih izdelkov iz lesa, plute, slame in protja"]
[null,null,null,4460,"Kamniška Bistrica","Beričevo I",null,"17","Proizvodnja papirja in izdelkov iz papirja"]
[null,null,null,4470,"Kamniška Bistrica","Beričevo",null,"171","Proizvodnja vlaknin, papirja in kartona"]
[null,null,null,4480,"Nevljica","Nevlje I",null,"1711","Proizvodnja vlaknin"]
[null,null,null,4490,"Nevljica","Nevlje",null,"17110","Proizvodnja vlaknin"]
[null,null,null,4500,"Rača","Dob",null,"1712","Proizvodnja papirja in kartona"]
[null,null,null,4510,"Rača","Podrečje I",null,"17120","Proizvodnja papirja in kartona"]
[null,null,null,4515,"Rača","Vir",null,"172","Proizvodnja izdelkov iz papirja in kartona"]
[null,null,null,4520,"Rača","Podrečje",null,"1721","Proizvodnja valovitega papirja in kartona ter papirne in kartonske embalaže"]
[null,null,null,4530,"Radomlja","Trnjava",null,"17210","Proizvodnja valovitega papirja in kartona ter papirne in kartonske embalaže"]
[null,null,null,4540,"Radomlja z Drtijščico","Trnjava I",null,"1722","Proizvodnja gospodinjskih, higienskih in toaletnih potrebščin iz papirja"]
[null,null,null,4550,"Mlinščica","Vir",null,"17220","Proizvodnja gospodinjskih, higienskih in toaletnih potrebščin iz papirja"]
[null,null,null,4553,"Pšata","Pšata",null,"1723","Proizvodnja pisarniških potrebščin iz papirja"]
[null,null,null,4558,"Pšata","Moste",null,"17230","Proizvodnja pisarniških potrebščin iz papirja"]
[null,null,null,4560,"Pšata","Moste I",null,"1724","Proizvodnja tapet"]
[null,null,null,4570,"Pšata","Topole",null,"17240","Proizvodnja tapet"]
[null,null,null,4575,"Pšata","Loka",null,"1729","Proizvodnja drugih izdelkov iz papirja in kartona"]
[null,null,null,4580,"Razbremenilnik Pšate","Zgornje Jarše I",null,"17290","Proizvodnja drugih izdelkov iz papirja in kartona"]
[null,null,null,4590,"Razbremenilnik Pšate","Zgornje Jarše",null,"18","Tiskarstvo in razmnoževanje posnetih nosilcev zapisa"]
[null,null,null,4600,"Pšata","Bišče",null,"181","Tiskarstvo in z njim povezane storitve"]
[null,null,null,4605,"Mlinščica","Kleče",null,"1811","Tiskanje časopisov"]
[null,null,null,4610,"Reka","Breg",null,"18110","Tiskanje časopisov"]
[null,null,null,4620,"Medija","Loke",null,"1812","Drugo tiskanje"]
[null,null,null,4626,"Medija","Zagorje II",null,"18120","Drugo tiskanje"]
[null,null,null,4628,"Medija","Zagorje",null,"1813","Priprava za tisk in objavo"]
[null,null,null,4630,"Medija","Zagorje I",null,"18130","Priprava za tisk in objavo"]
[null,null,null,4640,"Šklendrovec","Šklendrovec",null,"1814","Knjigoveštvo in sorodne dejavnosti"]
[null,null,null,4650,"Sopota","Žebnik",null,"18140","Knjigoveštvo in sorodne dejavnosti"]
[null,null,null,4660,"Mirna","Martinja vas I",null,"182","Razmnoževanje posnetih nosilcev zapisa"]
[null,null,null,4670,"Mirna","Martinja vas",null,"1820","Razmnoževanje posnetih nosilcev zapisa"]
[null,null,null,4671,"Mirna","Martinja vas II",null,"18200","Razmnoževanje posnetih nosilcev zapisa"]
[null,null,null,4680,"Mirna","Gabrje",null,"19","Proizvodnja koksa in naftnih derivatov"]
[null,null,null,4690,"Mirna","Gabrje I",null,"191","Proizvodnja koksa"]
[null,null,null,4695,"Mirna","Jelovec",null,"1910","Proizvodnja koksa"]
[null,null,null,4700,"Mirna","Boštanj",null,"19100","Proizvodnja koksa"]
[null,null,null,4705,"Sevnična","Orešje",null,"192","Proizvodnja naftnih derivatov"]
[null,null,null,4706,"Sevnična","Metni Vrh",null,"1920","Proizvodnja naftnih derivatov"]
[null,null,null,4710,"Sotla","Rogatec",null,"19200","Proizvodnja naftnih derivatov"]
[null,null,null,4740,"Sotla","Rakovec I",null,"20","Proizvodnja kemikalij, kemičnih izdelkov"]
[null,null,null,4750,"Sotla","Rakovec",null,"201","Proizvodnja osnovnih kemikalij, gnojil in dušikovih spojin, plastičnih mas in sintetičnega kavčuka v primarni obliki"]
[null,null,null,4760,"Mestinjščica","Sodna vas I",null,"2011","Proizvodnja tehničnih plinov"]
[null,null,null,4761,"Mestinjščica","Sodna vas",null,"20110","Proizvodnja tehničnih plinov"]
[null,null,null,4770,"Mestinjščica","Sodna vas II",null,"2012","Proizvodnja barvil in pigmentov"]
[null,null,null,4780,"Bistrica","Zagaj",null,"20120","Proizvodnja barvil in pigmentov"]
[null,null,null,4790,"Bistrica","Zagaj I",null,"2013","Proizvodnja drugih anorganskih osnovnih kemikalij"]
[null,null,null,4791,"Bistrica","Zagaj II",null,"20130","Proizvodnja drugih anorganskih osnovnih kemikalij"]
[null,null,null,4800,"Bistrica","Bistrica ob Sotli",null,"2014","Proizvodnja drugih organskih osnovnih kemikalij"]
[null,null,null,4810,"Bistrica","Bistrica ob Sotli I",null,"20140","Proizvodnja drugih organskih osnovnih kemikalij"]
[null,null,null,4820,"Kolpa","Petrina",null,"2015","Proizvodnja gnojil in dušikovih spojin"]
[null,null,null,4828,"Kolpa","Sodevci",null,"20150","Proizvodnja gnojil in dušikovih spojin"]
[null,null,null,4830,"Kolpa","Radenci",null,"2016","Proizvodnja plastičnih mas v primarni obliki"]
[null,null,null,4840,"Kolpa","Radenci I",null,"20160","Proizvodnja plastičnih mas v primarni obliki"]
[null,null,null,4850,"Kolpa","Radenci II",null,"2017","Proizvodnja sintetičnega kavčuka v primarni obliki"]
[null,null,null,4860,"Kolpa","Metlika",null,"20170","Proizvodnja sintetičnega kavčuka v primarni obliki"]
[null,null,null,4870,"Čabranka","Črni Potok",null,"202","Proizvodnja razkužil, pesticidov in drugih agrokemičnih izdelkov"]
[null,null,null,4890,"Črni potok","Črni Potok",null,"2020","Proizvodnja razkužil, pesticidov in drugih agrokemičnih izdelkov"]
[null,null,null,4900,"Belica","Papeži",null,"20200","Proizvodnja razkužil, pesticidov in drugih agrokemičnih izdelkov"]
[null,null,null,4910,"Rinža Zajetje","Slovenska vas",null,"203","Proizvodnja barv, lakov in podobnih premazov, tiskarskih barv in kitov"]
[null,null,null,4920,"Rinža","Slovenska vas",null,"2030","Proizvodnja barv, lakov in podobnih premazov, tiskarskih barv in kitov"]
[null,null,null,4930,"Rinža","Mahovnik",null,"20300","Proizvodnja barv, lakov in podobnih premazov, tiskarskih barv in kitov"]
[null,null,null,4940,"Rinža","Kočevje",null,"204","Proizvodnja mil in pralnih sredstev, čistilnih in polirnih sredstev, parfumov in toaletnih sredstev"]
[null,null,null,4950,"Rinža","Livold",null,"2041","Proizvodnja mil in pralnih sredstev, čistilnih in polirnih sredstev"]
[null,null,null,4960,"Rinža","Livold I",null,"20410","Proizvodnja mil in pralnih sredstev, čistilnih in polirnih sredstev"]
[null,null,null,4965,"Bilpa","Spodnja Bilpa",null,"2042","Proizvodnja parfumov in toaletnih sredstev"]
[null,null,null,4969,"Lahinja","Gradac I",null,"20420","Proizvodnja parfumov in toaletnih sredstev"]
[null,null,null,4970,"Lahinja","Gradac",null,"205","Proizvodnja razstreliv, lepil, eteričnih olj in drugih kemičnih izdelkov"]
[null,null,null,4975,"Dobličica","Dobliče",null,"2051","Proizvodnja razstreliv"]
[null,null,null,4980,"Krupa","Krupa",null,"20510","Proizvodnja razstreliv"]
[null,null,null,4985,"Krupa","Dolenjce I",null,"2052","Proizvodnja sredstev za lepljenje"]
[null,null,null,4986,"Krupa","Dolenjce II",null,"20520","Proizvodnja sredstev za lepljenje"]
[null,null,null,4990,"Krupa","Dolenjce",null,"2053","Proizvodnja eteričnih olj"]
[null,null,null,4995,"Obrh","Metlika",null,"20530","Proizvodnja eteričnih olj"]
[null,null,null,5030,"Ljubljanica","Vrhnika",null,"2059","Proizvodnja drugih kemičnih izdelkov"]
[null,null,null,5040,"Ljubljanica","Kamin",null,"20590","Proizvodnja drugih kemičnih izdelkov"]
[null,null,null,5043,"Ljubljanica","Bevke",null,"206","Proizvodnja umetnih vlaken"]
[null,null,null,5049,"Ljubljanica","Lipe I",null,"2060","Proizvodnja umetnih vlaken"]
[null,null,null,5050,"Ljubljanica","Lipe",null,"20600","Proizvodnja umetnih vlaken"]
[null,null,null,5070,"Ljubljanica","Špica",null,"21","Proizvodnja farmacevtskih surovin in preparatov"]
[null,null,null,5075,"Ljubljanica","Ambrožev trg",null,"211","Proizvodnja farmacevtskih surovin"]
[null,null,null,5078,"Ljubljanica","Moste I",null,"2110","Proizvodnja farmacevtskih surovin"]
[null,null,null,5080,"Ljubljanica","Moste",null,"21100","Proizvodnja farmacevtskih surovin"]
[null,null,null,5090,"Ljubljanica","Vevče",null,"212","Proizvodnja farmacevtskih preparatov"]
[null,null,null,5100,"Ljubljanica","Zgornji Kašelj",null,"2120","Proizvodnja farmacevtskih preparatov"]
[null,null,null,5110,"Ljubljanica","Zalog",null,"21200","Proizvodnja farmacevtskih preparatov"]
[null,null,null,5120,"Velika Ljubljanica","Mirke",null,"22","Proizvodnja izdelkov iz gume in plastičnih mas"]
[null,null,null,5130,"Velika Ljubljanica","Mirke I",null,"221","Proizvodnja izdelkov iz gume"]
[null,null,null,5140,"Mala Ljubljanica","Vrhnika-Hrib",null,"2211","Proizvodnja in obnavljanje gumijastih plaščev in zračnic za vozila"]
[null,null,null,5150,"Mala Ljubljanica","Mirke",null,"22110","Proizvodnja in obnavljanje gumijastih plaščev in zračnic za vozila"]
[null,null,null,5160,"Veliki Močilnik","Vrhnika",null,"2219","Proizvodnja drugih izdelkov iz gume"]
[null,null,null,5170,"Mali Močilnik","Vrhnika",null,"22190","Proizvodnja drugih izdelkov iz gume"]
[null,null,null,5180,"Hribščica","Vrhnika I",null,"222","Proizvodnja plastičnih izdelkov"]
[null,null,null,5190,"Hribščica","Vrhnika",null,"2221","Proizvodnja plošč, folij, cevi in profilov iz plastičnih mas"]
[null,null,null,5200,"Podlipščica","Razor",null,"22210","Proizvodnja plošč, folij, cevi in profilov iz plastičnih mas"]
[null,null,null,5210,"Kanal Podlipščice","Razor",null,"2222","Proizvodnja embalaže iz plastičnih mas"]
[null,null,null,5220,"Lahovka","Sap",null,"22220","Proizvodnja embalaže iz plastičnih mas"]
[null,null,null,5230,"Podlipščica","Sap",null,"2223","Proizvodnja izdelkov iz plastičnih mas za gradbeništvo"]
[null,null,null,5240,"Ljubija","Verd I",null,"22230","Proizvodnja izdelkov iz plastičnih mas za gradbeništvo"]
[null,null,null,5250,"Ljubija","Verd",null,"2229","Proizvodnja drugih izdelkov iz plastičnih mas"]
[null,null,null,5260,"Ceglarjev potok","Verd",null,"22290","Proizvodnja drugih izdelkov iz plastičnih mas"]
[null,null,null,5270,"Bistra","Bistra I",null,"23","Proizvodnja nekovinskih mineralnih izdelkov"]
[null,null,null,5280,"Bistra","Bistra",null,"231","Proizvodnja stekla in steklenih izdelkov"]
[null,null,null,5290,"Galetovi Izviri","Bistra",null,"2311","Proizvodnja ravnega stekla"]
[null,null,null,5300,"Zupanovi Izviri","Bistra",null,"23110","Proizvodnja ravnega stekla"]
[null,null,null,5310,"Grajski Izviri","Bistra",null,"2312","Oblikovanje in obdelava ravnega stekla"]
[null,null,null,5320,"Zornica","Drenov Grič",null,"23120","Oblikovanje in obdelava ravnega stekla"]
[null,null,null,5325,"Borovniščica","Borovnica I",null,"2313","Proizvodnja votlega stekla"]
[null,null,null,5326,"Borovniščica","Borovnica II",null,"23130","Proizvodnja votlega stekla"]
[null,null,null,5327,"Borovniščica","Borovnica III",null,"2314","Proizvodnja steklenih vlaken"]
[null,null,null,5330,"Borovniščica","Borovnica",null,"23140","Proizvodnja steklenih vlaken"]
[null,null,null,5340,"Podpeški potok","Podpeč",null,"2319","Proizvodnja in oblikovanje drugih vrst stekla ter tehničnih steklenih izdelkov"]
[null,null,null,5350,"Podpeški potok","Podpeč I",null,"23190","Proizvodnja in oblikovanje drugih vrst stekla ter tehničnih steklenih izdelkov"]
[null,null,null,5360,"Jezerski potok","Jezero",null,"232","Proizvodnja ognjevzdržne keramike"]
[null,null,null,5370,"Kušljanov Graben","Notranje Gorice",null,"2320","Proizvodnja ognjevzdržne keramike"]
[null,null,null,5380,"Drobtinka","Brezovica",null,"23200","Proizvodnja ognjevzdržne keramike"]
[null,null,null,5390,"Radna","Brezovica",null,"233","Proizvodnja neognjevzdržne gradbene keramike"]
[null,null,null,5400,"Iška","Iški Vintgar",null,"2331","Proizvodnja keramičnih ploščic in oblog"]
[null,null,null,5410,"Iška","Iška I",null,"23310","Proizvodnja keramičnih ploščic in oblog"]
[null,null,null,5420,"Iška","Iška",null,"2332","Proizvodnja strešnikov, opeke in drugih gradbenih izdelkov iz žgane gline"]
[null,null,null,5425,"Iška","Iška Vas",null,"23320","Proizvodnja strešnikov, opeke in drugih gradbenih izdelkov iz žgane gline"]
[null,null,null,5430,"Iška","Tomišelj",null,"234","Proizvodnja drugih izdelkov iz keramike in porcelana"]
[null,null,null,5440,"Ižica","Ig",null,"2341","Proizvodnja gospodinjske in okrasne keramike"]
[null,null,null,5441,"Ižica","Ig I",null,"23410","Proizvodnja gospodinjske in okrasne keramike"]
[null,null,null,5450,"Ižica","Barjanska šola",null,"2342","Proizvodnja sanitarne keramike"]
[null,null,null,5460,"Želimeljščica","Želimlje",null,"23420","Proizvodnja sanitarne keramike"]
[null,null,null,5470,"Škofeljščica","Škofljica",null,"2343","Proizvodnja izolatorjev in izolacijskih elementov iz keramike"]
[null,null,null,5479,"Gradaščica","Bokalce",null,"23430","Proizvodnja izolatorjev in izolacijskih elementov iz keramike"]
[null,null,null,5480,"Gradaščica","Razori",null,"2344","Proizvodnja druge tehnične keramike"]
[null,null,null,5490,"Gradaščica","Belica",null,"23440","Proizvodnja druge tehnične keramike"]
[null,null,null,5500,"Gradaščica","Dvor",null,"2349","Proizvodnja drugih keramičnih izdelkov"]
[null,null,null,5510,"Velika Božna","Smolnik",null,"23490","Proizvodnja drugih keramičnih izdelkov"]
[null,null,null,5520,"Mala Božna","Polhov Gradec",null,"235","Proizvodnja cementa, apna, mavca"]
[null,null,null,5530,"Mala Voda","Briše",null,"2351","Proizvodnja cementa"]
[null,null,null,5540,"Šujica","Razori",null,"23510","Proizvodnja cementa"]
[null,null,null,5550,"Glinščica","Rožna Dolina",null,"2352","Proizvodnja apna in mavca"]
[null,null,null,5560,"Bloščica","Bloke I",null,"23520","Proizvodnja apna in mavca"]
[null,null,null,5570,"Bloščica","Bloke",null,"236","Proizvodnja izdelkov iz betona, cementa, mavca"]
[null,null,null,5580,"Veliki Obrh","Vrhnika pri Ložu",null,"2361","Proizvodnja betonskih izdelkov za gradbeništvo"]
[null,null,null,5590,"Veliki Obrh","Pudob",null,"23610","Proizvodnja betonskih izdelkov za gradbeništvo"]
[null,null,null,5600,"Mali Obrh","Kozarišče",null,"2362","Proizvodnja izdelkov iz mavca za gradbeništvo"]
[null,null,null,5610,"Mali Obrh","Snežnik",null,"23620","Proizvodnja izdelkov iz mavca za gradbeništvo"]
[null,null,null,5620,"Mali Obrh","Šmarata",null,"2363","Proizvodnja sveže betonske mešanice"]
[null,null,null,5630,"Obrh","Golobinska jama",null,"23630","Proizvodnja sveže betonske mešanice"]
[null,null,null,5650,"Stržen","Cemun",null,"2364","Proizvodnja malte"]
[null,null,null,5660,"Stržen","Obrh",null,"23640","Proizvodnja malte"]
[null,null,null,5670,"Stržen","Gorenje Jezero",null,"2365","Proizvodnja izdelkov iz vlaknatega cementa"]
[null,null,null,5680,"Stržen","Dolenje Jezero",null,"23650","Proizvodnja izdelkov iz vlaknatega cementa"]
[null,null,null,5690,"Stržen","Vodonos",null,"2369","Proizvodnja drugih izdelkov iz betona, cementa, mavca"]
[null,null,null,5700,"Gorički potok","Goričica",null,"23690","Proizvodnja drugih izdelkov iz betona, cementa, mavca"]
[null,null,null,5710,"Lipsenjščica","Lipsenj I",null,"237","Obdelava naravnega kamna"]
[null,null,null,5720,"Lipsenjščica","Lipsenj",null,"2370","Obdelava naravnega kamna"]
[null,null,null,5730,"Žerovniščica","Žerovnica",null,"23700","Obdelava naravnega kamna"]
[null,null,null,5740,"Grahovščica","Grahovo",null,"239","Proizvodnja brusilnih sredstev in drugih nekovinskih mineralnih izdelkov"]
[null,null,null,5750,"Martinjščica","Martinjak",null,"2391","Proizvodnja brusilnih sredstev"]
[null,null,null,5760,"Cerkniščica","Topol",null,"23910","Proizvodnja brusilnih sredstev"]
[null,null,null,5770,"Cerkniščica","Cerknica I",null,"2399","Proizvodnja drugih nekovinskih mineralnih izdelkov"]
[null,null,null,5772,"Cerkniščica","Cerknica",null,"23990","Proizvodnja drugih nekovinskih mineralnih izdelkov"]
[null,null,null,5780,"Rak","Mali naravni most",null,"24","Proizvodnja kovin"]
[null,null,null,5790,"Rak","Slivice",null,"241","Proizvodnja surovega železa, jekla, ferozlitin"]
[null,null,null,5800,"Pivka","Prestranek",null,"2410","Proizvodnja surovega železa, jekla, ferozlitin"]
[null,null,null,5810,"Pivka","Zalog",null,"24100","Proizvodnja surovega železa, jekla, ferozlitin"]
[null,null,null,5820,"Pivka","Postojnska jama",null,"242","Proizvodnja jeklenih cevi, votlih profilov in fitingov"]
[null,null,null,5830,"Nanoščica","Hrenovice",null,"2420","Proizvodnja jeklenih cevi, votlih profilov in fitingov"]
[null,null,null,5840,"Nanoščica","Mali Otok",null,"24200","Proizvodnja jeklenih cevi, votlih profilov in fitingov"]
[null,null,null,5850,"Unica","Planinska jama I",null,"243","Druga primarna predelava železa in jekla"]
[null,null,null,5860,"Unica","Planinska jama",null,"2431","Hladno vlečenje profilov"]
[null,null,null,5870,"Unica","Most v Malne",null,"24310","Hladno vlečenje profilov"]
[null,null,null,5880,"Unica","Hasberg",null,"2432","Hladno valjanje traku"]
[null,null,null,5890,"Unica","Most v Laze",null,"24320","Hladno valjanje traku"]
[null,null,null,5900,"Unica","Pod stenami",null,"2433","Hladno oblikovanje profilov in pregibanje"]
[null,null,null,5910,"Malenščica","Malni",null,"24330","Hladno oblikovanje profilov in pregibanje"]
[null,null,null,5920,"Hotenjka","Grčarevec",null,"2434","Hladno vlečenje žice"]
[null,null,null,5930,"Hotenjka","Hotedrščica",null,"24340","Hladno vlečenje žice"]
[null,null,null,5940,"Logaščica","Logatec",null,"244","Proizvodnja plemenitih in drugih neželeznih kovin"]
[null,null,null,5950,"Rovtarica","Rovte",null,"2441","Proizvodnja plemenitih kovin"]
[null,null,null,5960,"Petkovec","Zaplana",null,"24410","Proizvodnja plemenitih kovin"]
[null,null,null,6010,"Savinja","Solčava",null,"2442","Proizvodnja aluminija"]
[null,null,null,6020,"Savinja","Solčava I",null,"24420","Proizvodnja aluminija"]
[null,null,null,6040,"Savinja","Luče",null,"2443","Proizvodnja svinca, cinka in kositra"]
[null,null,null,6050,"Savinja","Ljubno",null,"24430","Proizvodnja svinca, cinka in kositra"]
[null,null,null,6060,"Savinja","Nazarje",null,"2444","Proizvodnja bakra"]
[null,null,null,6065,"Savinja","Mozirje",null,"24440","Proizvodnja bakra"]
[null,null,null,6068,"Savinja","Letuš I",null,"2445","Proizvodnja drugih neželeznih kovin"]
[null,null,null,6070,"Savinja","Letuš",null,"24450","Proizvodnja drugih neželeznih kovin"]
[null,null,null,6090,"Savinja","Latkova vas I",null,"2446","Proizvodnja jedrskega goriva"]
[null,null,null,6100,"Savinja","Latkova vas",null,"24460","Proizvodnja jedrskega goriva"]
[null,null,null,6110,"Podvinski Kanal","Šempeter",null,"245","Livarstvo"]
[null,null,null,6120,"Savinja","Medlog",null,"2451","Litje železa"]
[null,null,null,6130,"Savinja","Celje-kopališče",null,"24510","Litje železa"]
[null,null,null,6140,"Savinja","Celje II-brv",null,"2452","Litje jekla"]
[null,null,null,6142,"Savinja","Celje - Kapucinski most",null,"24520","Litje jekla"]
[null,null,null,6150,"Savinja","Celje I",null,"2453","Litje lahkih kovin"]
[null,null,null,6160,"Savinja","Celje",null,"24530","Litje lahkih kovin"]
[null,null,null,6200,"Savinja","Laško I",null,"2454","Litje drugih neželeznih kovin"]
[null,null,null,6202,"Savinja","Laško",null,"24540","Litje drugih neželeznih kovin"]
[null,null,null,6208,"Savinja","Veliko Širje",null,"25","Proizvodnja kovinskih izdelkov, razen strojev in naprav"]
[null,null,null,6210,"Savinja","Veliko Širje I",null,"251","Proizvodnja gradbenih kovinskih izdelkov"]
[null,null,null,6220,"Lučnica","Luče",null,"2511","Proizvodnja kovinskih konstrukcij in njihovih delov"]
[null,null,null,6230,"Dreta","Šmiklavž",null,"25110","Proizvodnja kovinskih konstrukcij in njihovih delov"]
[null,null,null,6240,"Dreta","Kraše",null,"2512","Proizvodnja kovinskega stavbnega pohištva"]
[null,null,null,6250,"Dreta","Pusto Polje",null,"25120","Proizvodnja kovinskega stavbnega pohištva"]
[null,null,null,6253,"Letošč","Letožnik",null,"252","Proizvodnja kotlov za centralno ogrevanje, kovinskih rezervoarjev in cistern"]
[null,null,null,6255,"Ljubija","Uršlja Gora",null,"2521","Proizvodnja radiatorjev in kotlov za centralno ogrevanje"]
[null,null,null,6260,"Paka","Zgornji Dolič",null,"25210","Proizvodnja radiatorjev in kotlov za centralno ogrevanje"]
[null,null,null,6280,"Paka","Velenje",null,"2529","Proizvodnja drugih kovinskih rezervoarjev in cistern"]
[null,null,null,6300,"Paka","Šoštanj",null,"25290","Proizvodnja drugih kovinskih rezervoarjev in cistern"]
[null,null,null,6330,"Paka","Šmartno",null,"253","Proizvodnja parnih kotlov, razen kotlov za centralno ogrevanje"]
[null,null,null,6340,"Paka","Rečica",null,"2530","Proizvodnja parnih kotlov, razen kotlov za centralno ogrevanje"]
[null,null,null,6350,"Lepena","Škale",null,"25300","Proizvodnja parnih kotlov, razen kotlov za centralno ogrevanje"]
[null,null,null,6360,"Lepena","Pesje",null,"254","Proizvodnja orožja in streliva"]
[null,null,null,6370,"Lepena","Pesje I",null,"2540","Proizvodnja orožja in streliva"]
[null,null,null,6380,"Lepena","Pesje II",null,"25400","Proizvodnja orožja in streliva"]
[null,null,null,6385,"Lepena","Pesje IV",null,"255","Kovanje, stiskanje, vtiskovanje in valjanje kovin; prašna metalurgija"]
[null,null,null,6390,"Lepena","Pesje III",null,"2550","Kovanje, stiskanje, vtiskovanje in valjanje kovin; prašna metalurgija"]
[null,null,null,6400,"Sopota","Škale",null,"25500","Kovanje, stiskanje, vtiskovanje in valjanje kovin; prašna metalurgija"]
[null,null,null,6410,"Velunja","Plešivec",null,"256","Površinska obdelava in prekrivanje kovin; mehanska obdelava kovin"]
[null,null,null,6415,"Velunja","Gaberke",null,"2561","Površinska obdelava in prekrivanje kovin"]
[null,null,null,6420,"Velunja","Šoštanj",null,"25611","Prekrivanje kovin s kovino"]
[null,null,null,6430,"Velunja","Ravne",null,"25619","Druga površinska in toplotna obdelava kovin"]
[null,null,null,6440,"Velunja","Družmirje",null,"2562","Mehanska obdelava kovin"]
[null,null,null,6450,"Bečovnica","Šoštanj",null,"25620","Mehanska obdelava kovin"]
[null,null,null,6460,"Bečovnica","Šoštanj I",null,"257","Proizvodnja jedilnega pribora, ključavnic, okovja, orodja"]
[null,null,null,6470,"Toplica","Šoštanj",null,"2571","Proizvodnja rezil in jedilnega pribora"]
[null,null,null,6490,"Bela voda","Grebenšek",null,"25710","Proizvodnja rezil in jedilnega pribora"]
[null,null,null,6500,"Šentflorjanščica","Šoštanj",null,"2572","Proizvodnja ključavnic, okovja"]
[null,null,null,6510,"Bolska","Ločica",null,"25720","Proizvodnja ključavnic, okovja"]
[null,null,null,6520,"Bolska","Kapla",null,"2573","Proizvodnja orodja"]
[null,null,null,6530,"Bolska","Dolenja vas I",null,"25731","Proizvodnja ročnega orodja"]
[null,null,null,6540,"Bolska","Dolenja vas",null,"25732","Proizvodnja orodja za stroje"]
[null,null,null,6550,"Bolska","Dolenja vas II",null,"259","Proizvodnja drugih kovinskih izdelkov"]
[null,null,null,6560,"Trebnik","Braslovče",null,"2591","Proizvodnja jeklenih bobnov, sodov in podobnih posod"]
[null,null,null,6570,"Trnavca","Kamenče",null,"25910","Proizvodnja jeklenih bobnov, sodov in podobnih posod"]
[null,null,null,6580,"Trnavca","Zakl",null,"2592","Proizvodnja lahke kovinske embalaže"]
[null,null,null,6590,"Lava","Žalec",null,"25920","Proizvodnja lahke kovinske embalaže"]
[null,null,null,6600,"Ložnica","Brezovec",null,"2593","Proizvodnja izdelkov iz žice, verig in vzmeti"]
[null,null,null,6610,"Ložnica","Medlog",null,"25930","Proizvodnja izdelkov iz žice, verig in vzmeti"]
[null,null,null,6620,"Ložnica","Levec",null,"2594","Proizvodnja vijačnega materiala, vezi"]
[null,null,null,6630,"Ložnica","Levec I",null,"25940","Proizvodnja vijačnega materiala, vezi"]
[null,null,null,6650,"Razbremenilnik Ložnice","Založe",null,"2599","Proizvodnja drugje nerazvrščenih kovinskih izdelkov"]
[null,null,null,6660,"Pirešica","Levec",null,"25990","Proizvodnja drugje nerazvrščenih kovinskih izdelkov"]
[null,null,null,6670,"Sušnica","Prešnik",null,"26","Proizvodnja računalnikov elektronskih in optičnih izdelkov"]
[null,null,null,6680,"Koprivnica","Loče",null,"261","Proizvodnja elektronskih komponent in plošč"]
[null,null,null,6690,"Voglajna","Črnolica",null,"2611","Proizvodnja elektronskih komponent"]
[null,null,null,6691,"Voglajna","Črnolica I",null,"26110","Proizvodnja elektronskih komponent"]
[null,null,null,6700,"Voglajna","Šentjur",null,"2612","Proizvodnja elektronskih plošč"]
[null,null,null,6705,"Voglajna","Šentjur I",null,"26120","Proizvodnja elektronskih plošč"]
[null,null,null,6710,"Voglajna","Štore",null,"262","Proizvodnja računalnikov in perifernih naprav"]
[null,null,null,6720,"Voglajna","Celje II",null,"2620","Proizvodnja računalnikov in perifernih naprav"]
[null,null,null,6730,"Voglajna s Hudinjo","Celje",null,"26200","Proizvodnja računalnikov in perifernih naprav"]
[null,null,null,6740,"Voglajna s Hudinjo","Celje I",null,"263","Proizvodnja komunikacijskih naprav"]
[null,null,null,6750,"Tratna","Tratna",null,"2630","Proizvodnja komunikacijskih naprav"]
[null,null,null,6760,"Slomščica","Grobelno",null,"26300","Proizvodnja komunikacijskih naprav"]
[null,null,null,6770,"Hudinja","Polže",null,"264","Proizvodnja elektronskih naprav za široko rabo"]
[null,null,null,6780,"Hudinja","Šmarjeta",null,"2640","Proizvodnja elektronskih naprav za široko rabo"]
[null,null,null,6790,"Hudinja","Škofja vas",null,"26400","Proizvodnja elektronskih naprav za široko rabo"]
[null,null,null,6800,"Hudinja","Spodnja Hudinja",null,"265","Proizvodnja merilnih, preizkuševalnih, navigacijskih instrumentov in naprav; proizvodnja ur"]
[null,null,null,6815,"Tesnica","Verpete",null,"2651","Proizvodnja merilnih, preizkuševalnih in navigacijskih instrumentov in naprav"]
[null,null,null,6820,"Vzhodna Ložnica","Bukovžlak",null,"26510","Proizvodnja merilnih, preizkuševalnih in navigacijskih instrumentov in naprav"]
[null,null,null,6830,"Rečica","Rečica",null,"2652","Proizvodnja ur"]
[null,null,null,6835,"Gračnica","Vodiško I",null,"26520","Proizvodnja ur"]
[null,null,null,6840,"Gračnica","Vodiško",null,"266","Proizvodnja sevalnih, elektromedicinskih in elektroterapevtskih naprav"]
[null,null,null,7010,"Krka","Gradiček",null,"2660","Proizvodnja sevalnih, elektromedicinskih in elektroterapevtskih naprav"]
[null,null,null,7020,"Krka","Krka",null,"26600","Proizvodnja sevalnih, elektromedicinskih in elektroterapevtskih naprav"]
[null,null,null,7029,"Krka","Podbukovje I",null,"267","Proizvodnja optičnih instrumentov in fotografske opreme"]
[null,null,null,7030,"Krka","Podbukovje",null,"2670","Proizvodnja optičnih instrumentov in fotografske opreme"]
[null,null,null,7040,"Krka","Dvor",null,"26700","Proizvodnja optičnih instrumentov in fotografske opreme"]
[null,null,null,7060,"Krka","Soteska",null,"268","Proizvodnja magnetnih in optičnih nosilcev zapisa"]
[null,null,null,7070,"Krka","Srebrniče",null,"2680","Proizvodnja magnetnih in optičnih nosilcev zapisa"]
[null,null,null,7080,"Krka","Novo mesto",null,"26800","Proizvodnja magnetnih in optičnih nosilcev zapisa"]
[null,null,null,7090,"Krka","Ločna",null,"27","Proizvodnja električnih naprav"]
[null,null,null,7100,"Krka","Otočec",null,"271","Proizvodnja elektromotorjev, generatorjev, transformatorjev ter naprav za distribucijo in krmiljenje elektrike"]
[null,null,null,7110,"Krka","Gorenja Gomila",null,"2711","Proizvodnja elektromotorjev, generatorjev in transformatorjev"]
[null,null,null,7120,"Krka","Dobrava",null,"27110","Proizvodnja elektromotorjev, generatorjev in transformatorjev"]
[null,null,null,7130,"Krka","Mršeča vas",null,"2712","Proizvodnja naprav za distribucijo in krmiljenje elektrike"]
[null,null,null,7140,"Krka","Malence",null,"27120","Proizvodnja naprav za distribucijo in krmiljenje elektrike"]
[null,null,null,7150,"Krka","Kostanjevica",null,"272","Proizvodnja baterij in akumulatorjev"]
[null,null,null,7160,"Krka","Podbočje",null,"2720","Proizvodnja baterij in akumulatorjev"]
[null,null,null,7170,"Krka","Cerklje",null,"27200","Proizvodnja baterij in akumulatorjev"]
[null,null,null,7180,"Krka","Boršt",null,"273","Proizvodnja oplaščenih vodnikov in naprav za ožičenje"]
[null,null,null,7190,"Krka","Krška vas",null,"2731","Proizvodnja kablov iz optičnih vlaken"]
[null,null,null,7200,"Grosupeljščica","Mlačevo",null,"27310","Proizvodnja kablov iz optičnih vlaken"]
[null,null,null,7210,"Šica","Mala Račna",null,"2732","Proizvodnja drugih električnih kablov in žic"]
[null,null,null,7212,"Šica","Loke",null,"27320","Proizvodnja drugih električnih kablov in žic"]
[null,null,null,7220,"Rašica","Rašica",null,"2733","Proizvodnja vtičnic, stikal in drugih naprav za ožičenje"]
[null,null,null,7230,"Poltarica","Gradiček",null,"27330","Proizvodnja vtičnic, stikal in drugih naprav za ožičenje"]
[null,null,null,7235,"Višnjica","Ivančna Gorica",null,"274","Proizvodnja naprav in opreme za razsvetljavo"]
[null,null,null,7240,"Višnjica","Trebnja Gorica",null,"2740","Proizvodnja naprav in opreme za razsvetljavo"]
[null,null,null,7245,"Globočec","Fužina",null,"27400","Proizvodnja naprav in opreme za razsvetljavo"]
[null,null,null,7250,"Tominčev Studenec","Podgozd",null,"275","Proizvodnja gospodinjskih naprav"]
[null,null,null,7260,"Radešca-Izvir","Podturn",null,"2751","Proizvodnja električnih gospodinjskih naprav"]
[null,null,null,7270,"Radešca","Meniška vas",null,"27510","Proizvodnja električnih gospodinjskih naprav"]
[null,null,null,7272,"Radešca","Meniška vas I",null,"2752","Proizvodnja neelektričnih gospodinjskih naprav"]
[null,null,null,7280,"Obrh","Obrh",null,"27520","Proizvodnja neelektričnih gospodinjskih naprav"]
[null,null,null,7290,"Sušica","Dolenjske Toplice I",null,"279","Proizvodnja drugih električnih naprav"]
[null,null,null,7300,"Sušica","Dolenjske Toplice",null,"2790","Proizvodnja drugih električnih naprav"]
[null,null,null,7308,"Temenica","Rožni Vrh I",null,"27900","Proizvodnja drugih električnih naprav"]
[null,null,null,7310,"Temenica","Rožni Vrh",null,"28","Proizvodnja drugih strojev in naprav"]
[null,null,null,7320,"Temenica","Vrhpeč",null,"281","Proizvodnja strojev za splošne namene"]
[null,null,null,7330,"Temenica","Goriška vas",null,"2811","Proizvodnja motorjev in turbin, razen za letala in motorna vozila"]
[null,null,null,7340,"Prečna","Prečna",null,"28110","Proizvodnja motorjev in turbin, razen za letala in motorna vozila"]
[null,null,null,7350,"Težka voda","Stopiče",null,"2812","Proizvodnja naprav za fluidno tehniko"]
[null,null,null,7360,"Težka voda","Gotna vas",null,"28120","Proizvodnja naprav za fluidno tehniko"]
[null,null,null,7370,"Radulja","Klevevž",null,"2813","Proizvodnja črpalk in kompresorjev"]
[null,null,null,7380,"Radulja","Škocjan",null,"28130","Proizvodnja črpalk in kompresorjev"]
[null,null,null,7390,"Lokavec","Zaloke",null,"2814","Proizvodnja pip in ventilov"]
[null,null,null,7400,"Pleterski potok","Dolnja Prekopa",null,"28140","Proizvodnja pip in ventilov"]
[null,null,null,7409,"Studena","Globočice pri Kostanjevici I",null,"2815","Proizvodnja ležajev, zobnikov in elementov za mehanski prenos energije"]
[null,null,null,7410,"Studena","Globočice",null,"28150","Proizvodnja ležajev, zobnikov in elementov za mehanski prenos energije"]
[null,null,null,7420,"Senuša","Malo Mraševo",null,"282","Proizvodnja drugih naprav za splošne namene"]
[null,null,null,7430,"Sušica","Podbočje",null,"2821","Proizvodnja peči in gorilnikov"]
[null,null,null,7440,"Bistrica","Sodražica",null,"28210","Proizvodnja peči in gorilnikov"]
[null,null,null,7441,"Bistrica","Sodražica I",null,"2822","Proizvodnja dvigalnih in transportnih naprav"]
[null,null,null,7450,"Bistrica","Ribnica I",null,"28220","Proizvodnja dvigalnih in transportnih naprav"]
[null,null,null,7460,"Bistrica","Ribnica",null,"2823","Proizvodnja pisarniških strojev in naprav (razen računalnikov in perifernih naprav)"]
[null,null,null,7470,"Tržiščica","Žlebič",null,"28230","Proizvodnja pisarniških strojev in naprav (razen računalnikov in perifernih naprav)"]
[null,null,null,7480,"Razbremenilnik Tržiščice","Žlebič",null,"2824","Proizvodnja ročnih strojev in naprav"]
[null,null,null,7488,"Ribnica","Prigorica I",null,"28240","Proizvodnja ročnih strojev in naprav"]
[null,null,null,7490,"Ribnica","Prigorica",null,"2825","Proizvodnja hladilnih in prezračevalnih naprav, razen za gospodinjstva"]
[null,null,null,7498,"Rakitnica","Blate",null,"28250","Proizvodnja hladilnih in prezračevalnih naprav, razen za gospodinjstva"]
[null,null,null,7500,"Rakitnica","Rakitnica",null,"2829","Proizvodnja drugih strojev in naprav za splošne namene"]
[null,null,null,7518,"Loški potok","Travnik I",null,"28290","Proizvodnja drugih strojev in naprav za splošne namene"]
[null,null,null,7520,"Loški potok","Travnik",null,"283","Proizvodnja kmetijskih in gozdarskih strojev"]
[null,null,null,8010,"Soča","Trenta",null,"2830","Proizvodnja kmetijskih in gozdarskih strojev"]
[null,null,null,8020,"Soča","Zgornja Soča",null,"28300","Proizvodnja kmetijskih in gozdarskih strojev"]
[null,null,null,8030,"Soča","Kršovec",null,"284","Proizvodnja obdelovalnih strojev"]
[null,null,null,8031,"Soča","Kršovec I",null,"2841","Proizvodnja strojev za oblikovanje in obdelavo kovin"]
[null,null,null,8040,"Soča","Čezsoča",null,"28410","Proizvodnja strojev za oblikovanje in obdelavo kovin"]
[null,null,null,8050,"Soča","Log Čezsoški I",null,"2849","Proizvodnja drugih obdelovalnih strojev"]
[null,null,null,8060,"Soča","Log Čezsoški",null,"28490","Proizvodnja drugih obdelovalnih strojev"]
[null,null,null,8080,"Soča","Kobarid I",null,"289","Proizvodnja drugih strojev za posebne namene"]
[null,null,null,8090,"Soča","Kobarid",null,"2891","Proizvodnja metalurških strojev"]
[null,null,null,8100,"Soča","Kamno",null,"28910","Proizvodnja metalurških strojev"]
[null,null,null,8110,"Soča","Volarje",null,"2892","Proizvodnja rudarskih in gradbenih strojev"]
[null,null,null,8120,"Soča","Tolmin",null,"28920","Proizvodnja rudarskih in gradbenih strojev"]
[null,null,null,8135,"Soča","Kanal",null,"2893","Proizvodnja strojev za živilsko in tobačno industrijo"]
[null,null,null,8140,"Soča","Plave",null,"28930","Proizvodnja strojev za živilsko in tobačno industrijo"]
[null,null,null,8150,"Soča","Šentmaver",null,"2894","Proizvodnja strojev za tekstilno, oblačilno in usnjarsko industrijo"]
[null,null,null,8160,"Soča","Mrzlek",null,"28940","Proizvodnja strojev za tekstilno, oblačilno in usnjarsko industrijo"]
[null,null,null,8180,"Soča","Solkan I",null,"2895","Proizvodnja strojev za industrijo papirja in kartona"]
[null,null,null,8190,"Soča","Solkan",null,"28950","Proizvodnja strojev za industrijo papirja in kartona"]
[null,null,null,8200,"Soča","Solkan meja",null,"2896","Proizvodnja strojev za plastiko in gumo"]
[null,null,null,8210,"Zadnjica","Trenta",null,"28960","Proizvodnja strojev za plastiko in gumo"]
[null,null,null,8220,"Lepena","Lepena",null,"2899","Proizvodnja strojev za druge posebne namene"]
[null,null,null,8228,"Koritnica","Spodnji Log",null,"28990","Proizvodnja strojev za druge posebne namene"]
[null,null,null,8230,"Koritnica","Log pod Mangartom",null,"29","Proizvodnja motornih vozil, prikolic in polprikolic"]
[null,null,null,8240,"Koritnica","Kal-Koritnica",null,"291","Proizvodnja motornih vozil"]
[null,null,null,8242,"Koritnica","Kal-Koritnica I",null,"2910","Proizvodnja motornih vozil"]
[null,null,null,8245,"kanal Roje","Log pod Mangartom",null,"29100","Proizvodnja motornih vozil"]
[null,null,null,8250,"Možnica","Log pod Mangartom",null,"292","Proizvodnja karoserij za vozila; proizvodnja prikolic, polprikolic"]
[null,null,null,8260,"Možnica","Log pod Mangartom I",null,"2920","Proizvodnja karoserij za vozila; proizvodnja prikolic, polprikolic"]
[null,null,null,8270,"Učja","Žaga",null,"29200","Proizvodnja karoserij za vozila; proizvodnja prikolic, polprikolic"]
[null,null,null,8280,"Idrija","Kobarid",null,"293","Proizvodnja delov in opreme za motorna vozila"]
[null,null,null,8290,"Idrija","Mlinsko",null,"2931","Proizvodnja električne in elektronske opreme za motorna vozila"]
[null,null,null,8300,"Ročica","Ladra",null,"29310","Proizvodnja električne in elektronske opreme za motorna vozila"]
[null,null,null,8310,"potok","Smast",null,"2932","Proizvodnja drugih delov in opreme za motorna vozila"]
[null,null,null,8320,"Volarja","Selišče",null,"29320","Proizvodnja drugih delov in opreme za motorna vozila"]
[null,null,null,8330,"Tolminka","Tolmin",null,"30","Proizvodnja drugih vozil in plovil"]
[null,null,null,8332,"Tolminka","Tolmin I",null,"301","Gradnja ladij in čolnov"]
[null,null,null,8340,"Zadlaščica","Zadlaz",null,"3011","Gradnja ladij in plavajočih konstrukcij"]
[null,null,null,8345,"Idrijca","Fežnar",null,"30110","Gradnja ladij in plavajočih konstrukcij"]
[null,null,null,8346,"Idrijca","Nad Podrotejo",null,"3012","Proizvodnja čolnov za razvedrilo in šport"]
[null,null,null,8350,"Idrijca","Podroteja I",null,"30120","Proizvodnja čolnov za razvedrilo in šport"]
[null,null,null,8351,"Idrijca-kanal","Podroteja",null,"302","Proizvodnja železniških in drugih tirnih vozil"]
[null,null,null,8360,"Idrijca","Podroteja",null,"3020","Proizvodnja železniških in drugih tirnih vozil"]
[null,null,null,8380,"Idrijca","Spodnja Idrija I",null,"30200","Proizvodnja železniških in drugih tirnih vozil"]
[null,null,null,8390,"Idrijca","Spodnja Idrija",null,"303","Proizvodnja zračnih in vesoljskih plovil"]
[null,null,null,8400,"Idrijca","Reka",null,"3030","Proizvodnja zračnih in vesoljskih plovil"]
[null,null,null,8410,"Idrijca","Dolenja Trebuša",null,"30300","Proizvodnja zračnih in vesoljskih plovil"]
[null,null,null,8420,"Idrijca","Plešce",null,"304","Proizvodnja bojnih vozil"]
[null,null,null,8430,"Idrijca","Oblaz",null,"3040","Proizvodnja bojnih vozil"]
[null,null,null,8440,"Idrijca","Spodnja voda",null,"30400","Proizvodnja bojnih vozil"]
[null,null,null,8450,"Idrijca","Hotešk",null,"309","Proizvodnja drugih vozil"]
[null,null,null,8451,"Divje jezero","Divje Jezero",null,"3091","Proizvodnja motornih koles"]
[null,null,null,8452,"Jezernica","Divje Jezero",null,"30910","Proizvodnja motornih koles"]
[null,null,null,8453,"Podroteja","Podroteja",null,"3092","Proizvodnja koles in invalidskih vozičkov"]
[null,null,null,8454,"Cerknica","Cerkno III",null,"30920","Proizvodnja koles in invalidskih vozičkov"]
[null,null,null,8455,"Cerknica","Cerkno II",null,"3099","Proizvodnja vprežnih in drugih vozil"]
[null,null,null,8457,"Cerknica","Cerkno I",null,"30990","Proizvodnja vprežnih in drugih vozil"]
[null,null,null,8460,"Cerknica","Cerkno",null,"31","Proizvodnja pohištva"]
[null,null,null,8470,"Zapoški potok","Trebenče",null,"310","Proizvodnja pohištva"]
[null,null,null,8478,"Trebuša","Dolenja Trebuša I",null,"3101","Proizvodnja pohištva za poslovne in prodajne prostore"]
[null,null,null,8480,"Trebuša","Dolenja Trebuša",null,"31010","Proizvodnja pohištva za poslovne in prodajne prostore"]
[null,null,null,8490,"Bača","Koritnica",null,"3102","Proizvodnja kuhinjskega pohištva"]
[null,null,null,8492,"Bača","Grahovo",null,"31020","Proizvodnja kuhinjskega pohištva"]
[null,null,null,8495,"Bača","Podmelec",null,"3103","Proizvodnja žimnic"]
[null,null,null,8500,"Bača","Bača pri Modreju",null,"31030","Proizvodnja žimnic"]
[null,null,null,8510,"Koritnica","Koritnica",null,"3109","Proizvodnja drugega pohištva"]
[null,null,null,8520,"Kneža","Kneža",null,"31090","Proizvodnja drugega pohištva"]
[null,null,null,8540,"Koren","Nova Gorica",null,"32","Druge raznovrstne predelovalne dejavnosti"]
[null,null,null,8545,"Koren","Nova Gorica I",null,"321","Proizvodnja nakita, bižuterije in podobnih izdelkov"]
[null,null,null,8546,"Belška Voda","Grapa",null,"3211","Kovanje kovancev"]
[null,null,null,8547,"Lokva","Predjama",null,"32110","Kovanje kovancev"]
[null,null,null,8549,"Izviri Pod Farovžem","Vipava",null,"3212","Proizvodnja nakita in podobnih izdelkov"]
[null,null,null,8550,"Vipava","Vipava",null,"32120","Proizvodnja nakita in podobnih izdelkov"]
[null,null,null,8560,"Vipava","Vipava I",null,"3213","Proizvodnja bižuterije"]
[null,null,null,8561,"Vipava","Vipava II",null,"32130","Proizvodnja bižuterije"]
[null,null,null,8565,"Vipava","Dolenje",null,"322","Proizvodnja glasbil"]
[null,null,null,8590,"Vipava","Dornberk",null,"3220","Proizvodnja glasbil"]
[null,null,null,8591,"Vipava","Zalošče",null,"32200","Proizvodnja glasbil"]
[null,null,null,8600,"Vipava","Miren",null,"323","Proizvodnja športne opreme"]
[null,null,null,8601,"Vipava","Miren I",null,"3230","Proizvodnja športne opreme"]
[null,null,null,8602,"Bela","Sanabor",null,"32300","Proizvodnja športne opreme"]
[null,null,null,8603,"Bela","Vipava",null,"324","Proizvodnja igrač in rekvizitov za igre in zabavo"]
[null,null,null,8610,"Močilnik","Podnanos",null,"3240","Proizvodnja igrač in rekvizitov za igre in zabavo"]
[null,null,null,8620,"Hubelj","Ajdovščina",null,"32400","Proizvodnja igrač in rekvizitov za igre in zabavo"]
[null,null,null,8630,"Hubelj","Ajdovščina I",null,"325","Proizvodnja medicinskih instrumentov, naprav in pripomočkov"]
[null,null,null,8640,"Branica","Branik",null,"3250","Proizvodnja medicinskih instrumentov, naprav in pripomočkov"]
[null,null,null,8650,"Lijak","Šmihel",null,"32500","Proizvodnja medicinskih instrumentov, naprav in pripomočkov"]
[null,null,null,8660,"Lijak","Volčja Draga",null,"329","Druge predelovalne dejavnosti"]
[null,null,null,8670,"Vogršček","Bezovljak",null,"3291","Proizvodnja metel in krtač"]
[null,null,null,8680,"Reka","Neblo",null,"32910","Proizvodnja metel in krtač"]
[null,null,null,8690,"Idrija","Golo Brdo",null,"3299","Drugje nerazvrščene predelovalne dejavnosti"]
[null,null,null,8700,"Kožbanjšček","Neblo",null,"32990","Drugje nerazvrščene predelovalne dejavnosti"]
[null,null,null,8710,"Nadiža","Potoki",null,"33","Popravila in montaža strojev in naprav"]
[null,null,null,8730,"Nadiža","Robič",null,"331","Popravila kovinskih izdelkov, strojev in naprav"]
[null,null,null,9010,"Reka","Zabiče",null,"3311","Popravila kovinskih izdelkov"]
[null,null,null,9015,"Reka","Trpčane",null,"33110","Popravila kovinskih izdelkov"]
[null,null,null,9020,"Reka","Koseze",null,"3312","Popravila strojev in naprav"]
[null,null,null,9030,"Reka","Trnovo",null,"33120","Popravila strojev in naprav"]
[null,null,null,9040,"Reka","Topolc",null,"3313","Popravila elektronskih in optičnih naprav"]
[null,null,null,9050,"Reka","Cerkvenikov Mlin",null,"33130","Popravila elektronskih in optičnih naprav"]
[null,null,null,9060,"Reka","Škoflje",null,"3314","Popravila električnih naprav"]
[null,null,null,9070,"Reka","Vreme",null,"33140","Popravila električnih naprav"]
[null,null,null,9077,"Reka","Škocjan II",null,"3315","Popravila in vzdrževanje ladij in čolnov"]
[null,null,null,9078,"Reka","Škocjan I",null,"33150","Popravila in vzdrževanje ladij in čolnov"]
[null,null,null,9080,"Reka","Škocjan",null,"3316","Popravila in vzdrževanje zračnih in vesoljskih plovil"]
[null,null,null,9090,"Reka","Velika dolina",null,"33160","Popravila in vzdrževanje zračnih in vesoljskih plovil"]
[null,null,null,9100,"Bistrica","Ilirska Bistrica",null,"3317","Popravila in vzdrževanje drugih prevoznih sredstev"]
[null,null,null,9108,"Molja","Zarečica",null,"33170","Popravila in vzdrževanje drugih prevoznih sredstev"]
[null,null,null,9110,"Padež","Ostrovica",null,"3319","Popravila drugih naprav"]
[null,null,null,9120,"Padež","Suhorje III",null,"33190","Popravila drugih naprav"]
[null,null,null,9130,"Padež","Suhorje II",null,"332","Montaža industrijskih strojev in naprav"]
[null,null,null,9140,"Padež","Suhorje I",null,"3320","Montaža industrijskih strojev in naprav"]
[null,null,null,9150,"Padež","Suhorje",null,"33200","Montaža industrijskih strojev in naprav"]
[null,null,null,9160,"Ločica","Brezovica",null,"35","Oskrba z električno energijo, plinom in paro"]
[null,null,null,9165,"Glinščica","Klanec pri Kozini",null,"351","Oskrba z električno energijo"]
[null,null,null,9170,"Osapska Reka","Osp",null,"3511","Proizvodnja električne energije"]
[null,null,null,9180,"Osapska Reka","Osp I",null,"35111","Proizvodnja električne energije v hidroelektrarnah"]
[null,null,null,9190,"Gabroviški potok","Osp",null,"35112","Proizvodnja električne energije v termoelektrarnah, jedrskih elektrarnah"]
[null,null,null,9200,"Rižana","Bezovica",null,"35119","Druga proizvodnja električne energije"]
[null,null,null,9210,"Rižana","Kubed II",null,"3512","Prenos električne energije"]
[null,null,null,9220,"Rižana","Kubed I",null,"35120","Prenos električne energije"]
[null,null,null,9230,"Rižana","Kubed",null,"3513","Distribucija električne energije"]
[null,null,null,9240,"Rižana","Dekani",null,"35130","Distribucija električne energije"]
[null,null,null,9250,"Rižana","Škofije",null,"3514","Trgovanje z električno energijo"]
[null,null,null,9260,"Hrastovski potok","Bezovica",null,"35140","Trgovanje z električno energijo"]
[null,null,null,9270,"Hrastovski potok","Bezovica-zajetje",null,"352","Oskrba s plinastimi gorivi"]
[null,null,null,9275,"Badaševica","Šalara",null,"3521","Proizvodnja plina"]
[null,null,null,9278,"Drnica","Pišine",null,"35210","Proizvodnja plina"]
[null,null,null,9280,"Drnica","Pišine I",null,"3522","Distribucija plinastih goriv po plinovodni mreži"]
[null,null,null,9290,"Dragonja","Planjave",null,"35220","Distribucija plinastih goriv po plinovodni mreži"]
[null,null,null,9300,"Dragonja","Podkaštel I",null,"3523","Trgovanje s plinastimi gorivi po plinovodni mreži"]
[null,null,null,9320,"Pinjevec","Škrline",null,"35230","Trgovanje s plinastimi gorivi po plinovodni mreži"]
[null,null,null,null,null,null,null,"353","Oskrba s paro in vročo vodo"]
[null,null,null,null,null,null,null,"3530","Oskrba s paro in vročo vodo"]
[null,null,null,null,null,null,null,"35300","Oskrba s paro in vročo vodo"]
[null,null,null,null,null,null,null,"36","Zbiranje, prečiščevanje in distribucija vode"]
[null,null,null,null,null,null,null,"360","Zbiranje, prečiščevanje in distribucija vode"]
[null,null,null,null,null,null,null,"3600","Zbiranje, prečiščevanje in distribucija vode"]
[null,null,null,null,null,null,null,"36000","Zbiranje, prečiščevanje in distribucija vode"]
[null,null,null,null,null,null,null,"37","Ravnanje z odplakami"]
[null,null,null,null,null,null,null,"370","Ravnanje z odplakami"]
[null,null,null,null,null,null,null,"3700","Ravnanje z odplakami"]
[null,null,null,null,null,null,null,"37000","Ravnanje z odplakami"]
[null,null,null,null,null,null,null,"38","Zbiranje in odvoz odpadkov ter ravnanje z njimi; pridobivanje sekundarnih surovin"]
[null,null,null,null,null,null,null,"381","Zbiranje in odvoz odpadkov"]
[null,null,null,null,null,null,null,"3811","Zbiranje in odvoz nenevarnih odpadkov"]
[null,null,null,null,null,null,null,"38110","Zbiranje in odvoz nenevarnih odpadkov"]
[null,null,null,null,null,null,null,"3812","Zbiranje in odvoz nevarnih odpadkov"]
[null,null,null,null,null,null,null,"38120","Zbiranje in odvoz nevarnih odpadkov"]
[null,null,null,null,null,null,null,"382","Ravnanje z odpadki"]
[null,null,null,null,null,null,null,"3821","Ravnanje z nenevarnimi odpadki"]
[null,null,null,null,null,null,null,"38210","Ravnanje z nenevarnimi odpadki"]
[null,null,null,null,null,null,null,"3822","Ravnanje z nevarnimi odpadki"]
[null,null,null,null,null,null,null,"38220","Ravnanje z nevarnimi odpadki"]
[null,null,null,null,null,null,null,"383","Pridobivanje sekundarnih surovin"]
[null,null,null,null,null,null,null,"3831","Demontaža odpadnih naprav"]
[null,null,null,null,null,null,null,"38310","Demontaža odpadnih naprav"]
[null,null,null,null,null,null,null,"3832","Pridobivanje sekundarnih surovin iz ostankov in odpadkov"]
[null,null,null,null,null,null,null,"38320","Pridobivanje sekundarnih surovin iz ostankov in odpadkov"]
[null,null,null,null,null,null,null,"39","Saniranje okolja in drugo ravnanje z odpadki"]
[null,null,null,null,null,null,null,"390","Saniranje okolja in drugo ravnanje z odpadki"]
[null,null,null,null,null,null,null,"3900","Saniranje okolja in drugo ravnanje z odpadki"]
[null,null,null,null,null,null,null,"39000","Saniranje okolja in drugo ravnanje z odpadki"]
[null,null,null,null,null,null,null,"41","Gradnja stavb"]
[null,null,null,null,null,null,null,"411","Organizacija izvedbe stavbnih projektov"]
[null,null,null,null,null,null,null,"4110","Organizacija izvedbe stavbnih projektov"]
[null,null,null,null,null,null,null,"41100","Organizacija izvedbe stavbnih projektov"]
[null,null,null,null,null,null,null,"412","Gradnja stanovanjskih in nestanovanjskih stavb"]
[null,null,null,null,null,null,null,"4120","Gradnja stanovanjskih in nestanovanjskih stavb"]
[null,null,null,null,null,null,null,"41200","Gradnja stanovanjskih in nestanovanjskih stavb"]
[null,null,null,null,null,null,null,"42","Gradnja inženirskih objektov"]
[null,null,null,null,null,null,null,"421","Gradnja cest in železnic"]
[null,null,null,null,null,null,null,"4211","Gradnja cest"]
[null,null,null,null,null,null,null,"42110","Gradnja cest"]
[null,null,null,null,null,null,null,"4212","Gradnja železnic in podzemnih železnic"]
[null,null,null,null,null,null,null,"42120","Gradnja železnic in podzemnih železnic"]
[null,null,null,null,null,null,null,"4213","Gradnja mostov in predorov"]
[null,null,null,null,null,null,null,"42130","Gradnja mostov in predorov"]
[null,null,null,null,null,null,null,"422","Gradnja objektov oskrbne infrastrukture"]
[null,null,null,null,null,null,null,"4221","Gradnja objektov oskrbne infrastrukture za tekočine in pline"]
[null,null,null,null,null,null,null,"42210","Gradnja objektov oskrbne infrastrukture za tekočine in pline"]
[null,null,null,null,null,null,null,"4222","Gradnja objektov oskrbne infrastrukture za elektriko in telekomunikacije"]
[null,null,null,null,null,null,null,"42220","Gradnja objektov oskrbne infrastrukture za elektriko in telekomunikacije"]
[null,null,null,null,null,null,null,"429","Gradnja drugih inženirskih objektov"]
[null,null,null,null,null,null,null,"4291","Gradnja vodnih objektov"]
[null,null,null,null,null,null,null,"42910","Gradnja vodnih objektov"]
[null,null,null,null,null,null,null,"4299","Gradnja drugih objektov nizke gradnje"]
[null,null,null,null,null,null,null,"42990","Gradnja drugih objektov nizke gradnje"]
[null,null,null,null,null,null,null,"43","Specializirana gradbena dela"]
[null,null,null,null,null,null,null,"431","Pripravljalna dela na gradbišču"]
[null,null,null,null,null,null,null,"4311","Rušenje objektov"]
[null,null,null,null,null,null,null,"43110","Rušenje objektov"]
[null,null,null,null,null,null,null,"4312","Zemeljska pripravljalna dela"]
[null,null,null,null,null,null,null,"43120","Zemeljska pripravljalna dela"]
[null,null,null,null,null,null,null,"4313","Testno vrtanje in sondiranje"]
[null,null,null,null,null,null,null,"43130","Testno vrtanje in sondiranje"]
[null,null,null,null,null,null,null,"432","Inštaliranje pri gradnjah"]
[null,null,null,null,null,null,null,"4321","Inštaliranje električnih napeljav in naprav"]
[null,null,null,null,null,null,null,"43210","Inštaliranje električnih napeljav in naprav"]
[null,null,null,null,null,null,null,"4322","Inštaliranje vodovodnih, plinskih in ogrevalnih napeljav in naprav"]
[null,null,null,null,null,null,null,"43220","Inštaliranje vodovodnih, plinskih in ogrevalnih napeljav in naprav"]
[null,null,null,null,null,null,null,"4329","Drugo inštaliranje pri gradnjah"]
[null,null,null,null,null,null,null,"43290","Drugo inštaliranje pri gradnjah"]
[null,null,null,null,null,null,null,"433","Zaključna gradbena dela"]
[null,null,null,null,null,null,null,"4331","Fasaderska in štukaterska dela"]
[null,null,null,null,null,null,null,"43310","Fasaderska in štukaterska dela"]
[null,null,null,null,null,null,null,"4332","Vgrajevanje stavbnega pohištva"]
[null,null,null,null,null,null,null,"43320","Vgrajevanje stavbnega pohištva"]
[null,null,null,null,null,null,null,"4333","Oblaganje tal in sten"]
[null,null,null,null,null,null,null,"43330","Oblaganje tal in sten"]
[null,null,null,null,null,null,null,"4334","Steklarska in pleskarska dela"]
[null,null,null,null,null,null,null,"43341","Steklarska dela"]
[null,null,null,null,null,null,null,"43342","Pleskarska dela"]
[null,null,null,null,null,null,null,"4339","Druga zaključna gradbena dela"]
[null,null,null,null,null,null,null,"43390","Druga zaključna gradbena dela"]
[null,null,null,null,null,null,null,"439","Krovstvo in druga specializirana gradbena dela"]
[null,null,null,null,null,null,null,"4391","Postavljanje ostrešij in krovska dela"]
[null,null,null,null,null,null,null,"43910","Postavljanje ostrešij in krovska dela"]
[null,null,null,null,null,null,null,"4399","Druga specializirana gradbena dela"]
[null,null,null,null,null,null,null,"43990","Druga specializirana gradbena dela"]
[null,null,null,null,null,null,null,"45","Trgovina z motornimi vozili in popravila motornih vozil"]
[null,null,null,null,null,null,null,"451","Trgovina z motornimi vozili"]
[null,null,null,null,null,null,null,"4511","Trgovina z avtomobili in lahkimi motornimi vozili"]
[null,null,null,null,null,null,null,"45110","Trgovina z avtomobili in lahkimi motornimi vozili"]
[null,null,null,null,null,null,null,"4519","Trgovina z drugimi motornimi vozili"]
[null,null,null,null,null,null,null,"45190","Trgovina z drugimi motornimi vozili"]
[null,null,null,null,null,null,null,"452","Vzdrževanje in popravila motornih vozil"]
[null,null,null,null,null,null,null,"4520","Vzdrževanje in popravila motornih vozil"]
[null,null,null,null,null,null,null,"45200","Vzdrževanje in popravila motornih vozil"]
[null,null,null,null,null,null,null,"453","Trgovina z rezervnimi deli in opremo za motorna vozila"]
[null,null,null,null,null,null,null,"4531","Trgovina na debelo z rezervnimi deli in opremo za motorna vozila"]
[null,null,null,null,null,null,null,"45310","Trgovina na debelo z rezervnimi deli in opremo za motorna vozila"]
[null,null,null,null,null,null,null,"4532","Trgovina na drobno z rezervnimi deli in opremo za motorna vozila"]
[null,null,null,null,null,null,null,"45320","Trgovina na drobno z rezervnimi deli in opremo za motorna vozila"]
[null,null,null,null,null,null,null,"454","Trgovina, vzdrževanje in popravila motornih koles; trgovina z njihovimi deli in opremo"]
[null,null,null,null,null,null,null,"4540","Trgovina, vzdrževanje in popravila motornih koles; trgovina z njihovimi deli in opremo"]
[null,null,null,null,null,null,null,"45400","Trgovina, vzdrževanje in popravila motornih koles; trgovina z njihovimi deli in opremo"]
[null,null,null,null,null,null,null,"46","Posredništvo in trgovina na debelo, razen z motornimi vozili"]
[null,null,null,null,null,null,null,"461","Posredništvo"]
[null,null,null,null,null,null,null,"4611","Posredništvo pri prodaji kmetijskih surovin, živih živali, tekstilnih surovin, polizdelkov"]
[null,null,null,null,null,null,null,"46110","Posredništvo pri prodaji kmetijskih surovin, živih živali, tekstilnih surovin, polizdelkov"]
[null,null,null,null,null,null,null,"4612","Posredništvo pri prodaji goriv, rud, kovin, tehničnih kemikalij"]
[null,null,null,null,null,null,null,"46120","Posredništvo pri prodaji goriv, rud, kovin, tehničnih kemikalij"]
[null,null,null,null,null,null,null,"4613","Posredništvo pri prodaji lesa in gradbenega materiala"]
[null,null,null,null,null,null,null,"46130","Posredništvo pri prodaji lesa in gradbenega materiala"]
[null,null,null,null,null,null,null,"4614","Posredništvo pri prodaji strojev, industrijske opreme, ladij, letal"]
[null,null,null,null,null,null,null,"46140","Posredništvo pri prodaji strojev, industrijske opreme, ladij, letal"]
[null,null,null,null,null,null,null,"4615","Posredništvo pri prodaji pohištva, predmetov in naprav za gospodinjstvo in železnine"]
[null,null,null,null,null,null,null,"46150","Posredništvo pri prodaji pohištva, predmetov in naprav za gospodinjstvo in železnine"]
[null,null,null,null,null,null,null,"4616","Posredništvo pri prodaji tekstila, oblačil, krzna, obutve, usnjenih izdelkov"]
[null,null,null,null,null,null,null,"46160","Posredništvo pri prodaji tekstila, oblačil, krzna, obutve, usnjenih izdelkov"]
[null,null,null,null,null,null,null,"4617","Posredništvo pri prodaji živil, pijač, tobačnih izdelkov"]
[null,null,null,null,null,null,null,"46170","Posredništvo pri prodaji živil, pijač, tobačnih izdelkov"]
[null,null,null,null,null,null,null,"4618","Specializirano posredništvo pri prodaji drugih določenih izdelkov"]
[null,null,null,null,null,null,null,"46180","Specializirano posredništvo pri prodaji drugih določenih izdelkov"]
[null,null,null,null,null,null,null,"4619","Nespecializirano posredništvo pri prodaji raznovrstnih izdelkov"]
[null,null,null,null,null,null,null,"46190","Nespecializirano posredništvo pri prodaji raznovrstnih izdelkov"]
[null,null,null,null,null,null,null,"462","Trgovina na debelo s kmetijskimi surovinami in živimi živalmi"]
[null,null,null,null,null,null,null,"4621","Trgovina na debelo z žiti, tobakom, semeni in krmo"]
[null,null,null,null,null,null,null,"46210","Trgovina na debelo z žiti, tobakom, semeni in krmo"]
[null,null,null,null,null,null,null,"4622","Trgovina na debelo s cvetjem in rastlinami"]
[null,null,null,null,null,null,null,"46220","Trgovina na debelo s cvetjem in rastlinami"]
[null,null,null,null,null,null,null,"4623","Trgovina na debelo z živimi živalmi"]
[null,null,null,null,null,null,null,"46230","Trgovina na debelo z živimi živalmi"]
[null,null,null,null,null,null,null,"4624","Trgovina na debelo s kožami, usnjem"]
[null,null,null,null,null,null,null,"46240","Trgovina na debelo s kožami, usnjem"]
[null,null,null,null,null,null,null,"463","Trgovina na debelo z živili, pijačami, tobačnimi izdelki"]
[null,null,null,null,null,null,null,"4631","Trgovina na debelo s sadjem in zelenjavo"]
[null,null,null,null,null,null,null,"46310","Trgovina na debelo s sadjem in zelenjavo"]
[null,null,null,null,null,null,null,"4632","Trgovina na debelo z mesom in mesnimi izdelki"]
[null,null,null,null,null,null,null,"46320","Trgovina na debelo z mesom in mesnimi izdelki"]
[null,null,null,null,null,null,null,"4633","Trgovina na debelo z mlekom, mlečnimi izdelki, jajci, jedilnimi olji in maščobami"]
[null,null,null,null,null,null,null,"46330","Trgovina na debelo z mlekom, mlečnimi izdelki, jajci, jedilnimi olji in maščobami"]
[null,null,null,null,null,null,null,"4634","Trgovina na debelo s pijačami"]
[null,null,null,null,null,null,null,"46340","Trgovina na debelo s pijačami"]
[null,null,null,null,null,null,null,"4635","Trgovina na debelo s tobačnimi izdelki"]
[null,null,null,null,null,null,null,"46350","Trgovina na debelo s tobačnimi izdelki"]
[null,null,null,null,null,null,null,"4636","Trgovina na debelo s sladkorjem, čokolado, sladkornimi izdelki"]
[null,null,null,null,null,null,null,"46360","Trgovina na debelo s sladkorjem, čokolado, sladkornimi izdelki"]
[null,null,null,null,null,null,null,"4637","Trgovina na debelo s kavo, čajem, kakavom, začimbami"]
[null,null,null,null,null,null,null,"46370","Trgovina na debelo s kavo, čajem, kakavom, začimbami"]
[null,null,null,null,null,null,null,"4638","Trgovina na debelo z drugimi živili, tudi z ribami, raki, mehkužci"]
[null,null,null,null,null,null,null,"46380","Trgovina na debelo z drugimi živili, tudi z ribami, raki, mehkužci"]
[null,null,null,null,null,null,null,"4639","Nespecializirana trgovina na debelo z živili, pijačami, tobačnimi izdelki"]
[null,null,null,null,null,null,null,"46390","Nespecializirana trgovina na debelo z živili, pijačami, tobačnimi izdelki"]
[null,null,null,null,null,null,null,"464","Trgovina na debelo z izdelki za široko rabo"]
[null,null,null,null,null,null,null,"4641","Trgovina na debelo s tekstilom"]
[null,null,null,null,null,null,null,"46410","Trgovina na debelo s tekstilom"]
[null,null,null,null,null,null,null,"4642","Trgovina na debelo z oblačili in obutvijo"]
[null,null,null,null,null,null,null,"46420","Trgovina na debelo z oblačili in obutvijo"]
[null,null,null,null,null,null,null,"4643","Trgovina na debelo z električnimi gospodinjskimi napravami"]
[null,null,null,null,null,null,null,"46430","Trgovina na debelo z električnimi gospodinjskimi napravami"]
[null,null,null,null,null,null,null,"4644","Trgovina na debelo s porcelanom, steklenino, čistili"]
[null,null,null,null,null,null,null,"46440","Trgovina na debelo s porcelanom, steklenino, čistili"]
[null,null,null,null,null,null,null,"4645","Trgovina na debelo s parfumi in kozmetiko"]
[null,null,null,null,null,null,null,"46450","Trgovina na debelo s parfumi in kozmetiko"]
[null,null,null,null,null,null,null,"4646","Trgovina na debelo s farmacevtskimi izdelki ter medicinskimi potrebščinami in materiali"]
[null,null,null,null,null,null,null,"46460","Trgovina na debelo s farmacevtskimi izdelki ter medicinskimi potrebščinami in materiali"]
[null,null,null,null,null,null,null,"4647","Trgovina na debelo s pohištvom, preprogami in svetili"]
[null,null,null,null,null,null,null,"46470","Trgovina na debelo s pohištvom, preprogami in svetili"]
[null,null,null,null,null,null,null,"4648","Trgovina na debelo z urami in nakitom"]
[null,null,null,null,null,null,null,"46480","Trgovina na debelo z urami in nakitom"]
[null,null,null,null,null,null,null,"4649","Trgovina na debelo z drugimi izdelki široke porabe"]
[null,null,null,null,null,null,null,"46490","Trgovina na debelo z drugimi izdelki široke porabe"]
[null,null,null,null,null,null,null,"465","Trgovina na debelo z napravami za informacijsko-komunikacijsko tehnologijo"]
[null,null,null,null,null,null,null,"4651","Trgovina na debelo z računalniškimi napravami"]
[null,null,null,null,null,null,null,"46510","Trgovina na debelo z računalniškimi napravami"]
[null,null,null,null,null,null,null,"4652","Trgovina na debelo z elektronskimi in telekomunikacijskimi napravami in deli"]
[null,null,null,null,null,null,null,"46520","Trgovina na debelo z elektronskimi in telekomunikacijskimi napravami in deli"]
[null,null,null,null,null,null,null,"466","Trgovina na debelo s stroji, napravami, opremo"]
[null,null,null,null,null,null,null,"4661","Trgovina na debelo s kmetijskimi stroji, priključki, opremo"]
[null,null,null,null,null,null,null,"46610","Trgovina na debelo s kmetijskimi stroji, priključki, opremo"]
[null,null,null,null,null,null,null,"4662","Trgovina na debelo z obdelovalnimi stroji"]
[null,null,null,null,null,null,null,"46620","Trgovina na debelo z obdelovalnimi stroji"]
[null,null,null,null,null,null,null,"4663","Trgovina na debelo z rudarskimi in gradbenimi stroji"]
[null,null,null,null,null,null,null,"46630","Trgovina na debelo z rudarskimi in gradbenimi stroji"]
[null,null,null,null,null,null,null,"4664","Trgovina na debelo s stroji za tekstilno industrijo"]
[null,null,null,null,null,null,null,"46640","Trgovina na debelo s stroji za tekstilno industrijo"]
[null,null,null,null,null,null,null,"4665","Trgovina na debelo s pisarniškim pohištvom"]
[null,null,null,null,null,null,null,"46650","Trgovina na debelo s pisarniškim pohištvom"]
[null,null,null,null,null,null,null,"4666","Trgovina na debelo s pisarniškimi stroji in opremo"]
[null,null,null,null,null,null,null,"46660","Trgovina na debelo s pisarniškimi stroji in opremo"]
[null,null,null,null,null,null,null,"4669","Trgovina na debelo z drugimi napravami in opremo"]
[null,null,null,null,null,null,null,"46690","Trgovina na debelo z drugimi napravami in opremo"]
[null,null,null,null,null,null,null,"467","Druga specializirana trgovina na debelo"]
[null,null,null,null,null,null,null,"4671","Trgovina na debelo s trdimi, tekočimi in plinastimi gorivi"]
[null,null,null,null,null,null,null,"46710","Trgovina na debelo s trdimi, tekočimi in plinastimi gorivi"]
[null,null,null,null,null,null,null,"4672","Trgovina na debelo s kovinami in rudami"]
[null,null,null,null,null,null,null,"46720","Trgovina na debelo s kovinami in rudami"]
[null,null,null,null,null,null,null,"4673","Trgovina na debelo z lesom, gradbenim materialom in sanitarno opremo"]
[null,null,null,null,null,null,null,"46730","Trgovina na debelo z lesom, gradbenim materialom in sanitarno opremo"]
[null,null,null,null,null,null,null,"4674","Trgovina na debelo s kovinskimi proizvodi, inštalacijskim materialom, napravami za ogrevanje"]
[null,null,null,null,null,null,null,"46740","Trgovina na debelo s kovinskimi proizvodi, inštalacijskim materialom, napravami za ogrevanje"]
[null,null,null,null,null,null,null,"4675","Trgovina na debelo s kemičnimi izdelki"]
[null,null,null,null,null,null,null,"46750","Trgovina na debelo s kemičnimi izdelki"]
[null,null,null,null,null,null,null,"4676","Trgovina na debelo z drugimi polizdelki"]
[null,null,null,null,null,null,null,"46760","Trgovina na debelo z drugimi polizdelki"]
[null,null,null,null,null,null,null,"4677","Trgovina na debelo z ostanki in odpadki"]
[null,null,null,null,null,null,null,"46770","Trgovina na debelo z ostanki in odpadki"]
[null,null,null,null,null,null,null,"469","Nespecializirana trgovina na debelo"]
[null,null,null,null,null,null,null,"4690","Nespecializirana trgovina na debelo"]
[null,null,null,null,null,null,null,"46900","Nespecializirana trgovina na debelo"]
[null,null,null,null,null,null,null,"47","Trgovina na drobno, razen z motornimi vozili"]
[null,null,null,null,null,null,null,"471","Trgovina na drobno v nespecializiranih prodajalnah"]
[null,null,null,null,null,null,null,"4711","Trgovina na drobno v nespecializiranih prodajalnah, pretežno z živili"]
[null,null,null,null,null,null,null,"47110","Trgovina na drobno v nespecializiranih prodajalnah, pretežno z živili"]
[null,null,null,null,null,null,null,"4719","Druga trgovina na drobno v nespecializiranih prodajalnah"]
[null,null,null,null,null,null,null,"47190","Druga trgovina na drobno v nespecializiranih prodajalnah"]
[null,null,null,null,null,null,null,"472","Trgovina na drobno v specializiranih prodajalnah z živili, pijačami in tobačnimi izdelki"]
[null,null,null,null,null,null,null,"4721","Trgovina na drobno v specializiranih prodajalnah s sadjem in zelenjavo"]
[null,null,null,null,null,null,null,"47210","Trgovina na drobno v specializiranih prodajalnah s sadjem in zelenjavo"]
[null,null,null,null,null,null,null,"4722","Trgovina na drobno v specializiranih prodajalnah z mesom in mesnimi izdelki"]
[null,null,null,null,null,null,null,"47220","Trgovina na drobno v specializiranih prodajalnah z mesom in mesnimi izdelki"]
[null,null,null,null,null,null,null,"4723","Trgovina na drobno v specializiranih prodajalnah z ribami, raki, mehkužci"]
[null,null,null,null,null,null,null,"47230","Trgovina na drobno v specializiranih prodajalnah z ribami, raki, mehkužci"]
[null,null,null,null,null,null,null,"4724","Trgovina na drobno v specializiranih prodajalnah s kruhom, pecivom, testeninami, sladkornimi izdelki"]
[null,null,null,null,null,null,null,"47240","Trgovina na drobno v specializiranih prodajalnah s kruhom, pecivom, testeninami, sladkornimi izdelki"]
[null,null,null,null,null,null,null,"4725","Trgovina na drobno v specializiranih prodajalnah s pijačami"]
[null,null,null,null,null,null,null,"47250","Trgovina na drobno v specializiranih prodajalnah s pijačami"]
[null,null,null,null,null,null,null,"4726","Trgovina na drobno v specializiranih prodajalnah s tobačnimi izdelki"]
[null,null,null,null,null,null,null,"47260","Trgovina na drobno v specializiranih prodajalnah s tobačnimi izdelki"]
[null,null,null,null,null,null,null,"4729","Druga trgovina na drobno v specializiranih prodajalnah z živili"]
[null,null,null,null,null,null,null,"47290","Druga trgovina na drobno v specializiranih prodajalnah z živili"]
[null,null,null,null,null,null,null,"473","Trgovina na drobno v specializiranih prodajalnah z motornimi gorivi"]
[null,null,null,null,null,null,null,"4730","Trgovina na drobno v specializiranih prodajalnah z motornimi gorivi"]
[null,null,null,null,null,null,null,"47301","Trgovina na drobno z lastnimi motornimi gorivi"]
[null,null,null,null,null,null,null,"47302","Posredništvo pri prodaji motornih goriv na drobno"]
[null,null,null,null,null,null,null,"474","Trgovina na drobno v specializiranih prodajalnah z računalniškimi, komunikacijskimi, avdio in video napravami"]
[null,null,null,null,null,null,null,"4741","Trgovina na drobno v specializiranih prodajalnah z računalniškimi napravami in programi"]
[null,null,null,null,null,null,null,"47410","Trgovina na drobno v specializiranih prodajalnah z računalniškimi napravami in programi"]
[null,null,null,null,null,null,null,"4742","Trgovina na drobno v specializiranih prodajalnah s telekomunikacijskimi napravami"]
[null,null,null,null,null,null,null,"47420","Trgovina na drobno v specializiranih prodajalnah s telekomunikacijskimi napravami"]
[null,null,null,null,null,null,null,"4743","Trgovina na drobno v specializiranih prodajalnah z avdio in video napravami"]
[null,null,null,null,null,null,null,"47430","Trgovina na drobno v specializiranih prodajalnah z avdio in video napravami"]
[null,null,null,null,null,null,null,"475","Trgovina na drobno v specializiranih prodajalnah z drugo gospodinjsko opremo"]
[null,null,null,null,null,null,null,"4751","Trgovina na drobno v specializiranih prodajalnah s tekstilom"]
[null,null,null,null,null,null,null,"47510","Trgovina na drobno v specializiranih prodajalnah s tekstilom"]
[null,null,null,null,null,null,null,"4752","Trgovina na drobno v specializiranih prodajalnah z gradbenim materialom, kovinskimi izdelki, barvami in steklom"]
[null,null,null,null,null,null,null,"47520","Trgovina na drobno v specializiranih prodajalnah z gradbenim materialom, kovinskimi izdelki, barvami in steklom"]
[null,null,null,null,null,null,null,"4753","Trgovina na drobno v specializiranih prodajalnah s preprogami, talnimi in stenskimi oblogami"]
[null,null,null,null,null,null,null,"47530","Trgovina na drobno v specializiranih prodajalnah s preprogami, talnimi in stenskimi oblogami"]
[null,null,null,null,null,null,null,"4754","Trgovina na drobno v specializiranih prodajalnah z električnimi gospodinjskimi napravami"]
[null,null,null,null,null,null,null,"47540","Trgovina na drobno v specializiranih prodajalnah z električnimi gospodinjskimi napravami"]
[null,null,null,null,null,null,null,"4759","Trgovina na drobno v specializiranih prodajalnah s pohištvom, svetili in drugje nerazvrščenimi predmeti za gospodinjstvo"]
[null,null,null,null,null,null,null,"47590","Trgovina na drobno v specializiranih prodajalnah s pohištvom, svetili in drugje nerazvrščenimi predmeti za gospodinjstvo"]
[null,null,null,null,null,null,null,"476","Trgovina na drobno v specializiranih prodajalnah z izdelki za kulturo, šport in zabavo"]
[null,null,null,null,null,null,null,"4761","Trgovina na drobno v specializiranih prodajalnah s knjigami"]
[null,null,null,null,null,null,null,"47610","Trgovina na drobno v specializiranih prodajalnah s knjigami"]
[null,null,null,null,null,null,null,"4762","Trgovina na drobno v specializiranih prodajalnah s časopisi, revijami, papirjem, pisalnimi potrebščinami"]
[null,null,null,null,null,null,null,"47621","Trgovina na drobno v specializiranih prodajalnah s časopisi in revijami"]
[null,null,null,null,null,null,null,"47622","Trgovina na drobno v specializiranih prodajalnah s papirjem in pisalnimi potrebščinami"]
[null,null,null,null,null,null,null,"4763","Trgovina na drobno v specializiranih prodajalnah z glasbenimi in video zapisi"]
[null,null,null,null,null,null,null,"47630","Trgovina na drobno v specializiranih prodajalnah z glasbenimi in video zapisi"]
[null,null,null,null,null,null,null,"4764","Trgovina na drobno v specializiranih prodajalnah s športno opremo"]
[null,null,null,null,null,null,null,"47640","Trgovina na drobno v specializiranih prodajalnah s športno opremo"]
[null,null,null,null,null,null,null,"4765","Trgovina na drobno v specializiranih prodajalnah z igračami in rekviziti za igre in zabavo"]
[null,null,null,null,null,null,null,"47650","Trgovina na drobno v specializiranih prodajalnah z igračami in rekviziti za igre in zabavo"]
[null,null,null,null,null,null,null,"477","Trgovina na drobno v specializiranih prodajalnah z drugimi izdelki"]
[null,null,null,null,null,null,null,"4771","Trgovina na drobno v specializiranih prodajalnah z oblačili"]
[null,null,null,null,null,null,null,"47710","Trgovina na drobno v specializiranih prodajalnah z oblačili"]
[null,null,null,null,null,null,null,"4772","Trgovina na drobno v specializiranih prodajalnah z obutvijo in usnjenimi izdelki"]
[null,null,null,null,null,null,null,"47720","Trgovina na drobno v specializiranih prodajalnah z obutvijo in usnjenimi izdelki"]
[null,null,null,null,null,null,null,"4773","Trgovina na drobno v specializiranih prodajalnah s farmacevtskimi izdelki"]
[null,null,null,null,null,null,null,"47730","Trgovina na drobno v specializiranih prodajalnah s farmacevtskimi izdelki"]
[null,null,null,null,null,null,null,"4774","Trgovina na drobno v specializiranih prodajalnah z medicinskimi in ortopedskimi pripomočki"]
[null,null,null,null,null,null,null,"47740","Trgovina na drobno v specializiranih prodajalnah z medicinskimi in ortopedskimi pripomočki"]
[null,null,null,null,null,null,null,"4775","Trgovina na drobno v specializiranih prodajalnah s kozmetičnimi in toaletnimi izdelki"]
[null,null,null,null,null,null,null,"47750","Trgovina na drobno v specializiranih prodajalnah s kozmetičnimi in toaletnimi izdelki"]
[null,null,null,null,null,null,null,"4776","Trgovina na drobno v specializiranih prodajalnah s cvetjem, rastlinami, gnojili, hišnimi živalmi in hrano za živali"]
[null,null,null,null,null,null,null,"47761","Trgovina na drobno v cvetličarnah"]
[null,null,null,null,null,null,null,"47762","Trgovina na drobno v specializiranih prodajalnah z vrtnarsko opremo in hišnimi živalmi"]
[null,null,null,null,null,null,null,"4777","Trgovina na drobno v specializiranih prodajalnah z urami in nakitom"]
[null,null,null,null,null,null,null,"47770","Trgovina na drobno v specializiranih prodajalnah z urami in nakitom"]
[null,null,null,null,null,null,null,"4778","Druga trgovina na drobno v specializiranih prodajalnah z novim blagom"]
[null,null,null,null,null,null,null,"47781","Trgovina na drobno v specializiranih prodajalnah z očali"]
[null,null,null,null,null,null,null,"47782","Trgovina na drobno v specializiranih prodajalnah z umetniškimi izdelki"]
[null,null,null,null,null,null,null,"47789","Druga trgovina na drobno v drugih specializiranih prodajalnah"]
[null,null,null,null,null,null,null,"4779","Trgovina na drobno v prodajalnah z rabljenim blagom"]
[null,null,null,null,null,null,null,"47790","Trgovina na drobno v prodajalnah z rabljenim blagom"]
[null,null,null,null,null,null,null,"478","Trgovina na drobno na stojnicah in tržnicah"]
[null,null,null,null,null,null,null,"4781","Trgovina na drobno na stojnicah in tržnicah z živili, pijačami in tobačnimi izdelki"]
[null,null,null,null,null,null,null,"47810","Trgovina na drobno na stojnicah in tržnicah z živili, pijačami in tobačnimi izdelki"]
[null,null,null,null,null,null,null,"4782","Trgovina na drobno na stojnicah in tržnicah s tekstilijami in obutvijo"]
[null,null,null,null,null,null,null,"47820","Trgovina na drobno na stojnicah in tržnicah s tekstilijami in obutvijo"]
[null,null,null,null,null,null,null,"4789","Trgovina na drobno na stojnicah in tržnicah z drugim blagom"]
[null,null,null,null,null,null,null,"47890","Trgovina na drobno na stojnicah in tržnicah z drugim blagom"]
[null,null,null,null,null,null,null,"479","Trgovina na drobno zunaj prodajaln, stojnic in tržnic"]
[null,null,null,null,null,null,null,"4791","Trgovina na drobno po pošti ali po internetu"]
[null,null,null,null,null,null,null,"47910","Trgovina na drobno po pošti ali po internetu"]
[null,null,null,null,null,null,null,"4799","Druga trgovina na drobno zunaj prodajaln, stojnic in tržnic"]
[null,null,null,null,null,null,null,"47990","Druga trgovina na drobno zunaj prodajaln, stojnic in tržnic"]
[null,null,null,null,null,null,null,"49","Kopenski promet; cevovodni transport"]
[null,null,null,null,null,null,null,"491","Železniški potniški promet"]
[null,null,null,null,null,null,null,"4910","Železniški potniški promet"]
[null,null,null,null,null,null,null,"49100","Železniški potniški promet"]
[null,null,null,null,null,null,null,"492","Železniški tovorni promet"]
[null,null,null,null,null,null,null,"4920","Železniški tovorni promet"]
[null,null,null,null,null,null,null,"49200","Železniški tovorni promet"]
[null,null,null,null,null,null,null,"493","Drug kopenski potniški promet"]
[null,null,null,null,null,null,null,"4931","Mestni in primestni kopenski potniški promet"]
[null,null,null,null,null,null,null,"49310","Mestni in primestni kopenski potniški promet"]
[null,null,null,null,null,null,null,"4932","Obratovanje taksijev"]
[null,null,null,null,null,null,null,"49320","Obratovanje taksijev"]
[null,null,null,null,null,null,null,"4939","Drug kopenski potniški promet"]
[null,null,null,null,null,null,null,"49391","Medkrajevni in drug cestni potniški promet"]
[null,null,null,null,null,null,null,"49392","Obratovanje žičnic"]
[null,null,null,null,null,null,null,"494","Cestni tovorni promet ter selitvena dejavnost"]
[null,null,null,null,null,null,null,"4941","Cestni tovorni promet"]
[null,null,null,null,null,null,null,"49410","Cestni tovorni promet"]
[null,null,null,null,null,null,null,"4942","Selitvena dejavnost"]
[null,null,null,null,null,null,null,"49420","Selitvena dejavnost"]
[null,null,null,null,null,null,null,"495","Cevovodni transport"]
[null,null,null,null,null,null,null,"4950","Cevovodni transport"]
[null,null,null,null,null,null,null,"49500","Cevovodni transport"]
[null,null,null,null,null,null,null,"50","Vodni promet"]
[null,null,null,null,null,null,null,"501","Pomorski potniški promet"]
[null,null,null,null,null,null,null,"5010","Pomorski potniški promet"]
[null,null,null,null,null,null,null,"50100","Pomorski potniški promet"]
[null,null,null,null,null,null,null,"502","Pomorski tovorni promet"]
[null,null,null,null,null,null,null,"5020","Pomorski tovorni promet"]
[null,null,null,null,null,null,null,"50200","Pomorski tovorni promet"]
[null,null,null,null,null,null,null,"503","Potniški promet po celinskih vodah"]
[null,null,null,null,null,null,null,"5030","Potniški promet po celinskih vodah"]
[null,null,null,null,null,null,null,"50300","Potniški promet po celinskih vodah"]
[null,null,null,null,null,null,null,"504","Tovorni promet po celinskih vodah"]
[null,null,null,null,null,null,null,"5040","Tovorni promet po celinskih vodah"]
[null,null,null,null,null,null,null,"50400","Tovorni promet po celinskih vodah"]
[null,null,null,null,null,null,null,"51","Zračni promet"]
[null,null,null,null,null,null,null,"511","Potniški zračni promet"]
[null,null,null,null,null,null,null,"5110","Potniški zračni promet"]
[null,null,null,null,null,null,null,"51100","Potniški zračni promet"]
[null,null,null,null,null,null,null,"512","Tovorni zračni in vesoljski promet"]
[null,null,null,null,null,null,null,"5121","Tovorni zračni promet"]
[null,null,null,null,null,null,null,"51210","Tovorni zračni promet"]
[null,null,null,null,null,null,null,"5122","Vesoljski promet"]
[null,null,null,null,null,null,null,"51220","Vesoljski promet"]
[null,null,null,null,null,null,null,"52","Skladiščenje in spremljajoče prometne dejavnosti"]
[null,null,null,null,null,null,null,"521","Skladiščenje"]
[null,null,null,null,null,null,null,"5210","Skladiščenje"]
[null,null,null,null,null,null,null,"52100","Skladiščenje"]
[null,null,null,null,null,null,null,"522","Spremljajoče prometne dejavnosti"]
[null,null,null,null,null,null,null,"5221","Spremljajoče storitvene dejavnosti v kopenskem prometu"]
[null,null,null,null,null,null,null,"52210","Spremljajoče storitvene dejavnosti v kopenskem prometu"]
[null,null,null,null,null,null,null,"5222","Spremljajoče storitvene dejavnosti v vodnem prometu"]
[null,null,null,null,null,null,null,"52220","Spremljajoče storitvene dejavnosti v vodnem prometu"]
[null,null,null,null,null,null,null,"5223","Spremljajoče storitvene dejavnosti v zračnem prometu"]
[null,null,null,null,null,null,null,"52230","Spremljajoče storitvene dejavnosti v zračnem prometu"]
[null,null,null,null,null,null,null,"5224","Pretovarjanje"]
[null,null,null,null,null,null,null,"52240","Pretovarjanje"]
[null,null,null,null,null,null,null,"5229","Špedicija in druge spremljajoče prometne dejavnosti"]
[null,null,null,null,null,null,null,"52290","Špedicija in druge spremljajoče prometne dejavnosti"]
[null,null,null,null,null,null,null,"53","Poštna in kurirska dejavnost"]
[null,null,null,null,null,null,null,"531","Izvajanje univerzalne poštne storitve"]
[null,null,null,null,null,null,null,"5310","Izvajanje univerzalne poštne storitve"]
[null,null,null,null,null,null,null,"53100","Izvajanje univerzalne poštne storitve"]
[null,null,null,null,null,null,null,"532","Druga poštna in kurirska dejavnost"]
[null,null,null,null,null,null,null,"5320","Druga poštna in kurirska dejavnost"]
[null,null,null,null,null,null,null,"53200","Druga poštna in kurirska dejavnost"]
[null,null,null,null,null,null,null,"55","Gostinske nastanitvene dejavnosti"]
[null,null,null,null,null,null,null,"551","Dejavnost hotelov in podobnih nastanitvenih obratov"]
[null,null,null,null,null,null,null,"5510","Dejavnost hotelov in podobnih nastanitvenih obratov"]
[null,null,null,null,null,null,null,"55100","Dejavnost hotelov in podobnih nastanitvenih obratov"]
[null,null,null,null,null,null,null,"552","Dejavnost počitniških domov in podobnih nastanitvenih obratov za kratkotrajno bivanje"]
[null,null,null,null,null,null,null,"5520","Dejavnost počitniških domov in podobnih nastanitvenih obratov za kratkotrajno bivanje"]
[null,null,null,null,null,null,null,"55201","Počitniški domovi in letovišča"]
[null,null,null,null,null,null,null,"55202","Turistične kmetije s sobami"]
[null,null,null,null,null,null,null,"55203","Oddajanje zasebnih sob gostom"]
[null,null,null,null,null,null,null,"55204","Planinski domovi in mladinska prenočišča"]
[null,null,null,null,null,null,null,"55209","Druge nastanitve za krajši čas"]
[null,null,null,null,null,null,null,"553","Dejavnost avtokampov, taborov"]
[null,null,null,null,null,null,null,"5530","Dejavnost avtokampov, taborov"]
[null,null,null,null,null,null,null,"55300","Dejavnost avtokampov, taborov"]
[null,null,null,null,null,null,null,"559","Dejavnost dijaških in študentskih domov ter druge nastanitve"]
[null,null,null,null,null,null,null,"5590","Dejavnost dijaških in študentskih domov ter druge nastanitve"]
[null,null,null,null,null,null,null,"55900","Dejavnost dijaških in študentskih domov ter druge nastanitve"]
[null,null,null,null,null,null,null,"56","Dejavnost strežbe jedi in pijač"]
[null,null,null,null,null,null,null,"561","Dejavnost restavracij in druga strežba jedi"]
[null,null,null,null,null,null,null,"5610","Dejavnost restavracij in druga strežba jedi"]
[null,null,null,null,null,null,null,"56101","Restavracije in gostilne"]
[null,null,null,null,null,null,null,"56102","Okrepčevalnice in podobni obrati"]
[null,null,null,null,null,null,null,"56103","Slaščičarne in kavarne"]
[null,null,null,null,null,null,null,"56104","Začasni gostinski obrati"]
[null,null,null,null,null,null,null,"56105","Turistične kmetije brez sob"]
[null,null,null,null,null,null,null,"562","Priložnostna priprava in dostava jedi ter druga oskrba z jedmi"]
[null,null,null,null,null,null,null,"5621","Priložnostna priprava in dostava jedi"]
[null,null,null,null,null,null,null,"56210","Priložnostna priprava in dostava jedi"]
[null,null,null,null,null,null,null,"5629","Druga oskrba z jedmi"]
[null,null,null,null,null,null,null,"56290","Druga oskrba z jedmi"]
[null,null,null,null,null,null,null,"563","Strežba pijač"]
[null,null,null,null,null,null,null,"5630","Strežba pijač"]
[null,null,null,null,null,null,null,"56300","Strežba pijač"]
[null,null,null,null,null,null,null,"58","Založništvo"]
[null,null,null,null,null,null,null,"581","Izdajanje knjig, periodike in drugo založništvo"]
[null,null,null,null,null,null,null,"5811","Izdajanje knjig"]
[null,null,null,null,null,null,null,"58110","Izdajanje knjig"]
[null,null,null,null,null,null,null,"5812","Izdajanje imenikov in adresarjev"]
[null,null,null,null,null,null,null,"58120","Izdajanje imenikov in adresarjev"]
[null,null,null,null,null,null,null,"5813","Izdajanje časopisov"]
[null,null,null,null,null,null,null,"58130","Izdajanje časopisov"]
[null,null,null,null,null,null,null,"5814","Izdajanje revij in druge periodike"]
[null,null,null,null,null,null,null,"58140","Izdajanje revij in druge periodike"]
[null,null,null,null,null,null,null,"5819","Drugo založništvo"]
[null,null,null,null,null,null,null,"58190","Drugo založništvo"]
[null,null,null,null,null,null,null,"582","Izdajanje programja"]
[null,null,null,null,null,null,null,"5821","Izdajanje računalniških iger"]
[null,null,null,null,null,null,null,"58210","Izdajanje računalniških iger"]
[null,null,null,null,null,null,null,"5829","Drugo izdajanje programja"]
[null,null,null,null,null,null,null,"58290","Drugo izdajanje programja"]
[null,null,null,null,null,null,null,"59","Dejavnosti v zvezi s filmi, video- in zvočnimi zapisi"]
[null,null,null,null,null,null,null,"591","Filmska in video dejavnost"]
[null,null,null,null,null,null,null,"5911","Produkcija filmov, video filmov, televizijskih oddaj"]
[null,null,null,null,null,null,null,"59110","Produkcija filmov, video filmov, televizijskih oddaj"]
[null,null,null,null,null,null,null,"5912","Post produkcijske dejavnosti pri izdelavi filmov, video filmov, televizijskih oddaj"]
[null,null,null,null,null,null,null,"59120","Post produkcijske dejavnosti pri izdelavi filmov, video filmov, televizijskih oddaj"]
[null,null,null,null,null,null,null,"5913","Distribucija filmov, video filmov, televizijskih oddaj"]
[null,null,null,null,null,null,null,"59130","Distribucija filmov, video filmov, televizijskih oddaj"]
[null,null,null,null,null,null,null,"5914","Kinematografska dejavnost"]
[null,null,null,null,null,null,null,"59140","Kinematografska dejavnost"]
[null,null,null,null,null,null,null,"592","Snemanje in izdajanje zvočnih zapisov in muzikalij"]
[null,null,null,null,null,null,null,"5920","Snemanje in izdajanje zvočnih zapisov in muzikalij"]
[null,null,null,null,null,null,null,"59200","Snemanje in izdajanje zvočnih zapisov in muzikalij"]
[null,null,null,null,null,null,null,"60","Radijska in televizijska dejavnost"]
[null,null,null,null,null,null,null,"601","Radijska dejavnost"]
[null,null,null,null,null,null,null,"6010","Radijska dejavnost"]
[null,null,null,null,null,null,null,"60100","Radijska dejavnost"]
[null,null,null,null,null,null,null,"602","Televizijska dejavnost"]
[null,null,null,null,null,null,null,"6020","Televizijska dejavnost"]
[null,null,null,null,null,null,null,"60200","Televizijska dejavnost"]
[null,null,null,null,null,null,null,"61","Telekomunikacijske dejavnosti"]
[null,null,null,null,null,null,null,"611","Telekomunikacijske dejavnosti po vodih"]
[null,null,null,null,null,null,null,"6110","Telekomunikacijske dejavnosti po vodih"]
[null,null,null,null,null,null,null,"61100","Telekomunikacijske dejavnosti po vodih"]
[null,null,null,null,null,null,null,"612","Brezžične telekomunikacijske dejavnosti"]
[null,null,null,null,null,null,null,"6120","Brezžične telekomunikacijske dejavnosti"]
[null,null,null,null,null,null,null,"61200","Brezžične telekomunikacijske dejavnosti"]
[null,null,null,null,null,null,null,"613","Satelitske telekomunikacijske dejavnosti"]
[null,null,null,null,null,null,null,"6130","Satelitske telekomunikacijske dejavnosti"]
[null,null,null,null,null,null,null,"61300","Satelitske telekomunikacijske dejavnosti"]
[null,null,null,null,null,null,null,"619","Druge telekomunikacijske dejavnosti"]
[null,null,null,null,null,null,null,"6190","Druge telekomunikacijske dejavnosti"]
[null,null,null,null,null,null,null,"61900","Druge telekomunikacijske dejavnosti"]
[null,null,null,null,null,null,null,"62","Računalniško programiranje, svetovanje in druge s tem povezane dejavnosti"]
[null,null,null,null,null,null,null,"620","Računalniško programiranje, svetovanje in druge s tem povezane dejavnosti"]
[null,null,null,null,null,null,null,"6201","Računalniško programiranje"]
[null,null,null,null,null,null,null,"62010","Računalniško programiranje"]
[null,null,null,null,null,null,null,"6202","Svetovanje o računalniških napravah in programih"]
[null,null,null,null,null,null,null,"62020","Svetovanje o računalniških napravah in programih"]
[null,null,null,null,null,null,null,"6203","Upravljanje računalniških naprav in sistemov"]
[null,null,null,null,null,null,null,"62030","Upravljanje računalniških naprav in sistemov"]
[null,null,null,null,null,null,null,"6209","Druge z informacijsko tehnologijo in računalniškimi storitvami povezane dejavnosti"]
[null,null,null,null,null,null,null,"62090","Druge z informacijsko tehnologijo in računalniškimi storitvami povezane dejavnosti"]
[null,null,null,null,null,null,null,"63","Druge informacijske dejavnosti"]
[null,null,null,null,null,null,null,"631","Obdelava podatkov in s tem povezane dejavnosti; obratovanje spletnih portalov"]
[null,null,null,null,null,null,null,"6311","Obdelava podatkov in s tem povezane dejavnosti"]
[null,null,null,null,null,null,null,"63110","Obdelava podatkov in s tem povezane dejavnosti"]
[null,null,null,null,null,null,null,"6312","Obratovanje spletnih portalov"]
[null,null,null,null,null,null,null,"63120","Obratovanje spletnih portalov"]
[null,null,null,null,null,null,null,"639","Dejavnosti tiskovnih agencij, drugo informiranje"]
[null,null,null,null,null,null,null,"6391","Dejavnost tiskovnih agencij"]
[null,null,null,null,null,null,null,"63910","Dejavnost tiskovnih agencij"]
[null,null,null,null,null,null,null,"6399","Drugo informiranje"]
[null,null,null,null,null,null,null,"63990","Drugo informiranje"]
[null,null,null,null,null,null,null,"64","Dejavnosti finančnih storitev, razen zavarovalništva in dejavnosti pokojninskih skladov"]
[null,null,null,null,null,null,null,"641","Denarno posredništvo"]
[null,null,null,null,null,null,null,"6411","Centralno bančništvo"]
[null,null,null,null,null,null,null,"64110","Centralno bančništvo"]
[null,null,null,null,null,null,null,"6419","Drugo denarno posredništvo"]
[null,null,null,null,null,null,null,"64190","Drugo denarno posredništvo"]
[null,null,null,null,null,null,null,"642","Dejavnost holdingov"]
[null,null,null,null,null,null,null,"6420","Dejavnost holdingov"]
[null,null,null,null,null,null,null,"64200","Dejavnost holdingov"]
[null,null,null,null,null,null,null,"643","Dejavnost skrbniških in drugih skladov ter podobnih finančnih subjektov"]
[null,null,null,null,null,null,null,"6430","Dejavnost skrbniških in drugih skladov ter podobnih finančnih subjektov"]
[null,null,null,null,null,null,null,"64300","Dejavnost skrbniških in drugih skladov ter podobnih finančnih subjektov"]
[null,null,null,null,null,null,null,"649","Dejavnosti finančnih storitev, razen zavarovalništva in dejavnosti pokojninskih skladov"]
[null,null,null,null,null,null,null,"6491","Dejavnost finančnega zakupa"]
[null,null,null,null,null,null,null,"64910","Dejavnost finančnega zakupa"]
[null,null,null,null,null,null,null,"6492","Drugo kreditiranje"]
[null,null,null,null,null,null,null,"64920","Drugo kreditiranje"]
[null,null,null,null,null,null,null,"6499","Drugje nerazvrščene dejavnosti finančnih storitev, razen zavarovalništva in dejavnosti pokojninskih skladov"]
[null,null,null,null,null,null,null,"64990","Drugje nerazvrščene dejavnosti finančnih storitev, razen zavarovalništva in dejavnosti pokojninskih skladov"]
[null,null,null,null,null,null,null,"65","Dejavnosti zavarovanja, pozavarovanja in pokojninskih skladov, razen obvezne socialne varnosti"]
[null,null,null,null,null,null,null,"651","Dejavnost zavarovanja"]
[null,null,null,null,null,null,null,"6511","Dejavnost življenjskega zavarovanja"]
[null,null,null,null,null,null,null,"65110","Dejavnost življenjskega zavarovanja"]
[null,null,null,null,null,null,null,"6512","Dejavnost zavarovanja, razen življenjskega"]
[null,null,null,null,null,null,null,"65120","Dejavnost zavarovanja, razen življenjskega"]
[null,null,null,null,null,null,null,"652","Dejavnost pozavarovanja"]
[null,null,null,null,null,null,null,"6520","Dejavnost pozavarovanja"]
[null,null,null,null,null,null,null,"65200","Dejavnost pozavarovanja"]
[null,null,null,null,null,null,null,"653","Dejavnost pokojninskih skladov"]
[null,null,null,null,null,null,null,"6530","Dejavnost pokojninskih skladov"]
[null,null,null,null,null,null,null,"65300","Dejavnost pokojninskih skladov"]
[null,null,null,null,null,null,null,"66","Pomožne dejavnosti za finančne in zavarovalniške storitve"]
[null,null,null,null,null,null,null,"661","Pomožne dejavnosti za finančne storitve, razen za zavarovalništvo in pokojninske sklade"]
[null,null,null,null,null,null,null,"6611","Upravljanje finančnih trgov"]
[null,null,null,null,null,null,null,"66110","Upravljanje finančnih trgov"]
[null,null,null,null,null,null,null,"6612","Posredništvo pri trgovanju z vrednostnimi papirji in borznim blagom"]
[null,null,null,null,null,null,null,"66120","Posredništvo pri trgovanju z vrednostnimi papirji in borznim blagom"]
[null,null,null,null,null,null,null,"6619","Druge pomožne dejavnosti za finančne storitve, razen za zavarovalništvo in pokojninske sklade"]
[null,null,null,null,null,null,null,"66190","Druge pomožne dejavnosti za finančne storitve, razen za zavarovalništvo in pokojninske sklade"]
[null,null,null,null,null,null,null,"662","Pomožne dejavnosti za zavarovalništvo in pokojninske sklade"]
[null,null,null,null,null,null,null,"6621","Vrednotenje tveganja in škode"]
[null,null,null,null,null,null,null,"66210","Vrednotenje tveganja in škode"]
[null,null,null,null,null,null,null,"6622","Dejavnost zavarovalniških agentov"]
[null,null,null,null,null,null,null,"66220","Dejavnost zavarovalniških agentov"]
[null,null,null,null,null,null,null,"6629","Druge pomožne dejavnosti za zavarovalništvo in pokojninske sklade"]
[null,null,null,null,null,null,null,"66290","Druge pomožne dejavnosti za zavarovalništvo in pokojninske sklade"]
[null,null,null,null,null,null,null,"663","Upravljanje finančnih skladov"]
[null,null,null,null,null,null,null,"6630","Upravljanje finančnih skladov"]
[null,null,null,null,null,null,null,"66300","Upravljanje finančnih skladov"]
[null,null,null,null,null,null,null,"68","Poslovanje z nepremičninami"]
[null,null,null,null,null,null,null,"681","Trgovanje z lastnimi nepremičninami"]
[null,null,null,null,null,null,null,"6810","Trgovanje z lastnimi nepremičninami"]
[null,null,null,null,null,null,null,"68100","Trgovina z lastnimi nepremičninami"]
[null,null,null,null,null,null,null,"682","Oddajanje in obratovanje lastnih ali najetih nepremičnin"]
[null,null,null,null,null,null,null,"6820","Oddajanje in obratovanje lastnih ali najetih nepremičnin"]
[null,null,null,null,null,null,null,"68200","Oddajanje in obratovanje lastnih ali najetih nepremičnin"]
[null,null,null,null,null,null,null,"683","Poslovanje z nepremičninami za plačilo ali po pogodbi"]
[null,null,null,null,null,null,null,"6831","Posredništvo v prometu z nepremičninami"]
[null,null,null,null,null,null,null,"68310","Posredništvo v prometu z nepremičninami"]
[null,null,null,null,null,null,null,"6832","Upravljanje nepremičnin za plačilo ali po pogodbi"]
[null,null,null,null,null,null,null,"68320","Upravljanje nepremičnin za plačilo ali po pogodbi"]
[null,null,null,null,null,null,null,"69","Pravne in računovodske dejavnosti"]
[null,null,null,null,null,null,null,"691","Pravne dejavnosti"]
[null,null,null,null,null,null,null,"6910","Pravne dejavnosti"]
[null,null,null,null,null,null,null,"69101","Odvetništvo"]
[null,null,null,null,null,null,null,"69102","Notariat"]
[null,null,null,null,null,null,null,"69103","Druge pravne dejavnosti"]
[null,null,null,null,null,null,null,"692","Računovodske, knjigovodske in revizijske dejavnosti; davčno svetovanje"]
[null,null,null,null,null,null,null,"6920","Računovodske, knjigovodske in revizijske dejavnosti; davčno svetovanje"]
[null,null,null,null,null,null,null,"69200","Računovodske, knjigovodske in revizijske dejavnosti; davčno svetovanje"]
[null,null,null,null,null,null,null,"70","Dejavnost uprav podjetij; podjetniško in poslovno svetovanje"]
[null,null,null,null,null,null,null,"701","Dejavnost uprav podjetij"]
[null,null,null,null,null,null,null,"7010","Dejavnost uprav podjetij"]
[null,null,null,null,null,null,null,"70100","Dejavnost uprav podjetij"]
[null,null,null,null,null,null,null,"702","Podjetniško in poslovno svetovanje"]
[null,null,null,null,null,null,null,"7021","Dejavnost stikov z javnostjo"]
[null,null,null,null,null,null,null,"70210","Dejavnost stikov z javnostjo"]
[null,null,null,null,null,null,null,"7022","Drugo podjetniško in poslovno svetovanje"]
[null,null,null,null,null,null,null,"70220","Drugo podjetniško in poslovno svetovanje"]
[null,null,null,null,null,null,null,"71","Arhitekturno in tehnično projektiranje; tehnično preizkušanje in analiziranje"]
[null,null,null,null,null,null,null,"711","Arhitekturno in tehnično projektiranje in s tem povezano svetovanje"]
[null,null,null,null,null,null,null,"7111","Arhitekturna in urbanistična dejavnost"]
[null,null,null,null,null,null,null,"71111","Arhitekturno projektiranje"]
[null,null,null,null,null,null,null,"71112","Krajinsko arhitekturno, urbanistično in drugo projektiranje"]
[null,null,null,null,null,null,null,"7112","Tehnično projektiranje in s tem povezano svetovanje"]
[null,null,null,null,null,null,null,"71121","Geofizikalne meritve, kartiranje"]
[null,null,null,null,null,null,null,"71129","Drugo tehnično projektiranje in svetovanje"]
[null,null,null,null,null,null,null,"712","Tehnično preizkušanje in analiziranje"]
[null,null,null,null,null,null,null,"7120","Tehnično preizkušanje in analiziranje"]
[null,null,null,null,null,null,null,"71200","Tehnično preizkušanje in analiziranje"]
[null,null,null,null,null,null,null,"72","Znanstvena raziskovalna in razvojna dejavnost"]
[null,null,null,null,null,null,null,"721","Raziskovalna in razvojna dejavnost na področju naravoslovja in tehnologije"]
[null,null,null,null,null,null,null,"7211","Raziskovalna in razvojna dejavnost na področju biotehnologije"]
[null,null,null,null,null,null,null,"72110","Raziskovalna in razvojna dejavnost na področju biotehnologije"]
[null,null,null,null,null,null,null,"7219","Raziskovalna in razvojna dejavnost na drugih področjih naravoslovja in tehnologije"]
[null,null,null,null,null,null,null,"72190","Raziskovalna in razvojna dejavnost na drugih področjih naravoslovja in tehnologije"]
[null,null,null,null,null,null,null,"722","Raziskovalna in razvojna dejavnost na področju družboslovja in humanistike"]
[null,null,null,null,null,null,null,"7220","Raziskovalna in razvojna dejavnost na področju družboslovja in humanistike"]
[null,null,null,null,null,null,null,"72200","Raziskovalna in razvojna dejavnost na področju družboslovja in humanistike"]
[null,null,null,null,null,null,null,"73","Oglaševanje in raziskovanje trga"]
[null,null,null,null,null,null,null,"731","Oglaševanje"]
[null,null,null,null,null,null,null,"7311","Dejavnost oglaševalskih agencij"]
[null,null,null,null,null,null,null,"73110","Dejavnost oglaševalskih agencij"]
[null,null,null,null,null,null,null,"7312","Posredovanje oglaševalskega prostora"]
[null,null,null,null,null,null,null,"73120","Posredovanje oglaševalskega prostora"]
[null,null,null,null,null,null,null,"732","Raziskovanje trga in javnega mnenja"]
[null,null,null,null,null,null,null,"7320","Raziskovanje trga in javnega mnenja"]
[null,null,null,null,null,null,null,"73200","Raziskovanje trga in javnega mnenja"]
[null,null,null,null,null,null,null,"74","Druge strokovne in tehnične dejavnosti"]
[null,null,null,null,null,null,null,"741","Oblikovanje, aranžerstvo, dekoraterstvo"]
[null,null,null,null,null,null,null,"7410","Oblikovanje, aranžerstvo, dekoraterstvo"]
[null,null,null,null,null,null,null,"74100","Oblikovanje, aranžerstvo, dekoraterstvo"]
[null,null,null,null,null,null,null,"742","Fotografska dejavnost"]
[null,null,null,null,null,null,null,"7420","Fotografska dejavnost"]
[null,null,null,null,null,null,null,"74200","Fotografska dejavnost"]
[null,null,null,null,null,null,null,"743","Prevajanje in tolmačenje"]
[null,null,null,null,null,null,null,"7430","Prevajanje in tolmačenje"]
[null,null,null,null,null,null,null,"74300","Prevajanje in tolmačenje"]
[null,null,null,null,null,null,null,"749","Drugje nerazvrščene strokovne in tehnične dejavnosti"]
[null,null,null,null,null,null,null,"7490","Drugje nerazvrščene strokovne in tehnične dejavnosti"]
[null,null,null,null,null,null,null,"74900","Drugje nerazvrščene strokovne in tehnične dejavnosti"]
[null,null,null,null,null,null,null,"75","Veterinarstvo"]
[null,null,null,null,null,null,null,"750","Veterinarstvo"]
[null,null,null,null,null,null,null,"7500","Veterinarstvo"]
[null,null,null,null,null,null,null,"75000","Veterinarstvo"]
[null,null,null,null,null,null,null,"77","Dajanje v najem in zakup"]
[null,null,null,null,null,null,null,"771","Dajanje motornih vozil v najem in zakup"]
[null,null,null,null,null,null,null,"7711","Dajanje lahkih motornih vozil v najem in zakup"]
[null,null,null,null,null,null,null,"77110","Dajanje lahkih motornih vozil v najem in zakup"]
[null,null,null,null,null,null,null,"7712","Dajanje tovornjakov v najem in zakup"]
[null,null,null,null,null,null,null,"77120","Dajanje tovornjakov v najem in zakup"]
[null,null,null,null,null,null,null,"772","Dajanje športne opreme in izdelkov za široko rabo v najem in zakup"]
[null,null,null,null,null,null,null,"7721","Dajanje športne opreme v najem in zakup"]
[null,null,null,null,null,null,null,"77210","Dajanje športne opreme v najem in zakup"]
[null,null,null,null,null,null,null,"7722","Dajanje videokaset in plošč v najem"]
[null,null,null,null,null,null,null,"77220","Dajanje videokaset in plošč v najem"]
[null,null,null,null,null,null,null,"7729","Dajanje drugih izdelkov za široko rabo v najem in zakup"]
[null,null,null,null,null,null,null,"77290","Dajanje drugih izdelkov za široko rabo v najem in zakup"]
[null,null,null,null,null,null,null,"773","Dajanje strojev, naprav in drugih opredmetenih sredstev v najem in zakup"]
[null,null,null,null,null,null,null,"7731","Dajanje kmetijskih strojev in opreme v najem in zakup"]
[null,null,null,null,null,null,null,"77310","Dajanje kmetijskih strojev in opreme v najem in zakup"]
[null,null,null,null,null,null,null,"7732","Dajanje gradbenih strojev in opreme v najem in zakup"]
[null,null,null,null,null,null,null,"77320","Dajanje gradbenih strojev in opreme v najem in zakup"]
[null,null,null,null,null,null,null,"7733","Dajanje pisarniške opreme in računalniških naprav v najem in zakup"]
[null,null,null,null,null,null,null,"77330","Dajanje pisarniške opreme in računalniških naprav v najem in zakup"]
[null,null,null,null,null,null,null,"7734","Dajanje vodnih plovil v najem in zakup"]
[null,null,null,null,null,null,null,"77340","Dajanje vodnih plovil v najem in zakup"]
[null,null,null,null,null,null,null,"7735","Dajanje zračnih plovil v najem in zakup"]
[null,null,null,null,null,null,null,"77350","Dajanje zračnih plovil v najem in zakup"]
[null,null,null,null,null,null,null,"7739","Dajanje drugih strojev, naprav in opredmetenih sredstev v najem in zakup"]
[null,null,null,null,null,null,null,"77390","Dajanje drugih strojev, naprav in opredmetenih sredstev v najem in zakup"]
[null,null,null,null,null,null,null,"774","Dajanje pravic uporabe intelektualne lastnine v zakup, razen avtorsko zaščitenih del"]
[null,null,null,null,null,null,null,"7740","Dajanje pravic uporabe intelektualne lastnine v zakup, razen avtorsko zaščitenih del"]
[null,null,null,null,null,null,null,"77400","Dajanje pravic uporabe intelektualne lastnine v zakup, razen avtorsko zaščitenih del"]
[null,null,null,null,null,null,null,"78","Zaposlovalne dejavnosti"]
[null,null,null,null,null,null,null,"781","Dejavnost pri iskanju zaposlitve"]
[null,null,null,null,null,null,null,"7810","Dejavnost pri iskanju zaposlitve"]
[null,null,null,null,null,null,null,"78100","Dejavnost pri iskanju zaposlitve"]
[null,null,null,null,null,null,null,"782","Posredovanje začasne delovne sile"]
[null,null,null,null,null,null,null,"7820","Posredovanje začasne delovne sile"]
[null,null,null,null,null,null,null,"78200","Posredovanje začasne delovne sile"]
[null,null,null,null,null,null,null,"783","Druga oskrba s človeškimi viri"]
[null,null,null,null,null,null,null,"7830","Druga oskrba s človeškimi viri"]
[null,null,null,null,null,null,null,"78300","Druga oskrba s človeškimi viri"]
[null,null,null,null,null,null,null,"79","Dejavnost potovalnih agencij, organizatorjev potovanj in s potovanji povezanih dejavnosti"]
[null,null,null,null,null,null,null,"791","Dejavnost potovalnih agencij in organizatorjev potovanj"]
[null,null,null,null,null,null,null,"7911","Dejavnost potovalnih agencij"]
[null,null,null,null,null,null,null,"79110","Dejavnost potovalnih agencij"]
[null,null,null,null,null,null,null,"7912","Dejavnost organizatorjev potovanj"]
[null,null,null,null,null,null,null,"79120","Dejavnost organizatorjev potovanj"]
[null,null,null,null,null,null,null,"799","Rezervacije in druge s potovanji povezane dejavnosti"]
[null,null,null,null,null,null,null,"7990","Rezervacije in druge s potovanji povezane dejavnosti"]
[null,null,null,null,null,null,null,"79900","Rezervacije in druge s potovanji povezane dejavnosti"]
[null,null,null,null,null,null,null,"80","Varovanje in poizvedovalne dejavnosti"]
[null,null,null,null,null,null,null,"801","Varovanje"]
[null,null,null,null,null,null,null,"8010","Varovanje"]
[null,null,null,null,null,null,null,"80100","Varovanje"]
[null,null,null,null,null,null,null,"802","Nadzorovanje delovanja varovalnih sistemov"]
[null,null,null,null,null,null,null,"8020","Nadzorovanje delovanja varovalnih sistemov"]
[null,null,null,null,null,null,null,"80200","Nadzorovanje delovanja varovalnih sistemov"]
[null,null,null,null,null,null,null,"803","Poizvedovalne dejavnosti"]
[null,null,null,null,null,null,null,"8030","Poizvedovalne dejavnosti"]
[null,null,null,null,null,null,null,"80300","Poizvedovalne dejavnosti"]
[null,null,null,null,null,null,null,"81","Dejavnost oskrbe stavb in okolice"]
[null,null,null,null,null,null,null,"811","Vzdrževanje objektov in hišniška dejavnost"]
[null,null,null,null,null,null,null,"8110","Vzdrževanje objektov in hišniška dejavnost"]
[null,null,null,null,null,null,null,"81100","Vzdrževanje objektov in hišniška dejavnost"]
[null,null,null,null,null,null,null,"812","Čiščenje"]
[null,null,null,null,null,null,null,"8121","Splošno čiščenje stavb"]
[null,null,null,null,null,null,null,"81210","Splošno čiščenje stavb"]
[null,null,null,null,null,null,null,"8122","Drugo čiščenje stavb, industrijskih naprav in opreme"]
[null,null,null,null,null,null,null,"81220","Drugo čiščenje stavb, industrijskih naprav in opreme"]
[null,null,null,null,null,null,null,"8129","Čiščenje cest in drugo čiščenje"]
[null,null,null,null,null,null,null,"81290","Čiščenje cest in drugo čiščenje"]
[null,null,null,null,null,null,null,"813","Urejanje in vzdrževanje zelenih površin in okolice"]
[null,null,null,null,null,null,null,"8130","Urejanje in vzdrževanje zelenih površin in okolice"]
[null,null,null,null,null,null,null,"81300","Urejanje in vzdrževanje zelenih površin in okolice"]
[null,null,null,null,null,null,null,"82","Pisarniške in spremljajoče poslovne storitvene dejavnosti"]
[null,null,null,null,null,null,null,"821","Pisarniške dejavnosti"]
[null,null,null,null,null,null,null,"8211","Nudenje celovitih pisarniških storitev"]
[null,null,null,null,null,null,null,"82110","Nudenje celovitih pisarniških storitev"]
[null,null,null,null,null,null,null,"8219","Fotokopiranje, priprava dokumentov in druge posamične pisarniške dejavnosti"]
[null,null,null,null,null,null,null,"82190","Fotokopiranje, priprava dokumentov in druge posamične pisarniške dejavnosti"]
[null,null,null,null,null,null,null,"822","Dejavnost klicnih centrov"]
[null,null,null,null,null,null,null,"8220","Dejavnost klicnih centrov"]
[null,null,null,null,null,null,null,"82200","Dejavnost klicnih centrov"]
[null,null,null,null,null,null,null,"823","Organiziranje razstav, sejmov, srečanj"]
[null,null,null,null,null,null,null,"8230","Organiziranje razstav, sejmov, srečanj"]
[null,null,null,null,null,null,null,"82300","Organiziranje razstav, sejmov, srečanj"]
[null,null,null,null,null,null,null,"829","Druge spremljajoče dejavnosti za poslovanje"]
[null,null,null,null,null,null,null,"8291","Zbiranje terjatev in ocenjevanje kreditne sposobnosti"]
[null,null,null,null,null,null,null,"82910","Zbiranje terjatev in ocenjevanje kreditne sposobnosti"]
[null,null,null,null,null,null,null,"8292","Pakiranje"]
[null,null,null,null,null,null,null,"82920","Pakiranje"]
[null,null,null,null,null,null,null,"8299","Drugje nerazvrščene spremljajoče dejavnosti za poslovanje"]
[null,null,null,null,null,null,null,"82990","Drugje nerazvrščene spremljajoče dejavnosti za poslovanje"]
[null,null,null,null,null,null,null,"84","Dejavnost javne uprave in obrambe; dejavnost obvezne socialne varnosti"]
[null,null,null,null,null,null,null,"841","Dejavnost državne uprave ter ekonomska in socialna politika skupnosti"]
[null,null,null,null,null,null,null,"8411","Splošna dejavnost javne uprave"]
[null,null,null,null,null,null,null,"84110","Splošna dejavnost javne uprave"]
[null,null,null,null,null,null,null,"8412","Urejanje zdravstva, izobraževanja, kulturnih in drugih socialnih storitev, razen obvezne socialne varnosti"]
[null,null,null,null,null,null,null,"84120","Urejanje zdravstva, izobraževanja, kulturnih in drugih socialnih storitev, razen obvezne socialne varnosti"]
[null,null,null,null,null,null,null,"8413","Urejanje gospodarskih področij za učinkovitejše poslovanje"]
[null,null,null,null,null,null,null,"84130","Urejanje gospodarskih področij za učinkovitejše poslovanje"]
[null,null,null,null,null,null,null,"842","Posebne dejavnosti za celotno družbeno skupnost"]
[null,null,null,null,null,null,null,"8421","Urejanje zunanjih zadev"]
[null,null,null,null,null,null,null,"84210","Urejanje zunanjih zadev"]
[null,null,null,null,null,null,null,"8422","Obramba"]
[null,null,null,null,null,null,null,"84220","Obramba"]
[null,null,null,null,null,null,null,"8423","Sodstvo"]
[null,null,null,null,null,null,null,"84230",""]
[null,null,null,null,null,null,null,"8424","Dejavnosti za javni red in varnost"]
[null,null,null,null,null,null,null,"84240","Dejavnosti za javni red in varnost"]
[null,null,null,null,null,null,null,"8425","Zaščita in reševanje pri požarih in nesrečah"]
[null,null,null,null,null,null,null,"84250","Zaščita in reševanje pri požarih in nesrečah"]
[null,null,null,null,null,null,null,"843","Dejavnost obvezne socialne varnosti"]
[null,null,null,null,null,null,null,"8430","Dejavnost obvezne socialne varnosti"]
[null,null,null,null,null,null,null,"84300","Dejavnost obvezne socialne varnosti"]
[null,null,null,null,null,null,null,"85","Izobraževanje"]
[null,null,null,null,null,null,null,"851","Predšolska vzgoja"]
[null,null,null,null,null,null,null,"8510","Predšolska vzgoja"]
[null,null,null,null,null,null,null,"85100","Predšolska vzgoja"]
[null,null,null,null,null,null,null,"852","Osnovnošolsko izobraževanje"]
[null,null,null,null,null,null,null,"8520","Osnovnošolsko izobraževanje"]
[null,null,null,null,null,null,null,"85200","Osnovnošolsko izobraževanje"]
[null,null,null,null,null,null,null,"853","Srednješolsko izobraževanje"]
[null,null,null,null,null,null,null,"8531","Srednješolsko splošno izobraževanje"]
[null,null,null,null,null,null,null,"85310","Srednješolsko splošno izobraževanje"]
[null,null,null,null,null,null,null,"8532","Srednješolsko poklicno in strokovno izobraževanje"]
[null,null,null,null,null,null,null,"85320","Srednješolsko poklicno in strokovno izobraževanje"]
[null,null,null,null,null,null,null,"854","Posrednješolsko izobraževanje"]
[null,null,null,null,null,null,null,"8541","Posrednješolsko neterciarno izobraževanje"]
[null,null,null,null,null,null,null,"85410","Posrednješolsko neterciarno izobraževanje"]
[null,null,null,null,null,null,null,"8542","Višješolsko in visokošolsko izobraževanje"]
[null,null,null,null,null,null,null,"85421","Višješolsko izobraževanje"]
[null,null,null,null,null,null,null,"85422","Visokošolsko izobraževanje"]
[null,null,null,null,null,null,null,"855","Drugo izobraževanje, izpopolnjevanje in usposabljanje"]
[null,null,null,null,null,null,null,"8551","Izobraževanje, izpopolnjevanje in usposabljanje na področju športa in rekreacije"]
[null,null,null,null,null,null,null,"85510","Izobraževanje, izpopolnjevanje in usposabljanje na področju športa in rekreacije"]
[null,null,null,null,null,null,null,"8552","Izobraževanje, izpopolnjevanje in usposabljanje na področju kulture in umetnosti"]
[null,null,null,null,null,null,null,"85520","Izobraževanje, izpopolnjevanje in usposabljanje na področju kulture in umetnosti"]
[null,null,null,null,null,null,null,"8553","Dejavnost vozniških šol"]
[null,null,null,null,null,null,null,"85530","Dejavnost vozniških šol"]
[null,null,null,null,null,null,null,"8559","Drugje nerazvrščeno izobraževanje, izpopolnjevanje in usposabljanje"]
[null,null,null,null,null,null,null,"85590","Drugje nerazvrščeno izobraževanje, izpopolnjevanje in usposabljanje"]
[null,null,null,null,null,null,null,"856","Pomožne dejavnosti za izobraževanje"]
[null,null,null,null,null,null,null,"8560","Pomožne dejavnosti za izobraževanje"]
[null,null,null,null,null,null,null,"85600","Pomožne dejavnosti za izobraževanje"]
[null,null,null,null,null,null,null,"86","Zdravstvo"]
[null,null,null,null,null,null,null,"861","Bolnišnična zdravstvena dejavnost"]
[null,null,null,null,null,null,null,"8610","Bolnišnična zdravstvena dejavnost"]
[null,null,null,null,null,null,null,"86100","Bolnišnična zdravstvena dejavnost"]
[null,null,null,null,null,null,null,"862","Zunajbolnišnična zdravstvena in zobozdravstvena dejavnost"]
[null,null,null,null,null,null,null,"8621","Splošna zunajbolnišnična zdravstvena dejavnost"]
[null,null,null,null,null,null,null,"86210","Splošna zunajbolnišnična zdravstvena dejavnost"]
[null,null,null,null,null,null,null,"8622","Specialistična zunajbolnišnična zdravstvena dejavnost"]
[null,null,null,null,null,null,null,"86220","Specialistična zunajbolnišnična zdravstvena dejavnost"]
[null,null,null,null,null,null,null,"8623","Zobozdravstvena dejavnost"]
[null,null,null,null,null,null,null,"86230",""]
[null,null,null,null,null,null,null,"869","Druge dejavnosti za zdravje"]
[null,null,null,null,null,null,null,"8690","Druge dejavnosti za zdravje"]
[null,null,null,null,null,null,null,"86901","p."]
[null,null,null,null,null,null,null,"86909","Druge zdravstvene dejavnosti"]
[null,null,null,null,null,null,null,"87","Socialno varstvo z nastanitvijo"]
[null,null,null,null,null,null,null,"871","Dejavnost nastanitvenih ustanov za bolniško nego"]
[null,null,null,null,null,null,null,"8710","Dejavnost nastanitvenih ustanov za bolniško nego"]
[null,null,null,null,null,null,null,"87100","Dejavnost nastanitvenih ustanov za bolniško nego"]
[null,null,null,null,null,null,null,"872","Dejavnost nastanitvenih ustanov za oskrbo duševno prizadetih, duševno obolelih in zasvojenih oseb"]
[null,null,null,null,null,null,null,"8720","Dejavnost nastanitvenih ustanov za oskrbo duševno prizadetih, duševno obolelih in zasvojenih oseb"]
[null,null,null,null,null,null,null,"87200","Dejavnost nastanitvenih ustanov za oskrbo duševno prizadetih, duševno obolelih in zasvojenih oseb"]
[null,null,null,null,null,null,null,"873","Dejavnost nastanitvenih ustanov za oskrbo starejših in invalidnih oseb"]
[null,null,null,null,null,null,null,"8730","Dejavnost nastanitvenih ustanov za oskrbo starejših in invalidnih oseb"]
[null,null,null,null,null,null,null,"87300","Dejavnost nastanitvenih ustanov za oskrbo starejših in invalidnih oseb"]
[null,null,null,null,null,null,null,"879","Drugo socialno varstvo z nastanitvijo"]
[null,null,null,null,null,null,null,"8790","Drugo socialno varstvo z nastanitvijo"]
[null,null,null,null,null,null,null,"87900","Drugo socialno varstvo z nastanitvijo"]
[null,null,null,null,null,null,null,"88","Socialno varstvo brez nastanitve"]
[null,null,null,null,null,null,null,"881","Socialno varstvo brez nastanitve za starejše in invalidne osebe"]
[null,null,null,null,null,null,null,"8810","Socialno varstvo brez nastanitve za starejše in invalidne osebe"]
[null,null,null,null,null,null,null,"88101","Dejavnost invalidskih podjetij"]
[null,null,null,null,null,null,null,"88109","Drugo socialno varstvo brez nastanitve za starejše in invalidne osebe"]
[null,null,null,null,null,null,null,"889","Drugo socialno varstvo brez nastanitve"]
[null,null,null,null,null,null,null,"8891","Dnevno varstvo otrok"]
[null,null,null,null,null,null,null,"88910","Dnevno varstvo otrok"]
[null,null,null,null,null,null,null,"8899","Drugje nerazvrščeno socialno varstvo brez nastanitve"]
[null,null,null,null,null,null,null,"88991","Dejavnost humanitarnih in dobrodelnih organizacij"]
[null,null,null,null,null,null,null,"88999","Drugo drugje nerazvrščeno socialno varstvo brez nastanitve"]
[null,null,null,null,null,null,null,"90","Kulturne in razvedrilne dejavnosti"]
[null,null,null,null,null,null,null,"900","Kulturne in razvedrilne dejavnosti"]
[null,null,null,null,null,null,null,"9001","Umetniško uprizarjanje"]
[null,null,null,null,null,null,null,"90010","Umetniško uprizarjanje"]
[null,null,null,null,null,null,null,"9002","Spremljajoče dejavnosti za umetniško uprizarjanje"]
[null,null,null,null,null,null,null,"90020","Spremljajoče dejavnosti za umetniško uprizarjanje"]
[null,null,null,null,null,null,null,"9003","Umetniško ustvarjanje"]
[null,null,null,null,null,null,null,"90030","Umetniško ustvarjanje"]
[null,null,null,null,null,null,null,"9004","Obratovanje objektov za kulturne prireditve"]
[null,null,null,null,null,null,null,"90040","Obratovanje objektov za kulturne prireditve"]
[null,null,null,null,null,null,null,"91","Dejavnost knjižnic, arhivov, muzejev in druge kulturne dejavnosti"]
[null,null,null,null,null,null,null,"910","Dejavnost knjižnic, arhivov, muzejev in druge kulturne dejavnosti"]
[null,null,null,null,null,null,null,"9101","Dejavnost knjižnic in arhivov"]
[null,null,null,null,null,null,null,"91011","Dejavnost knjižnic"]
[null,null,null,null,null,null,null,"91012","Dejavnost arhivov"]
[null,null,null,null,null,null,null,"9102","Dejavnost muzejev"]
[null,null,null,null,null,null,null,"91020","Dejavnost muzejev"]
[null,null,null,null,null,null,null,"9103","Varstvo kulturne dediščine"]
[null,null,null,null,null,null,null,"91030","Varstvo kulturne dediščine"]
[null,null,null,null,null,null,null,"9104","Dejavnost botaničnih in živalskih vrtov, varstvo naravnih vrednot"]
[null,null,null,null,null,null,null,"91040","Dejavnost botaničnih in živalskih vrtov, varstvo naravnih vrednot"]
[null,null,null,null,null,null,null,"92","Prirejanje iger na srečo"]
[null,null,null,null,null,null,null,"920","Prirejanje iger na srečo"]
[null,null,null,null,null,null,null,"9200","Prirejanje iger na srečo"]
[null,null,null,null,null,null,null,"92001","Dejavnost igralnic"]
[null,null,null,null,null,null,null,"92002","Prirejanje iger na srečo, razen v igralnicah"]
[null,null,null,null,null,null,null,"93","Športne in druge dejavnosti za prosti čas"]
[null,null,null,null,null,null,null,"931","Športne dejavnosti"]
[null,null,null,null,null,null,null,"9311","Obratovanje športnih objektov"]
[null,null,null,null,null,null,null,"93110","Obratovanje športnih objektov"]
[null,null,null,null,null,null,null,"9312","Dejavnost športnih klubov"]
[null,null,null,null,null,null,null,"93120","Dejavnost športnih klubov"]
[null,null,null,null,null,null,null,"9313","Obratovanje fitnes objektov"]
[null,null,null,null,null,null,null,"93130","Obratovanje fitnes objektov"]
[null,null,null,null,null,null,null,"9319","Druge športne dejavnosti"]
[null,null,null,null,null,null,null,"93190","Druge športne dejavnosti"]
[null,null,null,null,null,null,null,"932","Druge dejavnosti za prosti čas"]
[null,null,null,null,null,null,null,"9321","Dejavnost zabaviščnih parkov"]
[null,null,null,null,null,null,null,"93210","Dejavnost zabaviščnih parkov"]
[null,null,null,null,null,null,null,"9329","Drugje nerazvrščene dejavnosti za prosti čas"]
[null,null,null,null,null,null,null,"93291","Dejavnost marin"]
[null,null,null,null,null,null,null,"93292","Dejavnost smučarskih centrov"]
[null,null,null,null,null,null,null,"93299","Druge nerazvrščene dejavnosti za prosti čas"]
[null,null,null,null,null,null,null,"94","Dejavnost članskih organizacij"]
[null,null,null,null,null,null,null,"941","Dejavnost poslovnih, delodajalskih in strokovnih združenj"]
[null,null,null,null,null,null,null,"9411","Dejavnost poslovnih in delodajalskih združenj"]
[null,null,null,null,null,null,null,"94110","Dejavnost poslovnih in delodajalskih združenj"]
[null,null,null,null,null,null,null,"9412","Dejavnost strokovnih združenj"]
[null,null,null,null,null,null,null,"94120","Dejavnost strokovnih združenj"]
[null,null,null,null,null,null,null,"942","Dejavnost sindikatov"]
[null,null,null,null,null,null,null,"9420","Dejavnost sindikatov"]
[null,null,null,null,null,null,null,"94200","Dejavnost sindikatov"]
[null,null,null,null,null,null,null,"949","Dejavnost drugih članskih organizacij"]
[null,null,null,null,null,null,null,"9491","Dejavnost verskih organizacij"]
[null,null,null,null,null,null,null,"94910","Dejavnost verskih organizacij"]
[null,null,null,null,null,null,null,"9492","Dejavnost političnih organizacij"]
[null,null,null,null,null,null,null,"94920","Dejavnost političnih organizacij"]
[null,null,null,null,null,null,null,"9499","Dejavnost drugje nerazvrščenih članskih organizacij"]
[null,null,null,null,null,null,null,"94991","Dejavnost invalidskih organizacij"]
[null,null,null,null,null,null,null,"94999","Dejavnost drugje nerazvrščenih članskih organizacij"]
[null,null,null,null,null,null,null,"95","Popravila računalnikov in izdelkov za široko rabo"]
[null,null,null,null,null,null,null,"951","Popravila in vzdrževanje računalnikov in komunikacijskih naprav"]
[null,null,null,null,null,null,null,"9511","Popravila in vzdrževanje računalnikov in perifernih enot"]
[null,null,null,null,null,null,null,"95110","Popravila in vzdrževanje računalnikov in perifernih enot"]
[null,null,null,null,null,null,null,"9512","Popravila komunikacijskih naprav"]
[null,null,null,null,null,null,null,"95120","Popravila komunikacijskih naprav"]
[null,null,null,null,null,null,null,"952","Popravila izdelkov za široko rabo"]
[null,null,null,null,null,null,null,"9521","Popravila elektronskih naprav za široko rabo"]
[null,null,null,null,null,null,null,"95210","Popravila elektronskih naprav za široko rabo"]
[null,null,null,null,null,null,null,"9522","Popravila gospodinjskih in hišnih naprav in opreme"]
[null,null,null,null,null,null,null,"95220","Popravila gospodinjskih in hišnih naprav in opreme"]
[null,null,null,null,null,null,null,"9523","Popravila obutve in usnjene galanterije"]
[null,null,null,null,null,null,null,"95230","Popravila obutve in usnjene galanterije"]
[null,null,null,null,null,null,null,"9524","Popravila pohištva"]
[null,null,null,null,null,null,null,"95240","Popravila pohištva"]
[null,null,null,null,null,null,null,"9525","Popravila ur in nakita"]
[null,null,null,null,null,null,null,"95250","Popravila ur in nakita"]
[null,null,null,null,null,null,null,"9529","Popravila drugih osebnih ali gospodinjskih izdelkov"]
[null,null,null,null,null,null,null,"95290","Popravila drugih osebnih ali gospodinjskih izdelkov"]
[null,null,null,null,null,null,null,"96","Druge storitvene dejavnosti"]
[null,null,null,null,null,null,null,"960","Druge storitvene dejavnosti"]
[null,null,null,null,null,null,null,"9601","Dejavnost pralnic in kemičnih čistilnic"]
[null,null,null,null,null,null,null,"96010","Dejavnost pralnic in kemičnih čistilnic"]
[null,null,null,null,null,null,null,"9602","Frizerska, kozmetična in pedikerska dejavnost"]
[null,null,null,null,null,null,null,"96021","Frizerska dejavnost"]
[null,null,null,null,null,null,null,"96022","Kozmetična in pedikerska dejavnost"]
[null,null,null,null,null,null,null,"9603","Pogrebna dejavnost"]
[null,null,null,null,null,null,null,"96030","Pogrebna dejavnost"]
[null,null,null,null,null,null,null,"9604","Dejavnosti za nego telesa"]
[null,null,null,null,null,null,null,"96040","Dejavnosti za nego telesa"]
[null,null,null,null,null,null,null,"9609","Druge storitvene dejavnosti, drugje nerazvrščene"]
[null,null,null,null,null,null,null,"96090","Druge storitvene dejavnosti, drugje nerazvrščene"]
[null,null,null,null,null,null,null,"97","Dejavnost gospodinjstev z zaposlenim hišnim osebjem"]
[null,null,null,null,null,null,null,"970","Dejavnost gospodinjstev z zaposlenim hišnim osebjem"]
[null,null,null,null,null,null,null,"9700","Dejavnost gospodinjstev z zaposlenim hišnim osebjem"]
[null,null,null,null,null,null,null,"97000","Dejavnost gospodinjstev z zaposlenim hišnim osebjem"]
[null,null,null,null,null,null,null,"98","Raznovrstna proizvodnja gospodinjstev za lastno rabo"]
[null,null,null,null,null,null,null,"981","Raznovrstna proizvodnja dobrin v gospodinjstvih za lastno rabo"]
[null,null,null,null,null,null,null,"9810","Raznovrstna proizvodnja dobrin v gospodinjstvih za lastno rabo"]
[null,null,null,null,null,null,null,"98100","Raznovrstna proizvodnja dobrin v gospodinjstvih za lastno rabo"]
[null,null,null,null,null,null,null,"982","Raznovrstna proizvodnja storitev v gospodinjstvih za lastno rabo"]
[null,null,null,null,null,null,null,"9820","Raznovrstna proizvodnja storitev v gospodinjstvih za lastno rabo"]
[null,null,null,null,null,null,null,"98200","Raznovrstna proizvodnja storitev v gospodinjstvih za lastno rabo"]
[null,null,null,null,null,null,null,"99","Dejavnost eksteritorialnih organizacij in teles"]
[null,null,null,null,null,null,null,"990","Dejavnost eksteritorialnih organizacij in teles"]
[null,null,null,null,null,null,null,"9900","Dejavnost eksteritorialnih organizacij in teles"]
[null,null,null,null,null,null,null,"99000","Dejavnost eksteritorialnih organizacij in teles"]
[null,null,null,null,null,null,null,"A","KMETIJSTVO IN LOV, GOZDARSTVO, RIBIŠTVO"]
[null,null,null,null,null,null,null,"B","RUDARSTVO"]
[null,null,null,null,null,null,null,"C","PREDELOVALNE DEJAVNOSTI"]
[null,null,null,null,null,null,null,"D","OSKRBA Z ELEKTRIČNO ENERGIJO, PLINOM IN PARO"]
[null,null,null,null,null,null,null,"E","OSKRBA Z VODO; RAVNANJE Z ODPLAKAMI IN ODPADKI; SANIRANJE OKOLJA"]
[null,null,null,null,null,null,null,"F","GRADBENIŠTVO"]
[null,null,null,null,null,null,null,"G","TRGOVINA; VZDRŽEVANJE IN POPRAVILA MOTORNIH VOZIL"]
[null,null,null,null,null,null,null,"H","PROMET IN SKLADIŠČENJE"]
[null,null,null,null,null,null,null,"I","GOSTINSTVO"]
[null,null,null,null,null,null,null,"J","INFORMACIJSKE IN KOMUNIKACIJSKE DEJAVNOSTI"]
[null,null,null,null,null,null,null,"K","FINANČNE IN ZAVAROVALNIŠKE DEJAVNOSTI"]
[null,null,null,null,null,null,null,"L","POSLOVANJE Z NEPREMIČNINAMI"]
[null,null,null,null,null,null,null,"M","STROKOVNE, ZNANSTVENE IN TEHNIČNE DEJAVNOSTI"]
[null,null,null,null,null,null,null,"N","DRUGE RAZNOVRSTNE POSLOVNE DEJAVNOSTI"]
[null,null,null,null,null,null,null,"O","DEJAVNOST JAVNE UPRAVE IN OBRAMBE; DEJAVNOST OBVEZNE SOCIALNE VARNOSTI"]
[null,null,null,null,null,null,null,"P","IZOBRAŽEVANJE"]
[null,null,null,null,null,null,null,"Q","ZDRAVSTVO IN SOCIALNO VARSTVO"]
[null,null,null,null,null,null,null,"R","KULTURNE, RAZVEDRILNE IN REKREACIJSKE DEJAVNOSTI"]
[null,null,null,null,null,null,null,"S","DRUGE DEJAVNOSTI"]
[null,null,null,null,null,null,null,"T","DEJAVNOST GOSPODINJSTEV Z ZAPOSLENIM HIŠNIM OSEBJEM; PROIZVODNJA ZA LASTNO RABO"]
[null,null,null,null,null,null,null,"U","DEJAVNOST EKSTERITORIALNIH ORGANIZACIJ IN TELES"]

{"sheet":"Parametri","index":13,"n_rows":473,"n_cols":5,"rows_kept":473,"cut":false,"hidden":true,"merged":[]}
["IDParameter","ImeParametra","Enota","Opisni parametri","Parameter kemijskega stanja"]
[8140,"1,1,1-trikloroetan","µg/l"]
[8160,"1,1,2,2-Tetrakloroetan","µg/l"]
[8150,"1,1,2-Trikloroetan","µg/l"]
[8080,"1,1-Dikloroetan","µg/l"]
[8100,"1,1-Dikloroeten","µg/l"]
[90077,"1,2,3,4,6,7,8,9-OCDD","µg/L"]
[90078,"1,2,3,4,6,7,8,9-OCDF","µg/L"]
[90079,"1,2,3,4,6,7,8-HpCDD","µg/L"]
[90080,"1,2,3,4,6,7,8-HpCDF","µg/L"]
[90081,"1,2,3,4,7,8,9-HpCDF","µg/L"]
[90082,"1,2,3,4,7,8-HxCDD","µg/L"]
[90083,"1,2,3,4,7,8-HxCDF","µg/L"]
[90084,"1,2,3,6,7,8-HxCDD","µg/L"]
[90085,"1,2,3,6,7,8-HxCDF","µg/L"]
[90086,"1,2,3,7,8,9-HxCDD","µg/L"]
[90087,"1,2,3,7,8,9-HxCDF","µg/L"]
[90088,"1,2,3,7,8-PeCDD","µg/L"]
[90089,"1,2,3,7,8-PeCDF","µg/L"]
[6163,"1,2,3-Triklorobenzen","µg/L"]
[8435,"1,2,4 Trimetilbenzen","µg/L"]
[6164,"1,2,4-Triklorobenzen","µg/L"]
[8907,"1,2,5,6,9,10-heksabromociklododekan","µg/L"]
[8090,"1,2-Dikloroetan","µg/L",null,"*"]
[8906,"1,3,5,7,9,11-heksabromociklododekan","µg/L"]
[6165,"1,3,5-Triklorobenzen","µg/L"]
[8440,"1,3,5-Trimetilbenzen","µg/L"]
[3382,"2,2',4,4',5,5'-HeksaBDE (BDE 153)","µg/L"]
[3381,"2,2',4,4',5,6'-HeksaBDE (BDE 154)","µg/L"]
[3372,"2,2',4,4',5-PentaBDE (BDE 99)","µg/L"]
[3370,"2,2',4,4',6-PentaBDE (BDE 100)","µg/L"]
[3363,"2,2',4,4'-TetraBDE (BDE 47)","µg/L"]
[90092,"2,3,4,6,7,8-HxCDF","µg/L"]
[90093,"2,3,4,7,8-PeCDF","µg/L"]
[90094,"2,3,7,8-TCDD","µg/L"]
[90095,"2,3,7,8-TCDF","µg/L"]
[3355,"2,4,4'-TriBDE (BDE 28)","µg/L"]
[6390,"2,4,5-T","µg/L"]
[6370,"2,4-D","µg/L"]
[6335,"2,6-diklorobenzamid","µg/L"]
[7030,"Acenaften","µg/L"]
[7020,"Acenaftilen","µg/L"]
[6500,"Acetoklor","µg/L"]
[8250,"Adsorbljivi organski halogeni (AOX)","µg/L"]
[6945,"Aklonifen","µg/L",null,"*"]
[6010,"Alaklor","µg/L",null,"*"]
[6030,"Aldrin","µg/L"]
[6120,"alfa-HCH","µg/L"]
[8908,"alfa-heksabromociklododekan","µg/L"]
[4010,"Aluminij-filt.","µg/L"]
[2130,"Amoniak (prosti)","mg NH3/L"]
[2140,"Amonij","mg/L"]
[3022,"Anionaktivni detergenti","µg/L"]
[4020,"Antimon-filt.","µg/L"]
[7060,"Antracen","µg/L",null,"*"]
[4030,"Arzen-filt.","µg/L"]
[12050,"Atenolol","µg/L"]
[6210,"Atrazin","µg/L",null,"*"]
[13065,"Azitromicin","µg/L"]
[6620,"Azoksistrobin","µg/L"]
[4040,"Baker-filt.","µg/L"]
[4070,"Barij-filt.","µg/L"]
[1029,"Barva","m-1"]
[1035,"Barva - senzorična analiza",null,"*"]
[6510,"Bentazon","µg/L"]
[8190,"Benzen","µg/L",null,"*"]
[7090,"Benzo(a)antracen","µg/L"]
[7130,"Benzo(a)piren","µg/L",null,"*"]
[7110,"Benzo(b)fluoranten","µg/L",null,"*"]
[7140,"Benzo(ghi)perilen","µg/L",null,"*"]
[7120,"Benzo(k)fluoranten","µg/L",null,"*"]
[4080,"Berilij-filt.","µg/L"]
[6130,"beta-HCH","µg/L"]
[8909,"beta-heksabromociklododekan","µg/L"]
[12006,"Betaksolol","µg/L"]
[12008,"Bezafibrat","µg/L"]
[6930,"Bifenoks","µg/L",null,"*"]
[2090,"Biokemijska potreba po kisiku (BPK5)","mg/L"]
[3340,"Bisfenol A","µg/L"]
[3011,"Bor-filt.","µg/L"]
[6330,"Bromacil","µg/L"]
[8030,"Bromdiklorometan","µg/l"]
[2190,"Bromidi","mg/L"]
[3399,"Bromirani difenileter - vsota","µg/L",null,"*"]
[6336,"Bromoksinil","µg/L"]
[3300,"C10-13 kloroalkani","µg/L",null,"*"]
[2221,"Celotni fosfor-nefiltriran","mg/L"]
[2100,"Celotni organski ogljik (TOC)","mg/L"]
[6270,"Cianazin","µg/L"]
[3059,"Cianid (prosti)","µg/L"]
[6935,"Cibutrin","µg/L",null,"*"]
[92901,"Ciklodienski pesticidi (vsota)","µg/L",null,"*"]
[4090,"Cink-filt.","µg/L"]
[6039,"Cipermetrin","µg/L",null,"*"]
[12048,"Ciprofloksacin","µg/L"]
[8111,"cis-1,2 - Dikloroeten","µg/l"]
[6111,"cis-Heptaklorepoksid","µg/L"]
[6060,"DDD (o,p)","µg/L"]
[6070,"DDD (p,p)","µg/L"]
[6050,"DDE (p,p)","µg/L"]
[6042,"DDT (o,p)","µg/L"]
[6040,"DDT (p,p)","µg/L",null,"*"]
[90497,"DDT (vsota)","µg/L",null,"*"]
[6150,"delta-HCH","µg/L"]
[6220,"Desetil-atrazin","µg/L"]
[6281,"Desetil-terbutilazin","µg/L"]
[6230,"Desizopropil-atrazin","µg/L"]
[3240,"Di-(2-etilheksil)-ftalat (DEHP)","µg/L",null,"*"]
[6574,"Diazinon","µg/L"]
[7150,"Dibenzo(a,h)antracen","µg/L"]
[8040,"Dibromklorometan","µg/l"]
[3140,"Dibutilftalat","µg/L"]
[3320,"Dibutilkositrove spojine","µg/L"]
[6470,"Dicamba","µg/L"]
[6080,"Dieldrin","µg/L"]
[12010,"Diklofenak","µg/L"]
[6860,"Diklorfos","µg/L",null,"*"]
[8070,"Diklorometan","µg/L",null,"*"]
[6036,"Dikofol","µg/L",null,"*"]
[6520,"Dimetenamid","µg/L"]
[6880,"Dimetoat","µg/L"]
[90106,"Dioksini in dioksinom podobne spojine","µg/L",null,"*"]
[6340,"Diuron","µg/L",null,"*"]
[1071,"Električna prevodnost (25°C)","µS/cm"]
[6181,"Endosulfan(alfa)","µg/L",null,"*"]
[6180,"Endosulfan(alfa+beta)","µg/L",null,"*"]
[6182,"Endosulfan(beta)","µg/L",null,"*"]
[6090,"Endrin","µg/L"]
[8820,"Epiklorohidrin","µg/L"]
[13055,"Eritromicin","µg/L"]
[8430,"Etilbenzen","µg/L"]
[7050,"Fenantren","µg/L"]
[12012,"Fenofibrat","µg/L"]
[5050,"Fenol","µg/L"]
[12014,"Fenoterol","µg/L"]
[7070,"Fluoranten","µg/L",null,"*"]
[7040,"Fluoren","µg/L"]
[2211,"Fluorid","µg/L"]
[6570,"Folpet","µg/L"]
[2731,"Formaldehid","µg/L"]
[6140,"gama-HCH (Lindan)","µg/L"]
[8910,"gama-heksabromociklododekan","µg/L"]
[12016,"Gemfibrozil","µg/L"]
[6205,"Glifosat","µg/L"]
[96050,"Heksabromociklododekani (HBCDD)","µg/L",null,"*"]
[6160,"Heksaklorobenzen (HCB)","µg/L",null,"*"]
[6170,"Heksaklorobutadien (HCBD)","µg/L",null,"*"]
[93000,"Heksaklorocikloheksan","µg/L",null,"*"]
[8400,"Heksakloroetan","µg/L"]
[6100,"Heptaklor","µg/L"]
[94405,"Heptaklor in heptaklor epoksid","µg/L",null,"*"]
[2310,"Hidrogenkarbonati","mg/L"]
[6908,"Imidakloprid","µg/L"]
[7160,"Indeno(1,2,3-cd)piren","µg/L",null,"*"]
[12018,"Indometacin","µg/L"]
[6095,"Izodrin","µg/L"]
[6295,"Izoksaflutol","µg/L"]
[6343,"Izoproturon","µg/L",null,"*"]
[4120,"Kadmij-filt.","µg/L",null,"*"]
[2250,"Kalcij","mg/L"]
[2280,"Kalij","mg/L"]
[6580,"Kaptan","µg/L"]
[12020,"Karbamazepin","µg/L"]
[2810,"Karbonatna trdota","°NT"]
[2080,"Kemijska potreba po kisiku - KPK s K2Cr2O7","mg/L"]
[12022,"Ketoprofen","µg/L"]
[1080,"Kisik","mg O2/L"]
[13060,"Klaritromicin","µg/L"]
[6840,"Klorfenvinfos","µg/L",null,"*"]
[6700,"Kloridazon","µg/L"]
[2180,"Kloridi","mg/L"]
[12060,"Klorotetraciklin","µg/L"]
[6341,"Klorotoluron","µg/L"]
[6847,"Klorpirifos metil","µg/L"]
[6844,"Klorpirifos-etil","µg/L",null,"*"]
[13020,"Klotianidin","µg/L"]
[4150,"Kobalt-filt.","µg/L"]
[12026,"Kodein","µg/L"]
[12024,"Kofein","µg/L"]
[4160,"Kositer-filt.","µg/L"]
[7100,"Krizen","µg/L"]
[4180,"Krom (VI)","µg/L"]
[4190,"Krom-filt.","µg/L"]
[12084,"Krotamiton","µg/L"]
[8210,"Ksilen","µg/L"]
[6940,"Kvinoksifen","µg/L",null,"*"]
[7600,"Lahkohlapni aromatski ogljikovodiki - BTEX - vsota","µg/l"]
[8185,"Lahkohlapni klorirani ogljikovodiki (LKCH) - vsota","µg/l"]
[6345,"Linuron","µg/L"]
[8211,"m,p- Ksilen","µg/L"]
[2260,"Magnezij","mg/L"]
[2910,"m-Alkaliteta","mekv/L"]
[2291,"Mangan-filt.","µg/L"]
[6400,"MCPA","µg/L"]
[6420,"MCPP","µg/L"]
[6025,"Metabolit S-metolaklora ESA","µg/l"]
[6023,"Metabolit S-metolaklora OXA","µg/l"]
[6253,"Metaflumizon","µg/L"]
[6480,"Metalaksil","µg/L"]
[6310,"Metamitron","µg/L"]
[6490,"Metazaklor","µg/L"]
[6645,"Metiokarb","µg/L"]
[6020,"Metolaklor","µg/L"]
[12004,"Metoprolol","µg/L"]
[6320,"Metribuzin","µg/L"]
[6680,"Mezotrion","µg/l"]
[1221,"Min. olja - senzorična analiza",null,"*"]
[3070,"Mineralna olja","mg/L"]
[4220,"Molibden-filt.","µg/L"]
[6346,"Monolinuron","µg/L"]
[1111,"Motnost","NTU"]
[1114,"Motnost - ocena",null,"*"]
[1460,"N,N-dietil-m-toluamid","µg/L"]
[1160,"Način odvzema",null,"*"]
[7010,"Naftalen","µg/L",null,"*"]
[12040,"Naproksen","µg/L"]
[6540,"Napropamid","µg/L"]
[1090,"Nasičenost s kisikom","%"]
[2270,"Natrij","mg/L"]
[8420,"n-Heksan","µg/L"]
[4230,"Nikelj-filt.","µg/L",null,"*"]
[2160,"Nitrat","mg/L"]
[2150,"Nitrit","mg/L"]
[3260,"Nonilfenoli","µg/L",null,"*"]
[13030,"Oksadiazon","µg/L"]
[8212,"o-Ksilen","µg/L"]
[12062,"Oksitetraciklin","µg/L"]
[3270,"Oktilfenoli","µg/L",null,"*"]
[2230,"Ortofosfati","mg/L"]
[12030,"Paracetamol","µg/L"]
[3083,"PCB-101","µg/L"]
[90115,"PCB-105","µg/L"]
[90116,"PCB-114","µg/L"]
[3084,"PCB-118","µg/L"]
[90117,"PCB-123","µg/L"]
[3088,"PCB-126","µg/L"]
[3085,"PCB-138","µg/L"]
[3086,"PCB-153","µg/L"]
[90119,"PCB-156","µg/L"]
[90120,"PCB-157","µg/L"]
[90121,"PCB-167","µg/L"]
[90122,"PCB-169","µg/L"]
[3087,"PCB-180","µg/L"]
[90123,"PCB-189","µg/L"]
[3079,"PCB-194","µg/l"]
[3081,"PCB-28","µg/L"]
[3082,"PCB-52","µg/L"]
[90124,"PCB-77","µg/L"]
[90125,"PCB-81","µg/L"]
[6484,"Pendimetalin","µg/L"]
[12032,"Penicilin G","µg/L"]
[6155,"Pentaklorobenzen","µg/L",null,"*"]
[5170,"Pentaklorofenol","µg/L",null,"*"]
[6690,"Permetrin","µg/L"]
[6990,"pesticidi (skupno)","µg/l"]
[8900,"PFOS","µg/L",null,"*"]
[1060,"pH"]
[7080,"Piren","µg/l"]
[7180,"policiklični aromatski ogljikovodiki PAO (vsota)","µg/l",null,"*"]
[3080,"Poliklorirani bifenili (PCB) (vsota-6 Ballschm.)","µg/L"]
[1211,"Površ. akt. snovi - senzorična analiza",null,"*"]
[1180,"Pretok","m3/s"]
[6260,"Prometrin","µg/L"]
[6250,"Propazin","µg/L"]
[12044,"Propifenazon","µg/L"]
[6327,"Propikonazol","µg/L"]
[1191,"Prosojnost (Secchijeva globina)","m"]
[2102,"Raztopljeni organski ogljik - DOC","mg C/L"]
[1100,"Redoks potencial","mV"]
[12064,"Salbutamol","µg/L"]
[6304,"Sekbumeton","µg/L"]
[4260,"Selen-filt.","µg/L"]
[6240,"Simazin","µg/L",null,"*"]
[2241,"Silicijev dioksid","mg SiO2/l"]
[2800,"Skupna trdota","°N"]
[2120,"Skupni dušik TN","mg/L"]
[12068,"Sotalol","µg/L"]
[4270,"Srebro-filt.","µg/L"]
[90335,"Stiren","µg/l"]
[6,"Strupenost za vodne bolhe"]
[12070,"Sulfadiazin","µg/L"]
[12072,"Sulfadoksin","µg/L"]
[12000,"Sulfamerazin","µg/L"]
[12034,"Sulfametoksazol","µg/L"]
[2170,"Sulfat","mg/L"]
[12074,"Sulfatiazol","µg/L"]
[2330,"Sulfid raztopljeni","mg/L"]
[2020,"Suspendirane snovi po sušenju","mg/L"]
[4290,"Svinec-filt.","µg/L",null,"*"]
[4495,"Talij-filt.","µg/L"]
[4500,"Telur-filt.","µg/L"]
[1020,"Temperatura vode","°C"]
[1010,"Temperatura zraka","°C"]
[12038,"Teofilin","µg/L"]
[12078,"Terbutalin","µg/L"]
[6280,"Terbutilazin","µg/L"]
[6290,"Terbutrin","µg/L",null,"*"]
[12036,"Testosteron","µg/L"]
[12080,"Tetraciklin","µg/L"]
[8120,"Tetrakloroeten (tetrakloroetilen)","µg/L",null,"*"]
[8060,"Tetraklorometan","µg/L",null,"*"]
[6547,"Tiakloprid","µg/L"]
[6537,"Tiametoksam","µg/L"]
[4370,"Titan-filt.","µg/L"]
[8200,"Toluen","µg/L"]
[8112,"trans-1,2-Dikloroeten","µg/l"]
[6112,"trans-Heptaklorepoksid","µg/L"]
[6325,"Triadimefon","µg/L"]
[13035,"Trialat","µg/L"]
[8020,"Tribromometan","µg/l"]
[3120,"Tributilfosfat","µg/L"]
[3310,"Tributilkositrove spojine","µg/L",null,"*"]
[6485,"Trifluralin","µg/L",null,"*"]
[6169,"Triklorobenzeni","µg/L",null,"*"]
[8130,"Trikloroeten (trikloroetilen)","µg/L",null,"*"]
[3100,"Trikloroetilfosfat","µg/L"]
[8010,"Triklorometan (kloroform)","µg/L",null,"*"]
[3110,"Trikloropropilfosfat","µg/L"]
[12002,"Trimetoprim","µg/L"]
[4,"Usedljive snovi","ml/L"]
[4330,"Vanadij-filt.","µg/L"]
[1031,"Vidna barva","-","*"]
[1045,"Vidne odplake",null,"*"]
[1050,"Vonj",null,"*"]
[1520,"Vreme pred vzorčenjem",null,"*"]
[1530,"Vreme v času vzorčenja",null,"*"]
[2300,"Železo-filt.","mg/L"]
[4340,"Živo srebro-filt.","µg/L",null,"*"]
[3656,"1,2,3,4,6,7,8,9-O8CDD-sed.","µg/kg s.s."]
[3666,"1,2,3,4,6,7,8,9-O8CDF-sed.","µg/kg s.s."]
[3655,"1,2,3,4,6,7,8-H7CDD-sed.","µg/kg s.s."]
[3664,"1,2,3,4,6,7,8-H7CDF-sed.","µg/kg s.s."]
[3665,"1,2,3,4,7,8,9-H7CDF-sed.","µg/kg s.s."]
[3652,"1,2,3,4,7,8-H6CDD-sed.","µg/kg s.s."]
[3660,"1,2,3,4,7,8-H6CDF-sed.","µg/kg s.s."]
[3653,"1,2,3,6,7,8-H6CDD-sed.","µg/kg s.s."]
[3661,"1,2,3,6,7,8-H6CDF-sed.","µg/kg s.s."]
[3654,"1,2,3,7,8,9-H6CDD-sed.","µg/kg s.s."]
[3662,"1,2,3,7,8,9-H6CDF-sed.","µg/kg s.s."]
[3651,"1,2,3,7,8-P5CDD-sed.","µg/kg s.s."]
[3658,"1,2,3,7,8-P5CDF-sed.","µg/kg s.s."]
[8919,"1,2,5,6,9,10 - HBCDD-sed.","µg/kg s.s."]
[8918,"1,3,5,7,9,11- HBCDD-sed.","µg/kg s.s."]
[3483,"2,2',3,4,4',5',6-HeptaBDE (BDE 183) - sed.","µg/kg s.s."]
[3482,"2,2',4,4',5,5'-HeksaBDE (BDE 153) - sed.","µg/kg s.s."]
[3481,"2,2',4,4',5,6'-HeksaBDE (BDE 154) - sed.","µg/kg s.s."]
[3472,"2,2',4,4',5-PentaBDE (BDE 99) - sed.","µg/kg s.s."]
[3470,"2,2',4,4',6-PentaBDE (BDE 100) - sed.","µg/kg s.s."]
[3462,"2,2',4,4'-TetraBDE (BDE 47) - sed.","µg/kg s.s."]
[3678,"2,3,3´,4,4´,5,5´-H7CB (PCB 189)-sed.","µg/kg s.s."]
[3675,"2,3,3´,4,4´,5´-H6CB (PCB 157)-sed.","µg/kg s.s."]
[3674,"2,3,3´,4,4´,5-H6CB (PCB 156)-sed.","µg/kg s.s."]
[3669,"2,3,3´,4,4´-P5CB (PCB 105)-sed.","µg/kg s.s."]
[3670,"2,3,4,4´,5-P5CB (PCB 114)-sed.","µg/kg s.s."]
[3663,"2,3,4,6,7,8-H6CDF-sed.","µg/kg s.s."]
[3659,"2,3,4,7,8-P5CDF-sed.","µg/kg s.s."]
[3650,"2,3,7,8-T4CDD-sed.","µg/kg s.s."]
[3657,"2,3,7,8-T4CDF-sed.","µg/kg s.s."]
[3676,"2,3´,4,4´,5,5´-H6CB (PCB 167)-sed.","µg/kg s.s."]
[3672,"2,3´,4,4´,5´-P5CB (PCB 123)-sed.","µg/kg s.s."]
[3671,"2,3´,4,4´,5-P5CB (PCB 118)-sed.","µg/kg s.s."]
[3455,"2,4,4'-TriBDE (BDE 28) - sed.","µg/kg s.s."]
[3677,"3,3´,4,4´,5,5´-H6CB (PCB 169)-sed.","µg/kg s.s."]
[3673,"3,3´,4,4´,5-P5CB (PCB 126)-sed.","µg/kg s.s."]
[3667,"3,3´,4,4´-T4CB (PCB 77)-sed.","µg/kg s.s."]
[3668,"3,3´,4´,5-T4CB (PCB 81)-sed.","µg/kg s.s."]
[8920,"alfa - HBCDD-sed.","µg/kg s.s."]
[6122,"alfa - HCH sed.","mg/kg s.s."]
[7062,"Antracen-sed.","mg/kg s.s."]
[7132,"Benzo(a)piren-sed.","mg/kg s.s."]
[7112,"Benzo(b)fluoranten-sed.","mg/kg s.s."]
[7142,"Benzo(ghi)perilen-sed.","mg/kg s.s."]
[7122,"Benzo(k)fluoranten-sed.","mg/kg s.s."]
[8921,"beta - HBCDD-sed.","µg/kg s.s."]
[6132,"beta - HCH sed.","mg/kg s.s."]
[3499,"Bromirani difenileter - vsota sed.","µg/kg s.s."]
[3301,"C10-C13 kloroalkani-sed.","µg/kg s.s."]
[6108,"cis-heptaklorepoksid-sed.","mg/kg s.s."]
[6152,"delta - HCH sed.","mg/kg s.s."]
[3241,"Di(2-etilheksil)ftalat (DEHP)-sed.","µg/kg s.s."]
[6037,"Dikofol-sed.","µg/kg s.s."]
[3721,"Dioksini in dioksinom podobne spojine (vsota) sed.","µg/kg s.s."]
[7072,"Fluoranten-sed.","mg/kg s.s."]
[8922,"gama - HBCDD-sed.","µg/kg s.s."]
[6142,"gama - HCH (Lindan) sed.","mg/kg s.s."]
[8911,"HBCDD-sed.","µg/kg s.s."]
[6162,"Heksaklorobenzen (HCB) sed.","mg/kg s.s."]
[6172,"Heksaklorobutadien (HCBD) sed.","mg/kg s.s."]
[6154,"Heksaklorocikloheksan sed.","mg/kg s.s."]
[94405,"Heptaklor in heptaklor epoksid sed.","mg/kg s.s."]
[6102,"Heptaklor sed.","mg/kg s.s."]
[7162,"Indeno(1,2,3-cd)piren-sed.","mg/kg s.s."]
[4140,"Kadmij-sed.","mg/kg s.s."]
[6076,"Kvinoksifen-sed.","µg/kg s.s."]
[6156,"Pentaklorobenzen-sed.","mg/kg s.s."]
[8901,"PFOS-sed.","µg/kg s.s."]
[90742,"Sušilni ostanek","%"]
[90743,"Sušilni ostanek (zračno suh)","%"]
[4310,"Svinec-sed.","mg/kg s.s."]
[6109,"trans-heptaklorepoksid-sed.","mg/kg s.s."]
[3312,"Tributilkositrove spojine (tributilkositrov kation) sed.","µg/kg s.s."]
[4360,"Živo srebro-sed.","mg/kg s.s."]
[3606,"1,2,3,4,6,7,8,9-O8CDD-org. (mokra teža)","µg/kg"]
[3616,"1,2,3,4,6,7,8,9-O8CDF-org. (mokra teža)","µg/kg"]
[3605,"1,2,3,4,6,7,8-H7CDD-org. (mokra teža)","µg/kg"]
[3614,"1,2,3,4,6,7,8-H7CDF-org. (mokra teža)","µg/kg"]
[3615,"1,2,3,4,7,8,9-H7CDF-org. (mokra teža)","µg/kg"]
[3602,"1,2,3,4,7,8-H6CDD-org. (mokra teža)","µg/kg"]
[3610,"1,2,3,4,7,8-H6CDF-org. (mokra teža)","µg/kg"]
[3603,"1,2,3,6,7,8-H6CDD-org. (mokra teža)","µg/kg"]
[3611,"1,2,3,6,7,8-H6CDF-org. (mokra teža)","µg/kg"]
[3604,"1,2,3,7,8,9-H6CDD-org. (mokra teža)","µg/kg"]
[3612,"1,2,3,7,8,9-H6CDF-org. (mokra teža)","µg/kg"]
[3601,"1,2,3,7,8-P5CDD-org. (mokra teža)","µg/kg"]
[3608,"1,2,3,7,8-P5CDF-org. (mokra teža)","µg/kg"]
[8914,"1,2,5,6,9,10 - HBCDD-org. (mokra teža)","µg/kg"]
[8913,"1,3,5,7,9,11- HBCDD-org. (mokra teža)","µg/kg"]
[3582,"2,2',4,4',5,5'-HeksaBDE (BDE 153)-(mokra teža)","µg/kg"]
[3581,"2,2',4,4',5,6'-HeksaBDE (BDE 154)-(mokra teža)","µg/kg"]
[3572,"2,2',4,4',5-PentaBDE (BDE 99)-(mokra teža)","µg/kg"]
[3570,"2,2',4,4',6-PentaBDE (BDE 100)-(mokra teža)","µg/kg"]
[3562,"2,2',4,4'-TetraBDE (BDE 47)-(mokra teža)","µg/kg"]
[3628,"2,3,3´,4,4´,5,5´-H7CB (PCB 189)-org. (mokra teža)","µg/kg"]
[3625,"2,3,3´,4,4´,5´-H6CB (PCB 157)-org. (mokra teža)","µg/kg"]
[3624,"2,3,3´,4,4´,5-H6CB (PCB 156)-org. (mokra teža)","µg/kg"]
[3619,"2,3,3´,4,4´-P5CB (PCB 105)-org. (mokra teža)","µg/kg"]
[3620,"2,3,4,4´,5-P5CB (PCB 114)-org. (mokra teža)","µg/kg"]
[3613,"2,3,4,6,7,8-H6CDF-org. (mokra teža)","µg/kg"]
[3609,"2,3,4,7,8-P5CDF-org. (mokra teža)","µg/kg"]
[3600,"2,3,7,8-T4CDD-org. (mokra teža)","µg/kg"]
[3607,"2,3,7,8-T4CDF-org. (mokra teža)","µg/kg"]
[3626,"2,3´,4,4´,5,5´-H6CB (PCB 167)-org. (mokra teža)","µg/kg"]
[3622,"2,3´,4,4´,5´-P5CB (PCB 123)-org. (mokra teža)","µg/kg"]
[3621,"2,3´,4,4´,5-P5CB (PCB 118)-org. (mokra teža)","µg/kg"]
[3555,"2,4,4'-TriBDE (BDE 28)-(mokra teža)","µg/kg"]
[3627,"3,3´,4,4´,5,5´-H6CB (PCB 169)-org. (mokra teža)","µg/kg"]
[3623,"3,3´,4,4´,5-P5CB (PCB 126)-org. (mokra teža)","µg/kg"]
[3617,"3,3´,4,4´-T4CB (PCB 77)-org. (mokra teža)","µg/kg"]
[3618,"3,3´,4´,5-T4CB (PCB 81)-org. (mokra teža)","µg/kg"]
[8915,"alfa - HBCDD-org. (mokra teža)","µg/kg"]
[6121,"alfa-HCH-org. (mokra teža)","µg/kg"]
[7066,"Antracen-org. (mokra teža)","µg/kg"]
[7136,"Benzo(a)piren-org. (mokra teža)","µg/kg"]
[7116,"Benzo(b)fluoranten-org. (mokra teža)","µg/kg"]
[7146,"Benzo(g,h,i)perilen-org. (mokra teža)","µg/kg"]
[7126,"Benzo(k)fluoranten-org. (mokra teža)","µg/kg"]
[8916,"beta - HBCDD-org. (mokra teža)","µg/kg"]
[6131,"beta-HCH-org. (mokra teža)","µg/kg"]
[91248,"Bromirani difenileter-org. (mokra teža)","µg/kg"]
[3302,"C10-C13 kloroalkani-org. (mokra teža)","µg/kg"]
[6106,"cis-heptaklorepoksid-org. (mokra teža)","µg/kg"]
[6151,"delta-HCH-org. (mokra teža)","µg/kg"]
[3242,"Di(2-etilheksil)ftalat (DEHP)-org. (mokra teža)","µg/kg"]
[6038,"Dikofol-org. (mokra teža)","µg/kg"]
[90112,"Dioksini in dioksinom podobne spojine-org. (mokra teža)","µg/kg"]
[7076,"Fluoranten-org. (mokra teža)","µg/kg"]
[8917,"gama - HBCDD-org. (mokra teža)","µg/kg"]
[6141,"gama-HCH-org. (mokra teža)","µg/kg"]
[8912,"HBCDD-org. (mokra teža)","µg/kg"]
[6161,"Heksaklorobenzen-org. (mokra teža)","µg/kg"]
[6171,"Heksaklorobutadien-org. (mokra teža)","µg/kg"]
[93001,"Heksaklorocikloheksan-org. (mokra teža)","µg/kg"]
[94407,"Heptaklor in heptaklor epoksid-org. (mokra teža)","µg/kg"]
[6103,"Heptaklor-org. (mokra teža)","µg/kg"]
[7166,"Indeno(1,2,3-cd)piren-org. (mokra teža)","µg/kg"]
[4142,"Kadmij-org. (mokra teža)","µg/kg"]
[6077,"Kvinoksifen-org. (mokra teža)","µg/kg"]
[6157,"Pentaklorobenzen-org. (mokra teža)","µg/kg"]
[8902,"PFOS-org. (mokra teža)","µg/kg"]
[4315,"Svinec-org. (mokra teža)","µg/kg"]
[6105,"trans-heptaklorepoksid-org. (mokra teža)","µg/kg"]
[3282,"Tributilkositrove spojine-org. (mokra teža)","µg/kg"]
[4365,"Živo srebro-org. (mokra teža)","µg/kg"]

{"sheet":"param.kem.stanja","index":14,"n_rows":89,"n_cols":8,"rows_kept":89,"cut":false,"hidden":false,"merged":[[26,0,27,0],[46,0,51,0],[13,7,17,7],[22,0,25,0],[22,3,25,3],[22,4,25,4],[22,5,25,5],[22,6,25,6],[22,7,25,7],[13,4,17,4],[6,0,7,0],[6,1,7,1],[13,0,17,0],[13,1,17,1],[13,2,17,2]]}
["Tabela 1:","Okoljski standardi kakovosti za parametre kemijskega stanja v vodi in organizmih"]
["OSK: Okoljski standard kakovosti"]
["LP: Letno povprečje "]
["NDK: Največja dovoljena koncentracija "]
["NO - vrednost naravnega ozadja; za vodotoke in jezera znaša za kadmij 0,04 µg/L in za živo srebro 0,0025 µg/L"]
[]
["Št.","Ime snovi","Številka ","LP-OSK (2) Celinske površinske vode (3)","LP-OSK (2) Druge površinske vode","NDK-OSK (4) Celinske površinske vode (3)","NDK-OSK (4) Druge površinske vode","OSK organizmi (12)"]
[null,null,"CAS (1)","Enota: µg/L","Enota: µg/L","Enota: µg/L","Enota: µg/L","Enota: µg/kg mokre teže"]
[-1,"alaklor","15972-60-8",0.3,0.3,0.7,0.7]
[-2,"antracen","120-12-7",0.1,0.1,0.1,0.1]
[-3,"atrazin","1912-24-9",0.6,0.6,2,2]
[-4,"benzen","71-43-2",10,8,50,50]
[-5,"bromirani difeniletri (5)","32534-81-9",null,null,0.14000000000000001,1.4E-2,8.5000000000000006E-3]
[-6,"kadmij in njegove spojine (glede na razrede trdote vode) (6)","7440-43-9","r.1: ≤ 0,08 + NO","0,2 + NO","r.1: ≤ 0,45 + NO","r.1: ≤ 0,45 + NO"]
[null,null,null,"r.2: 0,08 + NO",null,"r.2: 0,45 +NO","r.2: 0,45 + NO"]
[null,null,null,"r.3: 0,09 + NO",null,"r.3: 0,6 +NO","r.3:   0,6 + NO "]
[null,null,null,"r.4: 0,15 + NO",null,"r.4: 0,9 +NO","r.4: 0,9 + NO"]
[null,null,null,"r.5:   0,25 + NO",null,"r.5: 1,5 + NO","r.5:   1,5 + NO"]
["(6a)","ogljikov tetraklorid (7)","56-23-5",12,12,"ni relevantno","ni relevantno"]
[-7,"C10–13 kloroalkani (8)","85535-84-8",0.4,0.4,1.4,1.4]
[-8,"klorfenvinfos","470-90-6",0.1,0.1,0.3,0.3]
[-9,"klorpirifos (klorpirifos- etil)","2921-88-2",0.03,0.03,0.1,0.1]
["(9a)","ciklodienski pesticidi: aldrin (7)","309-00-2","Σ = 0,01","Σ = 0,005","ni relevantno","ni relevantno"]
[null,"dieldrin (7)","60-57-1"]
[null,"endrin (7)","72-20-8"]
[null,"izodrin (7)","465-73-6"]
["(9b)","DDT vsota (7), (9)","ni relevantno",2.5000000000000001E-2,2.5000000000000001E-2,"ni relevantno","ni relevantno"]
[null,"para-para- DDT (7)","50-29-3",0.01,0.01,"ni relevantno","ni relevantno"]
[-10,"1,2-dikloroetan","107-06-2",10,10,"ni relevantno","ni relevantno"]
[-11,"diklorometan","75-09-2",20,20,"ni relevantno","ni relevantno"]
[-12,"di(2-etilheksil)ftalat (DEHP)","117-81-7",1.3,1.3,"ni relevantno","ni relevantno"]
[-13,"diuron","330-54-1",0.2,0.2,1.8,1.8]
[-14,"endosulfan","115-29-7",5.0000000000000001E-3,5.0000000000000001E-4,0.01,4.0000000000000001E-3]
[-15,"fluoranten","206-44-0",6.3E-3,6.3E-3,0.12,0.12,30]
[-16,"heksaklorobenzen","118-74-1",null,null,0.05,0.05,10]
[-17,"heksaklorobutadien","87-68-3",null,null,0.6,0.6,55]
[-18,"heksaklorocikloheksan","608-73-1",0.02,2E-3,0.04,0.02]
[-19,"izoproturon","34123-59-6",0.3,0.3,1,1]
[-20,"svinec in njegove spojine","7439-92-1","1,2 (13)",1.3,14,14]
[-21,"živo srebro in njegove spojine","7439-97-6",null,null,"0,07 + NO","0,07 + NO",20]
[-22,"naftalen","91-20-3",2,2,130,130]
[-23,"nikelj in njegove spojine","7440-02-0","4 (13)",8.6,34,34]
[-24,"nonilfenoli (4-nonilfenol)","84852-15-3",0.3,0.3,2,2]
[-25,"oktilfenoli (4-(1,1′,3,3′- tetrametilbutil)fenol)","140-66-9",0.1,0.01,"ni relevantno","ni relevantno"]
[-26,"pentaklorobenzen","608-93-5",7.0000000000000001E-3,6.9999999999999999E-4,"ni relevantno","ni relevantno"]
[-27,"pentaklorofenol","87-86-5",0.4,0.4,1,1]
[-28,"poliaromatski ogljikovodiki (PAH) (11)","ni relevantno","ni relevantno","ni relevantno","ni relevantno","ni relevantno"]
[null,"benzo(a)piren","50-32-8","1,7 × 10 –4","1,7 × 10 –4",0.27,2.7E-2,5]
[null,"benzo(b)fluoranten","205-99-2","ni relevantno","ni relevantno",1.7000000000000001E-2,1.7000000000000001E-2,"ni relevantno"]
[null,"benzo(k)fluoranten","207-08-9","ni relevantno","ni relevantno",1.7000000000000001E-2,1.7000000000000001E-2,"ni relevantno"]
[null,"benzo(g,h,i)perilen","191-24-2","ni relevantno","ni relevantno","8,2 × 10 –3","8,2 × 10 –4","ni relevantno"]
[null,"indeno(1,2,3- cd)piren","193-39-5","ni relevantno","ni relevantno","ni relevantno","ni relevantno","ni relevantno"]
[-29,"simazin","122-34-9",1,1,4,4]
["(29a)","tetrakloroetilen (7)","127-18-4",10,10,"ni relevantno","ni relevantno"]
["(29b)","trikloroetilen (7)","79-01-6",10,10,"ni relevantno","ni relevantno"]
[-30,"tributilkositrove spojine (tributilkositrov kation)","36643-28-4",2.0000000000000001E-4,2.0000000000000001E-4,1.5E-3,1.5E-3]
[-31,"triklorobenzeni","12002-48-1",0.4,0.4,"ni relevantno","ni relevantno"]
[-32,"triklorometan","67-66-3",2.5,2.5,"ni relevantno","ni relevantno"]
[-33,"trifluralin","1582-09-8",0.03,0.03,"ni relevantno","ni relevantno"]
[-34,"dikofol","115-32-2","1,3 × 10 –3","3,2 × 10 –5","ni relevantno (10)","ni relevantno (10)",33]
[-35,"perfluorooktan sulfonska kislina in njeni derivati (PFOS)","1763-23-1","6,5 × 10 –4","1,3 × 10 –4",36,7.2,9.1]
[-36,"kvinoksifen","124495-18-7",0.15,1.4999999999999999E-2,2.7,0.54]
[-37,"dioksini in dioksinom podobne spojine",-14,null,null,"ni relevantno","ni relevantno","vsota PCDD + PCDF + PCB-DL 0,0065 μg.kg –1 TEQ (15)"]
[-38,"aklonifen","74070-46-5",0.12,1.2E-2,0.12,1.2E-2]
[-39,"bifenoks","42576-02-3",1.2E-2,1.1999999999999999E-3,0.04,4.0000000000000001E-3]
[-40,"cibutrin","28159-98-0",2.5000000000000001E-3,2.5000000000000001E-3,1.6E-2,1.6E-2]
[-41,"cipermetrin","52315-07-8","8 × 10 –5","8 × 10 –6","6 × 10 –4","6 × 10 –5"]
[-42,"diklorvos","62-73-7","6 × 10 –4","6 × 10 –5","7 × 10 –4","7 × 10 –5"]
[-43,"Heksabromociklo-dodekan (HBCDD)",-16,1.6000000000000001E-3,8.0000000000000004E-4,0.5,0.05,167]
[-44,"heptaklor in heptaklor epoksid","76-44-8/ 1024-57-3","2 × 10 –7","1 × 10 –8","3 × 10 –4","3 × 10 –5","6,7 × 10 –3"]
[-45,"terbutrin","886-50-0",6.5000000000000002E-2,6.4999999999999997E-3,0.34,3.4000000000000002E-2]
[]
["NO – vrednost naravnega ozadje za celinske vode "]
["(1) CAS: Služba za izmenjavo kemičnih izvlečkov. "]
["(2) Ta vrednost je okoljski standard kakovosti, izražen kot letna povprečna vrednost (LP-OSK). Če ni drugače določeno, velja za celotno koncentracijo vseh izomerov. "]
["(3) Celinske površinske vode zajemajo reke in jezera ter sorodna umetna ali močno preoblikovana vodna telesa."]
["(4) Ta vrednost je okoljski standard kakovosti, izražen kot največja dovoljena koncentracija (NDK-OSK). Kjer so NDK-OSK označene kot ‚ni relevantno‘, se šteje, da vrednosti LP-OSK zagotavljajo varstvo pred kratkotrajnimi konicami onesnaženja v stalnih izpustih, ker so znatno nižje od vrednosti, določenih na podlagi akutne toksičnosti. "]
["(5) Za skupino prednostnih snovi, ki jih zajemajo bromirani difeniletri (št. 5), se OSK nanaša na vsoto koncentracij sorodnih snovi pod številkami 28, 47, 99, 100, 153 in 154. "]
["(6) Za kadmij in njegove spojine (št. 6) se vrednosti OSK razlikujejo glede na trdoto vode, razdeljeno v pet razredov (r.1 = razred 1: < 40 mg CaCO3/L, r.2 = razred 2: 40 do < 50 mg CaCO3/L, r.3 = razred 3: 50 do < 100 mg CaCO3/L, r.4 = razred 4: 100 do < 200 mg CaCO3/L in r.5 = razred 5: ≥ 200 mg CaCO3/L). "]
["(7) Ta snov ni prednostna snov, temveč eno od drugih onesnaževal, za katera so OSK enaki OSK, določenim v zakonodaji, ki se je uporabljala pred 13. januarjem 2009. "]
["(8) Okvirni parameter za to skupino snovi ni opredeljen. Okvirni parameter(-ri) mora(-jo) biti opredeljen(-i) z analitsko metodo."]
["(9) Celotni DDT obsega vsoto izomerov 1,1,1-trikloro-2,2 bis (p-klorofenil) etana (številka CAS 50-29-3; številka EU 200-024-3); 1,1,1- trikloro-2 (o-klorofenil)-2-(p-klorofenil) etana (številka CAS 789-02-6; številka EU 212-332-5); 1,1-dikloro-2,2 bis (p-klorofenil) etilena (številka CAS 72-55-9; številka EU 200-784-6) in 1,1-dikloro-2,2 bis (p-klorofenil) etana (številka CAS 72-54-8; številka EU 200-783-0)."]
["(10) Za določitev NDK-OSK za te snovi ni na voljo zadostnih informacij. "]
["(11) Pri skupini prednostnih snovi poliaromatskih ogljikovodikov (PAH) (št. 28) se OSK za organizme in ustrezni LP-OSK v vodi nanašajo na koncentracijo benzo(a)pirena, saj temeljijo na njegovi toksičnosti. Benzo(a)piren se lahko šteje za kazalnik za druge PAH, zato je treba za primerjavo z OSK za organizme ali ustreznimi LP-OSK za vodo spremljati le benzo(a)piren."]
["(12) OSK za organizme se nanaša na ribe, razen če ni določeno drugače. Namesto tega se lahko spremlja drug takson ali drug medij, če OSK, ki se uporablja, zagotavlja enako raven zaščite. Za snovi pod številko 15 (fluoranten) in 28 (PAH) se OSK za organizme nanaša na rake in mehkužce. Spremljanje fluorantena in PAH v ribah ni primerno za oceno kemijskega stanja. Za snovi pod številko 37 (dioksini in dioksinom podobne spojine) se OSK za organizme nanašajo na ribe, rake in mehkužce, v skladu z oddelkom 5.3 Priloge k Uredbi Komisije (EU) št. 1259/2011 z dne 2. decembra 2011 o spremembi Uredbe (ES) št. 1881/2006 v zvezi z mejnimi vrednostmi dioksinov, dioksinom podobnih PCB-jev in dioksinom nepodobnih PCB-jev v živilih (UL L 320, 3.12.2011, str. 18). "]
["(13) Ti OSK se nanašajo na biološko razpoložljive koncentracije snovi. "]
["(14) To se nanaša na naslednje spojine: 7 polikloriranih dibenzo-p-dioksinov (PCDD): 2,3,7,8-T4CDD (CAS 1746-01-6), 1,2,3,7,8-P5CDD (CAS 40321-76-4), 1,2,3,4,7,8- H6CDD (CAS 39227-28-6), 1,2,3,6,7,8-H6CDD (CAS 57653-85-7), 1,2,3,7,8,9-H6CDD (CAS 19408-74-3), 1,2,3,4,6,7,8-H7CDD (CAS 35822-46-9), 1,2,3,4,6,7,8,9-O8CDD (CAS 3268-87-9); 10 polikloriranih dibenzofuranov (PCDF): 2,3,7,8-T4CDF (CAS 51207-31-9), 1,2,3,7,8-P5CDF (CAS 57117-41-6), 2,3,4,7,8-P5CDF (CAS 57117-31-4), 1,2,3,4,7,8-H6CDF (CAS 70648-26-9), 1,2,3,6,7,8-H6CDF (CAS 57117-44-9), 1,2,3,7,8,9-H6CDF (CAS 72918- 21-9), 2,3,4,6,7,8-H6CDF (CAS 60851-34-5), 1,2,3,4,6,7,8-H7CDF (CAS 67562-39-4), 1,2,3,4,7,8,9-H7CDF (CAS 55673-89-7), 1,2,3,4,6,7,8,9-O8CDF (CAS 39001-02-0); 12 dioksinom podobnih polikloriranih bifenilov (PCB-DL): 3,3’,4,4’-T4CB (PCB 77, CAS 32598-13-3), 3,3’,4’,5-T4CB (PCB 81, CAS 70362-50-4), 2,3,3’,4,4’-P5CB (PCB 105, CAS 32598-14-4), 2,3,4,4’,5-P5CB (PCB 114, CAS 74472-37-0), 2,3’,4,4’,5-P5CB (PCB 118, CAS 31508-00-6), 2,3’,4,4’,5’-P5CB (PCB 123, CAS 65510-44-3), 3,3’,4,4’,5-P5CB (PCB 126, CAS 57465-28-8), 2,3,3’,4,4’,5-H6CB (PCB 156, CAS 38380-08-4), 2,3,3’,4,4’,5’-H6CB (PCB 157, CAS 69782-90-7), 2,3’,4,4’,5,5’-H6CB (PCB 167, CAS 52663-72-6), 3,3’,4,4’,5,5’-H6CB (PCB 169, CAS 32774-16-6), 2,3,3’,4,4’,5,5’-H7CB (PCB 189, CAS 39635-31-9)."]
["(15) PCDD: poliklorirani dibenzo-p-dioksini; PCDF: poliklorirani dibenzofurani; PCB-DL: dioksinom podobni poliklorirani bifenili; TEQ: toksični ekvivalenti v skladu s faktorji toksične ekvivalentnosti Svetovne zdravstvene organizacije iz leta 2005."]
["(16) To se nanaša na 1,3,5,7,9,11-heksabromociklododekan (CAS 25637-99-4), 1,2,5,6,9,10- heksabromociklododekan (CAS 3194-55-6), α-heksabromociklododekan (CAS 134237-50-6), β-heksabromociklododekan (CAS 134237-51-7) in γ-heksabromociklododekan (CAS 134237-52-8)."]

{"sheet":"param.ekol.stanja","index":15,"n_rows":59,"n_cols":8,"rows_kept":59,"cut":false,"hidden":false,"merged":[[31,7,33,7],[39,0,39,6],[2,4,2,6],[3,5,3,6],[5,0,5,6],[19,0,19,6],[27,0,27,6],[31,0,33,0],[31,1,33,1],[31,2,33,2],[31,3,33,3]]}
["Tabela 2:","Mejne vrednosti razredov ekološkega stanja za posebna onesnaževala in naravno ozadje za kovine in njihove spojine"]
[]
[null,null,null,null,"Mejne vrednosti "]
[null,null,null,null,"ZELO DOBRO ","DOBRO "]
["Št.","Ime parametra","Številka CAS","Enota","LP-OSK","LP-OSK","NDK-OSK","NO"]
["Sintetična onesnaževala"]
[1,"1,2,4-trimetilbenzen","95-63-6","µg/L",0.2,2,20,"-"]
[2,"1,3,5-trimetilbenzen","108-67-8","µg/L",0.2,2,20,"-"]
[3,"bisfenol-A","80-05-7","µg/L",0.16,1.6,16,"-"]
[4,"klorotoluron (+ desmetil klorotoluron)","15545-48-9","µg/L",0.08,0.8,8,"-"]
[5,"cianid (prosti) a","57-12-5","µg/L",1,1.2,17,"-"]
[6,"dibutilftalat","84-74-2","µg/L",1,10,100,"-"]
[7,"dibutilkositrov kation","ni določena","µg/L",2E-3,0.02,0.21,"-"]
[8,"epiklorhidrin","106-89-8","µg/L",1.2,12,120,"-"]
[9,"fluorid","16984-48-8","µg/L",68,680,6800,"-"]
[10,"formaldehid","50-00-0","µg/L",13,130,1300,"-"]
[11,"glifosat","1071-83-6","µg/L",2,20,200,"-"]
[12,"heksakloroetan","67-72-1","µg/L",2.4,24,240,"-"]
[13,"ksileni","1330-20-7","µg/L",19,185,1850,"-"]
["Sintetična onesnaževala"]
[14,"linearni alkilbenzen sulfonati-LAS (C10-C13) b","42615-29-2","µg/L",25,250,2500,"-"]
[15,"n-heksan","110-54-3","µg/L",0.02,0.2,1.2,"-"]
[16,"pendimetalin","40487-42-1","µg/L",0.03,0.3,3,"-"]
[17,"fenol","108-95-2","µg/L",0.8,7.7,77,"-"]
[18,"S-metolaklor","87392-12-9","µg/L",0.03,0.3,2.7,"-"]
[19,"terbutilazin","5915-41-3","µg/L",0.05,0.5,5.3,"-"]
[20,"toluen","108-88-3","µg/L",7.4,74,740,"-"]
["Nesintetična onesnaževala"]
[21,"arzen in njegove spojine c","7440-38-2","µg/L",0.7,7,21,"-"]
[22,"baker in njegove spojine c","7440-50-8","µg/L",1,"8,2 + NO","73 + NO",1]
[23,"bor in njegove spojine c","7440-42-8","µg/L",30,"180 + NO","1800 + NO",30]
[24,"cink in njegove spojine c","7440-66-6","µg/L","4,2 e","7,8 e + NO","78 e + NO",4.2]
[null,null,null,null,"4,2 f","35,1 f + NO","351 f + NO"]
[null,null,null,null,"4,2 g","52 g + NO","520 g + NO"]
[25,"kobalt in njegove spojine c","7440-48-4","µg/L",0.1,"0,3 + NO","2,8 + NO",0.1]
[26,"krom in njegove spojine (izražen kot celotni krom) c","7440-47-3","µg/L",1.2,12,160,"-"]
[27,"molibden in njegove spojine c","7439-98-7","µg/L",2.4,24,200]
[28,"antimon in njegove spojine c","7440-36-0","µg/L",0.6,"3,2 + NO","30 + NO",0.6]
[29,"selen c","7782-49-2","µg/L",0.6,6,72,"-"]
["Druga posebna onesnaževala"]
[30,"nitrit","ni določena","mg/L NO2","-","-","ni določena","-"]
[31,"KPK","ni določena","mg/L O2","10 - 20,9 h","13,6 - 29,9 h","ni določena","-"]
[32,"sulfat","ni določena","mg/L SO4",15,150,"ni določena","-"]
[33,"mineralna olja","ni določena","mg/L",5.0000000000000001E-3,0.05,"ni določena","-"]
[34,"organski vezani halogeni sposobni adsorbcije (AOX)","ni določena","µg/L",2,20,"ni določena","-"]
[35,"poliklorirani bifenili (PCB) d","ni določena","µg/L",3.0000000000000001E-3,0.01,"ni določena","-"]
[]
["Legenda:"]
["LP-OSK je okoljski standard kakovosti, izražen kot letna povprečna vrednost parametra. Če ni določeno drugače, velja za celotno koncentracijo vseh izomer."]
["NDK-OSK je okoljski standard kakovosti, izražen kot največja dovoljena koncentracija parametra."]
["NO je vrednost naravnega ozadja."]
["a","Rezultati monitoringa se vrednotijo glede na mejo zaznavnosti razpoložljive analizne metode v skladu s predpisom, ki ureja monitoring stanja površinskih voda."]
["b","Za vrednotenje parametra LAS se uporabi rezultate analize anionaktivnih detergentov z MBAS."]
["c","Pri vrednotenju rezultatov monitoringa glede na letno povprečno vrednost se lahko upoštevajo koncentracije naravnega ozadja, trdota vode, pH ali drugi parametri; način njihovega upoštevanja se obrazloži v poročilu o monitoringu v skladu s predpisom, ki ureja monitoring stanja površinskih voda."]
["d","Vsota po Ballschmitter-ju: PCB-28, PCB-52, PCB-101, PCB-138, PCB-153, PCB-180."]
["e","Velja za vode s trdoto, manjšo od 50 mg/L CaCO3."]
["f","Velja za vode s trdoto, enako ali večjo od 50 mg/L CaCO3 in manjšo od 100 mg/L CaCO3."]
["g","Velja za vode s trdoto, enako ali večjo od 100 mg/L CaCO3."]
["h","Natančne mejne vrednosti so določene glede na opis tipa v metodologijah v skladu s predpisom, ki ureja monitoring stanja površinskih voda."]

{"sheet":"param.ekol.stanja fiz.-kem.","index":16,"n_rows":77,"n_cols":20,"rows_kept":77,"cut":false,"hidden":false,"merged":[]}
["Tabela 3:","Mejne vrednosti razredov ekološkega stanja za splošne fizikalno-kemijske parametre za reke"]
[]
["Tip reke","Saprobni tip","BPK5 tip","RV","ZD/D","D/Z","Nitratni tip","RV","ZD/D","D/Z",null,"BPK5 tip","RV (mg/l)","ZD/D (mg/l)","D/Z (mg/l)",null,"NO3 tip","RV (mg/l)","ZD/D (mg/l)","D/Z (mg/l)"]
["ni določen",null,null,null,null,null,null,null,null,null,null,1,"<1,0",1.6,2.1,null,1,2,3.2,6.5]
["R_SI_3_Vip-Brda_1","SI1.30",2,1.2,1.9,4.4000000000000004,1,2,3.2,6.5,null,2,1.2,1.9,4.4000000000000004,null,2,3.4,5,7.7]
["R_SI_3_Vip-Brda_2","SI1.60",2,1.2,1.9,4.4000000000000004,3,5.0999999999999996,7,9.5,null,3,1.4,2.4,5.4,null,3,5.0999999999999996,7,9.5]
["R_SI_4_KB-AL-D_1","SI1.30",2,1.2,1.9,4.4000000000000004,1,2,3.2,6.5]
["R_SI_4_KB-AL-D_1_>700","SI1.25",1,"<1,0",1.6,2.1,1,2,3.2,6.5]
["R_SI_4_KB-AL-D_1_KI","SI1.30",2,1.2,1.9,4.4000000000000004,2,3.4,5,7.7]
["R_SI_4_KB-AL-D_1_LI","SI1.30",2,1.2,1.9,4.4000000000000004,1,2,3.2,6.5]
["R_SI_4_KB-AL-D_1_Pres","SI1.20",1,"<1,0",1.6,2.1,1,2,3.2,6.5]
["R_SI_4_KB-AL-D_2","SI1.35",2,1.2,1.9,4.4000000000000004,1,2,3.2,6.5]
["R_SI_4_KB-AL-D_2_IiJ","SI1.70",2,1.2,1.9,4.4000000000000004,1,2,3.2,6.5]
["R_SI_4_KB-AL-D_2_KI","SI1.30",2,1.2,1.9,4.4000000000000004,2,3.4,5,7.7]
["R_SI_4_KB-AL-J_1","SI1.30",2,1.2,1.9,4.4000000000000004,1,2,3.2,6.5]
["R_SI_4_KB-AL-J_1_>700","SI1.25",1,"<1,0",1.6,2.1,1,2,3.2,6.5]
["R_SI_4_KB-AL-J_1_KI","SI1.30",2,1.2,1.9,4.4000000000000004,2,3.4,5,7.7]
["R_SI_4_KB-AL-J_2","SI1.55",3,1.4,2.4,5.4,2,3.4,5,7.7]
["R_SI_4_KB-AL-J_2_KI","SI1.35",2,1.2,1.9,4.4000000000000004,1,2,3.2,6.5]
["R_SI_4_PA-hrib-D_1","SI1.30",2,1.2,1.9,4.4000000000000004,1,2,3.2,6.5]
["R_SI_4_PA-hrib-D_1_KI","SI1.35",2,1.2,1.9,4.4000000000000004,1,2,3.2,6.5]
["R_SI_4_PA-hrib-D_1_Pres","SI1.20",1,"<1,0",1.6,2.1,1,2,3.2,6.5]
["R_SI_4_PA-hrib-D_2","SI1.40",2,1.2,1.9,4.4000000000000004,2,3.4,5,7.7]
["R_SI_4_PA-hrib-J_1","SI1.40",2,1.2,1.9,4.4000000000000004,2,3.4,5,7.7]
["R_SI_4_PA-hrib-J_1_KI","SI1.30",2,1.2,1.9,4.4000000000000004,2,3.4,5,7.7]
["R_SI_4_PA-hrib-J_1_Mean","SI1.40",2,1.2,1.9,4.4000000000000004,2,3.4,5,7.7]
["R_SI_4_PA-hrib-J_2","SI1.55",3,1.4,2.4,5.4,2,3.4,5,7.7]
["R_SI_4_PA-hrib-J_2_KI","SI1.40",2,1.2,1.9,4.4000000000000004,3,5.0999999999999996,7,9.5]
["R_SI_4_SI-AL_1","SI1.30",2,1.2,1.9,4.4000000000000004,1,2,3.2,6.5]
["R_SI_4_SI-AL_1_>700","SI1.25",1,"<1,0",1.6,2.1,1,2,3.2,6.5]
["R_SI_4_SI-AL_2","SI1.40",2,1.2,1.9,4.4000000000000004,2,3.4,5,7.7]
["R_SI_5_ED-hrib_1","SI1.35",2,1.2,1.9,4.4000000000000004,1,2,3.2,6.5]
["R_SI_5_ED-hrib_1_KI","SI1.35",2,1.2,1.9,4.4000000000000004,1,2,3.2,6.5]
["R_SI_5_ED-hrib_2_KI","SI1.60",2,1.2,1.9,4.4000000000000004,2,3.4,5,7.7]
["R_SI_5_ED-kras_1","SI1.55",3,1.4,2.4,5.4,2,3.4,5,7.7]
["R_SI_5_ED-kras_1_KI_Mean","SI1.45",2,1.2,1.9,4.4000000000000004,1,2,3.2,6.5]
["R_SI_5_ED-kras_1_KI_Pres_Mean","SI1.45",2,1.2,1.9,4.4000000000000004,1,2,3.2,6.5]
["R_SI_5_ED-kras_1_OKI_Pres","SI1.45",2,1.2,1.9,4.4000000000000004,1,2,3.2,6.5]
["R_SI_5_ED-kras_1_PerPop","SI2.15",1,"<1,0",1.6,2.1,1,2,3.2,6.5]
["R_SI_5_ED-kras_2_KI_Mean","SI1.70",2,1.2,1.9,4.4000000000000004,2,3.4,5,7.7]
["R_SI_5_ED-kras_2_KI_Pres_Mean","SI2.40",1,"<1,0",1.6,2.1,2,3.4,5,7.7]
["R_SI_5_ED-kras_2_PerPop","SI2.25",3,1.4,2.4,5.4,1,2,3.2,6.5]
["R_SI_5_Obalna_1_Pres","SI1.50",2,1.2,1.9,4.4000000000000004,2,3.4,5,7.7]
["R_SI_5_PD-hrib-ravni_1","SI1.35",2,1.2,1.9,4.4000000000000004,1,2,3.2,6.5]
["R_SI_5_PD-hrib-ravni_1_KI_Mean","SI1.75",1,1.2,1.9,4.4000000000000004,3,5.0999999999999996,7,9.5]
["R_SI_5_PD-hrib-ravni_1_Mean","SI2.25",3,1.4,2.4,5.4,2,3.4,5,7.7]
["R_SI_5_PD-hrib-ravni_1_OKI_Pres","SI1.45",2,1.2,1.9,4.4000000000000004,1,2,3.2,6.5]
["R_SI_5_PD-hrib-ravni_2","SI1.50",2,1.2,1.9,4.4000000000000004,2,3.4,5,7.7]
["R_SI_5_PD-hrib-ravni_2_KI","SI1.30",2,1.2,1.9,4.4000000000000004,2,3.4,5,7.7]
["R_SI_5_PD-hrib-ravni_2_KI_Mean","SI2.05",1,"<1,0",1.6,2.1,3,5.0999999999999996,7,9.5]
["R_SI_5_PD-hrib-ravni_2_Mean","SI2.25",3,1.4,2.4,5.4,2,3.4,5,7.7]
["R_SI_5_PD-hrib-ravni_3_KI","SI1.70",2,1.2,1.9,4.4000000000000004,2,3.4,5,7.7]
["R_SI_5_PD-hrib-ravni_3_Mean","SI2.25",3,1.4,2.4,5.4,2,3.4,5,7.7]
["R_SI_5_SM-hrib-brez_1","SI1.45",2,1.2,1.9,4.4000000000000004,2,3.4,5,7.7]
["R_SI_5_SM-hrib-brez_1_Pres","SI1.60",2,1.2,1.9,4.4000000000000004,3,5.0999999999999996,7,9.5]
["R_SI_5_SM-hrib-brez_2","SI1.55",3,1.4,2.4,5.4,2,3.4,5,7.7]
["R_SI_5_SM-hrib-brez_2_Pres","SI1.70",2,1.2,1.9,4.4000000000000004,1,2,3.2,6.5]
["R_SI_5_SM-hrib-s_1","SI1.45",2,1.2,1.9,4.4000000000000004,2,3.4,5,7.7]
["R_SI_5_SM-hrib-s_1_Pres","SI1.60",2,1.2,1.9,4.4000000000000004,3,5.0999999999999996,7,9.5]
["R_SI_5_SM-hrib-s_2_KI","SI1.50",2,1.2,1.9,4.4000000000000004,2,3.4,5,7.7]
["R_SI_11_PN-gric_1","SI1.35",2,1.2,1.9,4.4000000000000004,1,2,3.2,6.5]
["R_SI_11_PN-gric_2","SI1.45",2,1.2,1.9,4.4000000000000004,3,5.0999999999999996,7,9.5]
["R_SI_11_PN-KrBr-kotl_1","SI1.40",2,1.2,1.9,4.4000000000000004,2,3.4,5,7.7]
["R_SI_11_PN-KrBr-kotl_2","SI1.50",2,1.2,1.9,4.4000000000000004,2,3.4,5,7.7]
["R_SI_11_PN-KrBr-kotl_3","SI1.60",2,1.2,1.9,4.4000000000000004,3,5.0999999999999996,7,9.5]
["R_SI_11_PN-zALvpliv_1","SI1.35",2,1.2,1.9,4.4000000000000004,1,2,3.2,6.5]
["R_SI_11_PN-zALvpliv_2","SI1.45",2,1.2,1.9,4.4000000000000004,3,5.0999999999999996,7,9.5]
["R_SI_11_PN-zALvpliv_3","SI1.55",3,1.4,2.4,5.4,2,3.4,5,7.7]
["R_SI_4_VR1-AL-Sa","SI1.35",2,1.2,1.9,4.4000000000000004,1,2,3.2,6.5]
["R_SI_5_VR2-So","SI1.40",2,1.2,1.9,4.4000000000000004,2,3.4,5,7.7]
["R_SI_5_VR3-DN-Sa","SI1.80",3,1.4,2.4,5.4,3,5.0999999999999996,7,9.5]
["R_SI_5_VR4-Lj","SI1.80",3,1.4,2.4,5.4,3,5.0999999999999996,7,9.5]
["R_SI_5_VR5-Ko","SI1.50",2,1.2,1.9,4.4000000000000004,2,3.4,5,7.7]
["R_SI_11_VR6-PN-Sa","SI1.85",3,1.4,2.4,5.4,3,5.0999999999999996,7,9.5]
["R_SI_11_VR7-Kk","SI1.60",2,1.2,1.9,4.4000000000000004,3,5.0999999999999996,7,9.5]
["R_SI_11_VR8-medAL-Dr","SI1.85",3,1.4,2.4,5.4,3,5.0999999999999996,7,9.5]
["R_SI_11_VR9-Mu-ravDr","SI1.85",3,1.4,2.4,5.4,3,5.0999999999999996,7,9.5]

{"sheet":"naravna_ozadja","index":17,"n_rows":12,"n_cols":5,"rows_kept":12,"cut":false,"hidden":false,"merged":[]}
["Tabela 4:","Naravna ozadja za kovine in njihove spojine"]
[]
[null,"Ime parametra","Številka CAS","Enota","Vrednost naravnega  ozadja za celinske vode"]
[null,"Prednostne in prednostne nevarne snovi"]
[null,"kadmij in njegove spojine","7440-43-9","µg/L",0.04]
[null,"živo srebro in njegove spojine","7439-97-6","µg/L",2.5000000000000001E-3]
[null,"Posebna onesnaževala"]
[null,"baker in njegove spojine","7440-58-8","µg/L",1]
[null,"bor in njegove spojine","7440-42-8","µg/L",30]
[null,"cink in njegove spojine","7440-66-6","µg/L",4.2]
[null,"kobalt in njegove spojine","7440-48-4","µg/L",0.1]
[null,"antimon in njegove spojine","7440-36-0","µg/L",0.6]